Workbook

Sheet A - PdS2023_Nuovi interventi
C1: Distretto Territoriale | M1: Finalità intervento | Q1: Obiettivi intervento | AC1: Stato avanzamento opere principali | AN1: Impatti in termini di km di territorio occupati
A2: Categoria | B2: Area Territoriale | C2: DTNO | D2: DTNE | E2: DTCS | F2: Regioni interessate | G2: Identificativo PdS | H2: Nome Intervento | I2: Identificativo PCI | J2: Identificativo ENTSO-E TYNDP | K2: Identificativo ENTSO-E Regional Plan | L2: Priorità PdS (con motivazione) | M2: Decarbonizzazione | N2: Sicurezza e Resilienza | O2: Market efficiency | P2: Sostenibilità | Q2: Congestioni INTRA | R2: Congestioni INTER | S2: Connessione RTN | T2: Integrazione FER | U2: Integrazione RFI | V2: Interconnessioni | W2: Transizione energetica | X2: Resilienza | Y2: Qualità del servizio | Z2: Tipo di Intervento | AA2: Numero opere incluse nell'intervento | AB2: Numero Totale Opere Principali | AC2: Fase 1 [%] | AD2: Fase 2 [%] | AE2: Fase 3 [%] | AF2: Fase 4 [%] | AG2: Fase 5 [%] | AH2: Completato [%] | AI2: Avvio attività | AJ2: Avvio cantieri | AK2: Completamento | AL2: Anno di pianificazione | AM2: Impatto in termini di aumento della capacità di interconnessione | AN2: Realizzazione I22 [km] | AO2: Realizzazione I23 [km] | AP2: Realizzazione I24 [km] | AQ2: Dismissione I22 [km] | AR2: Dismissione I23 [km] | AS2: Dismissione I24 [km] | AT2: Dismissione e Realizzazione I22 [km] | AU2: Dismissione e Realizzazione I23 [km] | AV2: Dismissione e Realizzazione I24 [km] | AW2: ACB 2.0 (Sì/No) | AX2: Identificazione delle principali categorie di beneficio | AY2: Investimento sostenuto [M€] | AZ2: Investimento stimato* [M€] | BA2: Rapporti di complementarietà con altri interventi
A3: Nuovo intervento | B3: Area Centro/Centro-Nord/Nord | C3: 1 | D3: 1 | E3: 1 | F3: Lazio/Toscana/Emilia-Romagna/Lombardia | G3: 355-N | H3: HVDC Milano-Montalto | M3: 1 | O3: 1 | R3: 1 | T3: 1 | W3: 1 | Z3: Gruppo di opere | AA3: 8 | AB3: 8 | AC3: 100 | AD3: 0 | AE3: 0 | AF3: 0 | AG3: 0 | AH3: 0 | AI3: 2024 | AJ3: 2027 | AK3: 2030/2032 | AL3: 2023 | AM3: 2000/800 | AN3: 276 | AO3: 249 | AP3: 0 | AQ3: 11 | AR3: 0 | AS3: 0 | AT3: 219 | AU3: 19 | AV3: 7 | AW3: Sì | AX3: rif. Tab. C | AY3: 0 | AZ3: 2675 | BA3: 436-P, 432-P, 351-P, 302-P
A4: Nuovo intervento | B4: Area Centro/Centro-Nord | D4: 1 | E4: 1 | F4: Toscana/Umbria | G4: 356-N | H4: Central Link | M4: 1 | O4: 1 | R4: 1 | T4: 1 | W4: 1 | Z4: Gruppo di opere | AA4: 6 | AB4: 6 | AC4: 100 | AD4: 0 | AE4: 0 | AF4: 0 | AG4: 0 | AH4: 0 | AI4: 2024 | AJ4: 2026 | AK4: 2030 | AL4: 2023 | AM4: 600 | AN4: 0 | AO4: 0 | AP4: 0 | AQ4: 0 | AR4: 0 | AS4: 0 | AT4: 174 | AU4: 15 | AV4: 5 | AW4: Sì | AX4: rif. Tab. C | AY4: 0 | AZ4: 280
A5: Nuovo intervento | B5: Area Centro/Sardegna | C5: 1 | E5: 1 | F5: Sardegna/Lazio | G5: 732-N | H5: Dorsale Sarda: HVDC Fiumesanto – Montalto (SAPEI 2) e Sardinian Link | M5: 1 | O5: 1 | R5: 1 | T5: 1 | W5: 1 | Z5: Gruppo di opere | AA5: 4 | AB5: 4 | AC5: 100 | AD5: 0 | AE5: 0 | AF5: 0 | AG5: 0 | AH5: 0 | AI5: 2024 | AJ5: 2035 | AK5: 2040 | AL5: 2023 | AM5: 1000 | AN5: 343 | AO5: 140 | AP5: 0 | AQ5: 0 | AR5: 0 | AS5: 0 | AT5: 253 | AU5: 45 | AV5: 1 | AW5: Sì | AX5: rif. Tab. C | AY5: 0 | AZ5: 1422
A6: Nuovo intervento | B6: Area Centro Sud | E6: 1 | F6: Calabria/Basilicata/Campania/ Lazio | G6: 563/1-N | H6: Dorsale Ionica - Tirrenica: HVDC Rossano-Montecorvino-Latina | M6: 1 | O6: 1 | R6: 1 | T6: 1 | W6: 1 | Z6: Gruppo di opere | AA6: 9 | AB6: 9 | AC6: 100 | AD6: 0 | AE6: 0 | AF6: 0 | AG6: 0 | AH6: 0 | AI6: 2026 | AJ6: 2031 | AK6: 2035 | AL6: 2023 | AM6: 2000/1000 | AN6: 627 | AO6: 6 | AP6: 2 | AQ6: 0 | AR6: 0 | AS6: 0 | AT6: 205 | AU6: 57 | AV6: 78 | AW6: Sì | AX6: rif. Tab. C | AY6: 0 | AZ6: 2724 | BA6: 563/2-N,723-P
A7: Nuovo intervento | B7: Area Centro Sud | E7: 1 | F7: Sicilia/Calabria | G7: 563/2-N | H7: Dorsale Ionica - Tirrenica: HVDC Ionian | M7: 1 | O7: 1 | R7: 1 | T7: 1 | W7: 1 | Z7: Gruppo di opere | AA7: 4 | AB7: 4 | AC7: 100 | AD7: 0 | AE7: 0 | AF7: 0 | AG7: 0 | AH7: 0 | AI7: 2026 | AJ7: 2031 | AK7: 2035 | AL7: 2023 | AM7: 2000/1000 | AW7: Sì | AX7: rif. Tab. C | AY7: 0 | AZ7: 1410 | BA7: 563/1-N
A8: Nuovo intervento | B8: Area Centro Sud/Centro Nord | D8: 1 | E8: 1 | F8: Puglia/Molise/Abruzzo/ Marche/Emilia- Romagna | G8: 447-N | H8: Dorsale Adriatica: HVDC Foggia-Villanova-Fano-Forlì | M8: 1 | O8: 1 | R8: 1 | T8: 1 | W8: 1 | Z8: Gruppo di opere | AA8: 10 | AB8: 10 | AC8: 100 | AD8: 0 | AE8: 0 | AF8: 0 | AG8: 0 | AH8: 0 | AI8: 2024 | AJ8: 2028 | AK8: 2032/2036 | AL8: 2023 | AM8: 600/500 600/1000/2000 | AN8: 257 | AO8: 2 | AP8: 7 | AQ8: 11 | AR8: 0 | AS8: 0 | AT8: 257 | AU8: 24 | AV8: 1 | AW8: Sì | AX8: rif. Tab. C | AY8: 0 | AZ8: 2355 | BA8: 436-P,402-P
A9: Nuovo intervento | B9: Area Nord | C9: 1 | F9: Lombardia | G9: 172-N | H9: Nuovo elettrodotto 132 kV Cornegliano Laudense-Pieve Fissiraga | N9: 1 | U9: 1 | Y9: 1 | Z9: Linea | AA9: 3 | AB9: 3 | AC9: 100 | AD9: 0 | AE9: 0 | AF9: 0 | AG9: 0 | AH9: 0 | AI9: 2025 | AJ9: 2028 | AK9: 2030 | AL9: 2023 | AN9: 3 | AO9: 0 | AP9: 2 | AQ9: 0 | AR9: 0 | AS9: 0 | AT9: 0 | AU9: 0 | AV9: 0 | AW9: No | AY9: 0 | AZ9: 5.5
A10: Nuovo intervento | B10: Area Nord-Est | D10: 1 | F10: Veneto | G10: 263-N | H10: Incremento della trasformazione SE Villabona | N10: 1 | Y10: 1 | Z10: Stazione | AA10: 1 | AB10: 1 | AC10: 100 | AD10: 0 | AE10: 0 | AF10: 0 | AG10: 0 | AH10: 0 | AI10: 2023 | AJ10: 2026 | AK10: 2028 | AL10: 2023 | AN10: 0 | AO10: 0 | AP10: 0 | AQ10: 0 | AR10: 0 | AS10: 0 | AT10: 0 | AU10: 0 | AV10: 0 | AW10: No | AY10: 0 | AZ10: 4
A11: Nuovo intervento | B11: Area Centro-Nord | D11: 1 | F11: Emilia - Romagna | G11: 357-N | H11: Incremento magliatura area di Ravenna | N11: 1 | P11: 1 | Y11: 1 | Z11: Gruppo di opere | AA11: 3 | AB11: 3 | AC11: 100 | AD11: 0 | AE11: 0 | AF11: 0 | AG11: 0 | AH11: 0 | AI11: 2025 | AJ11: 2028 | AK11: 2030 | AL11: 2023 | AN11: 6 | AO11: 0 | AP11: 1 | AQ11: 1 | AR11: 0 | AS11: 0 | AT11: 5 | AU11: 0 | AV11: 0 | AW11: No | AY11: 0 | AZ11: 23
A12: Nuovo intervento | B12: Area Centro-Nord | D12: 1 | F12: Emilia Romagna | G12: 358-N | H12: Nuovo elettrodotto 132 kV “Rimini Condotti-Rimini Nord” | N12: 1 | X12: 1 | Y12: 1 | Z12: Linea | AA12: 1 | AB12: 1 | AC12: 100 | AD12: 0 | AE12: 0 | AF12: 0 | AG12: 0 | AH12: 0 | AI12: 2024 | AJ12: 2028 | AK12: 2032 | AL12: 2023 | AN12: 4 | AO12: 0 | AP12: 1 | AQ12: 0 | AR12: 0 | AS12: 0 | AT12: 0 | AU12: 0 | AV12: 0 | AW12: No | AY12: 0 | AZ12: 10
A13: Nuovo intervento | B13: Area Centro-Nord | D13: 1 | F13: Toscana | G13: 359-N | H13: Nuovo elettrodotto “Follonica-Follonica RT” | N13: 1 | X13: 1 | Y13: 1 | Z13: Linea | AA13: 1 | AB13: 1 | AC13: 100 | AD13: 0 | AE13: 0 | AF13: 0 | AG13: 0 | AH13: 0 | AI13: 2024 | AJ13: 2028 | AK13: 2032 | AL13: 2023 | AN13: 1 | AO13: 0 | AP13: 1 | AQ13: 0 | AR13: 0 | AS13: 0 | AT13: 0 | AU13: 0 | AV13: 0 | AW13: No | AY13: 0 | AZ13: 3
A14: Nuovo intervento | B14: Area Sicilia | E14: 1 | F14: Sicilia | G14: 633-N | H14: Incremento magliatura 150 kV tra Enna e Catania | M14: 1 | N14: 1 | Q14: 1 | T14: 1 | Y14: 1 | Z14: Gruppo di opere | AA14: 3 | AB14: 3 | AC14: 100 | AD14: 0 | AE14: 0 | AF14: 0 | AG14: 0 | AH14: 0 | AI14: 2026 | AJ14: 2029 | AK14: 2030 | AL14: 2023 | AN14: 1 | AO14: 0 | AP14: 0 | AQ14: 0 | AR14: 0 | AS14: 0 | AT14: 0 | AU14: 0 | AV14: 0 | AW14: No | AY14: 0 | AZ14: 3 | BA14: 609-P
A15: Nuovo intervento | B15: Area Sicilia | E15: 1 | F15: Sicilia | G15: 634-N | H15: Incremento magliatura CP Giardini | N15: 1 | U15: 1 | Y15: 1 | Z15: Gruppo di opere | AA15: 2 | AB15: 2 | AC15: 100 | AD15: 0 | AE15: 0 | AF15: 0 | AG15: 0 | AH15: 0 | AI15: 2026 | AJ15: 2030 | AK15: 2032 | AL15: 2023 | AN15: 2 | AO15: 0 | AP15: 0 | AQ15: 0 | AR15: 0 | AS15: 0 | AT15: 0 | AU15: 0 | AV15: 0 | AW15: No | AY15: 0 | AZ15: 4
AZ452: * stima del valore a vita intera comprensivo degli oneri finanziari

Sheet B - PdS23 Interv. P. Pre
C2: Distretto Territoriale | L2: Finalità intervento | P2: Obiettivi intervento | AA2: Stato avanzamento opere principali (PdS 2023) | AM2: Impatti in termini di km di territorio occupati
A3: Categoria | B3: Area Territoriale | C3: DTCS | D3: DTNO | E3: DTNE | F3: Regioni interessate | G3: Identificativo PdS | H3: Nome Intervento | I3: Identificativo PCI | J3: Identificativo TYNDP | K3: Identificativo RIP | L3: Decarbonizzazione | M3: Sicurezza e Resilienza | N3: Market efficiency | O3: Sostenibilità | P3: Congestioni INTRA | Q3: Congestioni INTER | R3: Connessione RTN | S3: Integrazione FER | T3: Integrazione RFI | U3: Interconnessioni | V3: Transizione energetica | W3: Resilienza | X3: Qualità del servizio | Y3: Tipo di Intervento | Z3: Numero opere incluse nell'intervento | AA3: Numero Totale Opere Principali | AB3: Fase 1 [%] | AC3: Fase 2 [%] | AD3: Fase 3 [%] | AE3: Fase 4 [%] | AF3: Fase 5 [%] | AG3: Completato [%] | AH3: Avvio attività | AI3: Avvio cantieri | AJ3: Completamento | AK3: Anno di pianificazione | AL3: Impatto in termini di aumento della capacità di interconnessione [MW] | AM3: Realizzazione [km] I22 | AN3: Realizzazione [km] I23 | AO3: Realizzazione [km] I24 | AP3: Dismissione [km] I22 | AQ3: Dismissione [km] I23 | AR3: Dismissione [km] I24 | AS3: Dismissione e Realizzazione [km] I22 | AT3: Dismissione e Realizzazione [km] I23 | AU3: Dismissione e Realizzazione [km] I24 | AV3: ACB 2.0 (Sì/No) | AW3: Identificazione delle principali categorie di beneficio | AX3: Investimento sostenuto [M€] | AY3: Investimento stimato* [M€] | AZ3: Rapporti di complementarietà con altri interventi | BA3: Note
A4: Intervento Piano precedente | B4: Area Sud | C4: 1 | F4: Abruzzo/Molise/Puglia | G4: 402-P | H4: Elettrodotto 380 kV Foggia – Villanova | J4: 127 | K4: - | L4: 1 | M4: 1 | N4: 1 | O4: 1 | P4: 1 | S4: 1 | V4: 1 | X4: 1 | Y4: Gruppo di opere | Z4: 7 | AA4: 4 | AB4: 0 | AC4: 0 | AD4: 25 | AE4: 0 | AF4: 0 | AG4: 75 | AJ4: 2028/2030 | AK4: 2005: Villanova-Gissi 2007: Gissi-Larino-Foggia | AM4: 132 | AN4: 8 | AP4: 8 | AQ4: 1 | AV4: Si | AW4: rif. Tab. C | AX4: 222 | AY4: 462 | AZ4: Altri interventi che impattano sulla capacità di scambio tra le zone Sud-CSud sono: l’elettrodotto 380 kV Montecorvino - Benevento (cod. PdS 506-P), l’elettrodotto 380 kV Aliano - Montecorvino (cod.PdS 546-P) e Nord Benevento (cod. PdS 553-P) | BA4: Per i dettagli dei benefici, si rimanda al PdS17
A5: Intervento Piano precedente | B5: Area Centro | C5: 1 | F5: Abruzzo/Marche | G5: 403-P | H5: Rete AAT/AT medio Adriatico | I5: - | J5: - | K5: - | M5: 1 | O5: 1 | R5: 1 | X5: 1 | Y5: Gruppo di opere | Z5: 4 | AA5: 4 | AB5: 0 | AC5: 25 | AD5: 25 | AE5: 0 | AF5: 25 | AG5: 25 | AJ5: 2034 | AK5: 2003 | AM5: 44 | AN5: 3 | AO5: 5 | AP5: 88 | AQ5: 2 | AR5: 4 | AV5: Si | AW5: rif. Tab. C | AX5: 2 | AY5: 42 | BA5: Per i dettagli dei benefici, si rimanda al PdS20
A6: Intervento Piano precedente | B6: Area Centro | C6: 1 | F6: Lazio | G6: 404-P | H6: Riassetto area metropolitana di Roma | I6: - | J6: - | K6: - | M6: 1 | O6: 1 | X6: 1 | Y6: Gruppo di opere | Z6: 9 | AA6: 7 | AB6: 0 | AC6: 0 | AD6: 100 | AE6: 0 | AF6: 0 | AG6: 0 | AJ6: 2035 | AK6: 2008 | AM6: 154 | AN6: 64 | AO6: 45 | AP6: 164 | AQ6: 56 | AR6: 38 | AS6: 20 | AT6: 14 | AU6: 4 | AV6: Si | AW6: rif. Tab. C | AX6: 120 | AY6: 491 | BA6: Per i dettagli dei benefici, si rimanda al PdS17
A7: Intervento Piano precedente | B7: Area Centro | C7: 1 | F7: Abruzzo/Molise | G7: 405-P | H7: Elettrodotto 150 kV Portocannone – S. Salvo Z.I. e nuovo smistamento | I7: - | J7: - | K7: - | M7: 1 | X7: 1 | Y7: Gruppo di opere | Z7: 3 | AA7: 3 | AB7: 0 | AC7: 0 | AD7: 0 | AE7: 33 | AF7: 0 | AG7: 67 | AJ7: 2024 | AK7: 2002 | AM7: 6 | AP7: 2 | AR7: 1 | AS7: 39 | AT7: 1 | AV7: Si | AW7: rif. Tab. C | AX7: 22 | AY7: 33 | BA7: Per i dettagli dei benefici, si rimanda al PdS19
A8: Intervento Piano precedente | B8: Area Centro | C8: 1 | F8: Abruzzo | G8: 407-P | H8: Sviluppi di rete sulla direttrice Villavalle – Popoli | I8: - | J8: - | K8: - | M8: 1 | O8: 1 | X8: 1 | Y8: Stazione | Z8: 1 | AA8: 1 | AB8: 0 | AC8: 100 | AD8: 0 | AE8: 0 | AF8: 0 | AG8: 0 | AH8: 2021 | AI8: 2024 | AJ8: 2035 | AK8: 2009 | AV8: No | AX8: 1 | AY8: 14
A9: Intervento Piano precedente | B9: Area Centro | C9: 1 | F9: Lazio | G9: 408-P | H9: Sviluppi di rete nell’area di Cassino | I9: - | J9: - | K9: - | M9: 1 | X9: 1 | Y9: Gruppo di opere | Z9: 6 | AA9: 6 | AB9: 67 | AC9: 0 | AD9: 0 | AE9: 16 | AF9: 0 | AG9: 16 | AJ9: 2035 | AK9: 2009 | AM9: 7 | AP9: 1 | AS9: 32 | AU9: 1 | AV9: Si | AW9: rif. Tab. C | AX9: 4 | AY9: 25 | BA9: Per i dettagli dei benefici, si rimanda al PdS19
A10: Intervento Piano precedente | B10: Area Centro | C10: 1 | F10: Lazio/Umbria | G10: 409-P | H10: Potenziamento della rete AT tra Terni e Roma | I10: - | J10: - | K10: - | M10: 1 | O10: 1 | R10: 1 | W10: 1 | X10: 1 | Y10: Gruppo di opere | Z10: 3 | AA10: 3 | AB10: 0 | AC10: 33 | AD10: 0 | AE10: 33 | AF10: 33 | AG10: 0 | AI10: 2019 | AJ10: 2035 | AK10: 2009 | AM10: 3 | AN10: 1 | AP10: 22 | AQ10: 1 | AR10: 1 | AV10: No | AX10: 11 | AY10: 23 | AZ10: Dipendenza da accordi con e-distribuzione per la realizzazione di stalli presso le Cabine Primarie
A11: Intervento Piano precedente | B11: Area Centro | C11: 1 | F11: Abruzzo/Molise | G11: 410-P | H11: Interventi sulla rete AT per la raccolta della produzione rinnovabile tra Abruzzo e Molise | I11: - | J11: - | K11: - | L11: 1 | M11: 1 | O11: 1 | S11: 1 | X11: 1 | Y11: Rimozione limitazioni linea | Z11: 2 | AA11: 2 | AB11: 0 | AC11: 100 | AD11: 0 | AE11: 0 | AF11: 0 | AG11: 0 | AH11: 2022 | AI11: 2025 | AJ11: 2033 | AK11: 2011 | AS11: 75 | AT11: 38 | AU11: 3 | AV11: No | AX11: 4 | AY11: 11
A12: Intervento Piano precedente | B12: Area Centro | C12: 1 | F12: Abruzzo/Lazio | G12: 411-P | H12: Interventi sulla rete AT per la raccolta della produzione rinnovabile in Abruzzo e Lazio | I12: - | J12: - | K12: - | L12: 1 | M12: 1 | O12: 1 | S12: 1 | X12: 1 | Y12: Gruppo di opere | Z12: 4 | AA12: 4 | AB12: 25 | AC12: 25 | AD12: 0 | AE12: 0 | AF12: 50 | AG12: 0 | AI12: 2023 | AJ12: 2035 | AK12: 2011 | AM12: 39 | AN12: 22 | AO12: 6 | AP12: 5 | AR12: 4 | AS12: 45 | AT12: 1 | AU12: 2 | AV12: Si | AW12: rif. Tab. C | AX12: 7 | AY12: 42 | BA12: Per i dettagli dei benefici, si rimanda al PdS21
A13: Intervento Piano precedente | B13: Area Centro | C13: 1 | F13: Campania/Molise | G13: 412-P | H13: Interventi sulla rete AT per la raccolta della produzione rinnovabile tra Campania e Molise | I13: - | J13: - | K13: - | L13: 1 | M13: 1 | O13: 1 | S13: 1 | X13: 1 | Y13: Rimozione limitazioni linea | Z13: 1 | AA13: 1 | AB13: 0 | AC13: 0 | AD13: 0 | AE13: 0 | AF13: 100 | AG13: 0 | AH13: 2021 | AI13: 2022 | AJ13: 2024 | AK13: 2012 | AS13: 24 | AT13: 5 | AU13: 1 | AV13: No | AX13: 2 | AY13: 24
A14: Intervento Piano precedente | B14: Area Centro | C14: 1 | F14: Molise | G14: 414-P | H14: Stazione 380 kV Rotello | I14: - | J14: - | K14: - | L14: 1 | M14: 1 | O14: 1 | S14: 1 | W14: 1 | X14: 1 | Y14: Gruppo di opere | Z14: 2 | AA14: 2 | AB14: 0 | AC14: 0 | AD14: 0 | AE14: 50 | AF14: 0 | AG14: 50 | AJ14: 2023 | AK14: 2011 | AM14: 6 | AV14: No | AX14: 2 | AY14: 3
A15: Intervento Piano precedente | B15: Area Centro | C15: 1 | F15: Lazio | G15: 416-P | H15: Stazione 380 kV Tuscania | I15: - | J15: - | K15: - | M15: 1 | X15: 1 | Y15: Stazione | Z15: 2 | AA15: 2 | AB15: 0 | AC15: 0 | AD15: 0 | AE15: 50 | AF15: 0 | AG15: 50 | AJ15: 2024 | AK15: 2011 | AM15: 9 | AV15: No | AX15: 3 | AY15: 9
A16: Intervento Piano precedente | B16: Area Centro | C16: 1 | F16: Lazio | G16: 418-P | H16: Riassetto rete AT Roma Sud – Latina - Garigliano | I16: - | J16: - | K16: - | M16: 1 | X16: 1 | Y16: Gruppo di opere | Z16: 5 | AA16: 4 | AB16: 50 | AC16: 25 | AD16: 0 | AE16: 0 | AF16: 0 | AG16: 25 | AJ16: 2031 | AK16: 2010 | AM16: 8 | AO16: 1 | AP16: 10 | AS16: 25 | AU16: 1 | AV16: No | AX16: 11 | AY16: 20
A17: Intervento Piano precedente | B17: Area Centro | C17: 1 | F17: Lazio | G17: 419-P | H17: Riassetto rete Roma Ovest - Roma Sud Ovest | I17: - | J17: - | K17: - | M17: 1 | O17: 1 | X17: 1 | Y17: Gruppo di opere | Z17: 3 | AA17: 3 | AB17: 33 | AC17: 33 | AD17: 0 | AE17: 0 | AF17: 33 | AG17: 0 | AI17: 2023 | AJ17: 2035 | AK17: 2010 | AM17: 4 | AN17: 4 | AO17: 2 | AP17: 1 | AQ17: 1 | AS17: 28 | AT17: 27 | AU17: 3 | AV17: No | AX17: 7 | AY17: 25
A18: Intervento Piano precedente | B18: Area Centro | C18: 1 | F18: Abruzzo | G18: 420-P | H18: Riassetto rete Teramo - Pescara | I18: - | J18: - | K18: - | M18: 1 | X18: 1 | Y18: Gruppo di opere | Z18: 4 | AA18: 3 | AB18: 0 | AC18: 33 | AD18: 67 | AE18: 0 | AF18: 0 | AG18: 0 | AJ18: 2035 | AK18: 2010 | AM18: 49 | AN18: 4 | AO18: 11 | AP18: 22 | AQ18: 1 | AR18: 6 | AV18: Si | AW18: rif. Tab. C | AX18: 10 | AY18: 66 | BA18: Per i dettagli dei benefici, si rimanda al PdS19
A19: Intervento Piano precedente | B19: Area Centro | C19: 1 | F19: Marche/Umbria/Abruzzo | G19: 421-P | H19: Razionalizzazione rete AT in Umbria | I19: - | J19: - | K19: - | L19: 1 | M19: 1 | O19: 1 | R19: 1 | S19: 1 | X19: 1 | Y19: Gruppo di opere | Z19: 4 | AA19: 4 | AB19: 0 | AC19: 25 | AD19: 50 | AE19: 25 | AF19: 0 | AG19: 0 | AI19: 2023 | AJ19: 2035 | AK19: 2002 | AM19: 70 | AN19: 6 | AO19: 10 | AP19: 54 | AQ19: 8 | AR19: 3 | AS19: 144 | AT19: 28 | AU19: 5 | AV19: Si | AW19: rif. Tab. C | AX19: 17 | AY19: 100
A20: Intervento Piano precedente | B20: Area Centro | C20: 1 | F20: Lazio | G20: 428-P | H20: Riassetto rete AT area Sud di Roma | I20: - | J20: - | K20: - | M20: 1 | O20: 1 | R20: 1 | X20: 1 | Y20: Gruppo di opere | Z20: 3 | AA20: 3 | AB20: 0 | AC20: 0 | AD20: 67 | AE20: 0 | AF20: 33 | AG20: 0 | AJ20: 2034 | AK20: 2013 | AM20: 16 | AO20: 1 | AP20: 9 | AR20: 1 | AS20: 37 | AU20: 6 | AV20: Si | AW20: rif. Tab. C | AX20: 4 | AY20: 35 | BA20: Per i dettagli dei benefici, si rimanda al PdS21
A21: Intervento Piano precedente | B21: Area Centro | C21: 1 | F21: Toscana/Umbria/Abruzzo/Marche | G21: 432-P | H21: Rimozione limitazioni sezione Centro Sud – Centro Nord | I21: - | J21: 33 | K21: - | L21: 1 | M21: 1 | N21: 1 | O21: 1 | Q21: 1 | S21: 1 | V21: 1 | X21: 1 | Y21: Gruppo di opere | Z21: 4 | AA21: 4 | AB21: 0 | AC21: 25 | AD21: 0 | AE21: 0 | AF21: 75 | AG21: 0 | AJ21: 2023/2026 | AK21: 2014 | AL21: 150 - 300 | AM21: 12 | AP21: 13 | AR21: 2 | AS21: 443 | AT21: 35 | AU21: 6 | AV21: Si | AW21: rif. Tab. C | AX21: 30 | AY21: 74 | BA21: Per i dettagli dei benefici, si rimanda al PdS20
A22: Intervento Piano precedente | B22: Area Centro | C22: 1 | F22: Abruzzo | G22: 433-P | H22: Rimozione derivazione rigida S. Angelo | I22: - | J22: - | K22: - | M22: 1 | X22: 1 | Y22: Linea | Z22: 1 | AA22: 1 | AB22: 100 | AC22: 0 | AD22: 0 | AE22: 0 | AF22: 0 | AG22: 0 | AH22: 2022 | AI22: 2027 | AJ22: 2035 | AK22: 2017 | AS22: 4 | AT22: 3 | AU22: 1 | AV22: No | AX22: <1 | AY22: 2
A23: Intervento Piano precedente | B23: Area Centro | C23: 1 | F23: Abruzzo | G23: 434-P | H23: Nuovo collegamento AT “SSE Carrito FS – CP Collarmele” | I23: - | J23: - | K23: - | M23: 1 | O23: 1 | T23: 1 | X23: 1 | Y23: Gruppo di opere | Z23: 2 | AA23: 2 | AB23: 50 | AC23: 50 | AD23: 0 | AE23: 0 | AF23: 0 | AG23: 0 | AH23: 2023 | AI23: 2025 | AJ23: 2035 | AK23: 2018 | AP23: 16 | AR23: 2 | AV23: No | AX23: <1 | AY23: 12
A24: Intervento Piano precedente | B24: Area Centro | C24: 1 | F24: Abruzzo/Lazio | G24: 435-P | H24: Nuovo collegamento AT “SSE Carsoli FS - CP Carsoli” | I24: - | J24: - | K24: - | M24: 1 | O24: 1 | T24: 1 | X24: 1 | Y24: Gruppo di opere | Z24: 3 | AA24: 3 | AB24: 67 | AC24: 33 | AD24: 0 | AE24: 0 | AF24: 0 | AG24: 0 | AH24: 2023 | AI24: 2025 | AJ24: 2035 | AK24: 2018 | AM24: 1 | AS24: 1 | AU24: 1 | AV24: No | AX24: <1 | AY24: 9
A25: Intervento Piano precedente | B25: Area Centro | C25: 1 | F25: Lazio | G25: 437-P (e1 407-S) | H25: Richiusura CP Leonessa | I25: - | J25: - | K25: - | M25: 1 | O25: 1 | X25: 1 | Y25: Linea | Z25: 2 | AA25: 2 | AB25: 100 | AC25: 0 | AD25: 0 | AE25: 0 | AF25: 0 | AG25: 0 | AH25: 2024 | AI25: 2027 | AJ25: 2035 | AK25: 2013 | AM25: 1 | AS25: 26 | AT25: 10 | AV25: No | AX25: <1 | AY25: 7
A26: Intervento Piano precedente | B26: Area Centro | C26: 1 | F26: Lazio | G26: 438-P | H26: Risoluzione derivazione rigida Trelleborg | I26: - | J26: - | K26: - | M26: 1 | O26: 1 | X26: 1 | Y26: Gruppo di opere | Z26: 2 | AA26: 2 | AB26: 100 | AC26: 0 | AD26: 0 | AE26: 0 | AF26: 0 | AG26: 0 | AH26: 2026 | AI26: 2033 | AJ26: 2035 | AK26: 2017 | AM26: 1 | AV26: No | AX26: <1 | AY26: 13
A27: Intervento Piano precedente | B27: Area Centro | C27: 1 | F27: Lazio/Toscana | G27: 439-P | H27: Riassetto rete AT nell'area di Chiusi | I27: - | J27: - | K27: - | O27: 1 | T27: 1 | Y27: Gruppo di opere | Z27: 2 | AA27: 2 | AB27: 100 | AC27: 0 | AD27: 0 | AE27: 0 | AF27: 0 | AG27: 0 | AH27: 2024 | AI27: 2027 | AJ27: 2035 | AK27: 2019 | AM27: 2 | AP27: 23 | AQ27: 3 | AR27: 1 | AV27: No | AX27: <1 | AY27: 3
A28: Intervento Piano precedente | B28: Area Centro | C28: 1 | F28: Lazio | G28: 440-P | H28: Nuovo elettrodotto 150 kV "S. Virginia CP - Cisterna CP" | I28: - | J28: - | K28: - | M28: 1 | O28: 1 | X28: 1 | Y28: Linea | Z28: 3 | AA28: 3 | AB28: 100 | AC28: 0 | AD28: 0 | AE28: 0 | AF28: 0 | AG28: 0 | AH28: 2025 | AI28: 2033 | AJ28: 2035 | AK28: 2019 | AM28: 5 | AO28: 1 | AV28: No | AX28: <1 | AY28: 14
A29: Intervento Piano precedente | B29: Area Centro | C29: 1 | F29: Marche | G29: 441-P | H29: Razionalizzazione rete AT Costa Marchigiana | I29: - | J29: - | K29: - | M29: 1 | X29: 1 | Y29: Gruppo di opere | Z29: 3 | AA29: 2 | AB29: 100 | AC29: 0 | AD29: 0 | AE29: 0 | AF29: 0 | AG29: 0 | AH29: 2025 | AI29: 2033 | AJ29: 2035 | AK29: 2020 | AM29: 6 | AO29: 1 | AP29: 79 | AR29: 5 | AV29: No | AX29: <1 | AY29: 6
A30: Intervento Piano precedente | B30: Area Centro | C30: 1 | F30: Marche | G30: 442-P | H30: Razionalizzazione rete AT S. Benedetto del Tronto | I30: - | J30: - | K30: - | M30: 1 | T30: 1 | X30: 1 | Y30: Gruppo di opere | Z30: 4 | AA30: 3 | AB30: 100 | AC30: 0 | AD30: 0 | AE30: 0 | AF30: 0 | AG30: 0 | AH30: 2023 | AI30: 2033 | AJ30: 2035 | AK30: 2020 | AM30: 7 | AO30: 1 | AP30: 6 | AR30: 2 | AV30: No | AX30: <1 | AY30: 11
A31: Intervento Piano precedente | B31: Area Centro | C31: 1 | F31: Marche/Umbria | G31: 443-P | H31: Razionalizzazione rete AT Appennino Umbro-Marchigiano | I31: - | J31: - | K31: - | M31: 1 | T31: 1 | X31: 1 | Y31: Gruppo di opere | Z31: 3 | AA31: 2 | AB31: 100 | AC31: 0 | AD31: 0 | AE31: 0 | AF31: 0 | AG31: 0 | AH31: 2026 | AI31: 2033 | AJ31: 2035 | AK31: 2020 | AM31: 4 | AN31: 4 | AO31: 1 | AP31: 69 | AQ31: 12 | AR31: 4 | AV31: No | AX31: <1 | AY31: 8
A32: Intervento Piano precedente | B32: Area Centro | C32: 1 | F32: Abruzzo | G32: 444-P | H32: Stazione 220/132 kV Capannelle | I32: - | J32: - | K32: - | M32: 1 | O32: 1 | T32: 1 | X32: 1 | Y32: Gruppo di opere | Z32: 3 | AA32: 2 | AB32: 100 | AC32: 0 | AD32: 0 | AE32: 0 | AF32: 0 | AG32: 0 | AH32: 2024 | AI32: 2033 | AJ32: 2035 | AK32: 2020 | AM32: 7 | AN32: 3 | AP32: 13 | AR32: 1 | AV32: No | AX32: 0 | AY32: 13
A33: Intervento Piano precedente | B33: Area Centro | C33: 1 | F33: Lazio | G33: 445-P | H33: Rimozione limitazioni el. 150 kV Vignaturci – S. Lucia | I33: - | J33: - | K33: - | M33: 1 | S33: 1 | X33: 1 | Y33: Rimozione limitazioni linea | Z33: 1 | AA33: 1 | AB33: 100 | AC33: 0 | AD33: 0 | AE33: 0 | AF33: 0 | AG33: 0 | AH33: 2024 | AI33: 2028 | AJ33: 2030 | AK33: 2021 | AS33: 4 | AV33: No | AX33: <1 | AY33: 3
A34: Intervento Piano precedente | B34: Area Centro | C34: 1 | F34: Lazio | G34: 446-P | H34: Riassetto rete fra SE Roma Nord e CP A. Smist. Est | I34: - | J34: - | K34: - | M34: 1 | S34: 1 | X34: 1 | Y34: Gruppo di opere | Z34: 3 | AA34: 2 | AB34: 100 | AC34: 0 | AD34: 0 | AE34: 0 | AF34: 0 | AG34: 0 | AH34: 2024 | AI34: 2028 | AJ34: 2035 | AK34: 2020 | AM34: 1 | AN34: 1 | AO34: 1 | AP34: 11 | AQ34: 7 | AR34: 3 | AV34: No | AX34: <1 | AY34: 2
A35: Intervento Piano precedente | B35: Area Sud | C35: 1 | F35: Calabria, Sicilia | G35: 501-P | H35: Elettrodotto 380 kV Sorgente-Rizziconi | I35: - | J35: - | K35: - | L35: 1 | M35: 1 | N35: 1 | O35: 1 | Q35: 1 | S35: 1 | X35: 1 | Y35: Gruppo di opere | Z35: 3 | AA35: 0 | AB35: 33 | AC35: 0 | AD35: 67 | AE35: 0 | AF35: 0 | AG35: 0 | AJ35: 2027 | AK35: 2003 | AM35: 15 | AN35: 5 | AO35: 6 | AP35: 93 | AQ35: 55 | AR35: 8 | AV35: No | AX35: 809 | AY35: 855 | AZ35: 555-N Nuovo cavo 380 kV Bolano-Paradiso | BA35: Per le opere completate si rimanda all'Avanzamento del Piano di Sviluppo 2021
A36: Intervento Piano precedente | B36: Area Sud | C36: 1 | F36: Basilicata | G36: 503-P | H36: Riassetto rete AT nell’area di Potenza | I36: - | J36: - | K36: - | L36: 1 | M36: 1 | O36: 1 | S36: 1 | X36: 1 | Y36: Gruppo di opere | Z36: 4 | AA36: 4 | AB36: 0 | AC36: 50 | AD36: 0 | AE36: 0 | AF36: 0 | AG36: 50 | AJ36: 2035 | AK36: 2010 | AM36: 21 | AO36: 2 | AP36: 26 | AR36: 1 | AV36: No | AX36: <1 | AY36: 7
A37: Intervento Piano precedente | B37: Area Sud | C37: 1 | F37: Campania | G37: 504-P | H37: Riassetto rete AT penisola Sorrentina | I37: - | J37: - | K37: RGIP 2017 | M37: 1 | O37: 1 | R37: 1 | X37: 1 | Y37: Gruppo di opere | Z37: 16 | AA37: 13 | AB37: =1/13*100 -> 7.692307692 | AC37: =2/13*100 -> 15.38461538 | AD37: =2/13*100 -> 15.38461538 | AF37: =2/13*100 -> 15.38461538 | AG37: =6/13*100 -> 46.15384615 | AJ37: 2032 | AK37: 2010 | AM37: 90 | AN37: 35 | AO37: 7 | AP37: 84 | AQ37: 29 | AR37: 8 | AV37: Si | AW37: rif. Tab. C | AX37: 78 | AY37: 208 | BA37: Per i dettagli dei benefici, si rimanda al PdS17
A38: Intervento Piano precedente | B38: Area Sud | C38: 1 | F38: Campania/Puglia | G38: 505-P | H38: Stazioni 380/150 kV e relativi raccordi alla rete AT per la raccolta di produzione da fonte rinnovabile: rinforzi rete AAT e AT nell’area tra Foggia e Benevento | I38: - | J38: 127 | K38: - | L38: 1 | M38: 1 | N38: 1 | O38: 1 | P38: 1 | S38: 1 | V38: 1 | X38: 1 | Y38: Gruppo di opere | Z38: 9 | AA38: 9 | AD38: =4/9*100 -> 44.44444444 | AF38: =1/9*100 -> 11.11111111 | AG38: =4/9*100 -> 44.44444444 | AJ38: 2030 | AK38: 2007 | AM38: 49 | AN38: 27 | AO38: 1 | AP38: 5 | AR38: 1 | AV38: Si | AW38: rif. Tab. C | AX38: 156 | AY38: 209 | BA38: Per i dettagli dei benefici, si rimanda al PdS17
A39: Intervento Piano precedente | B39: Area Sud | C39: 1 | F39: Campania | G39: 506-P | H39: Elettrodotto 380 kV Montecorvino – Avellino Nord – Benevento II | I39: - | J39: 1059 | K39: RGIP 2017 | L39: 1 | M39: 1 | N39: 1 | O39: 1 | P39: 1 | S39: 1 | V39: 1 | X39: 1 | Y39: Gruppo di opere | Z39: 6 | AA39: 5 | AB39: 0 | AC39: 80 | AD39: 0 | AE39: 0 | AF39: 0 | AG39: 20 | AJ39: 2028/2029 | AK39: 2004 | AL39: 200 S/CS - 900 S/CAL | AM39: 78 | AN39: 25 | AO39: 5 | AP39: 54 | AQ39: 35 | AR39: 1 | AS39: 71 | AT39: 21 | AU39: 2 | AV39: Si | AW39: rif. Tab. C | AX39: 76 | AY39: 319 | AZ39: 723/E-P HVDC Continente – Sicilia – Sardegna 546-P El. 380 kV Aliano – Montecorvino 505-P El. 380 kV Deliceto – Bisaccia 528-P El. 150 kV Goleto – Avellino N.
A40: Intervento Piano precedente | B40: Area Sud | C40: 1 | F40: Basilicata/Calabria | G40: 509-P | H40: Riassetto rete nord Calabria | I40: - | J40: 1059 | K40: - | L40: 1 | M40: 1 | N40: 1 | O40: 1 | P40: 1 | S40: 1 | V40: 1 | X40: 1 | Y40: Gruppo di opere | Z40: 12 | AA40: 11 | AC40: =1/11*100 -> 9.090909091 | AD40: =3/11*100 -> 27.27272727 | AE40: =1/11*100 -> 9.090909091 | AG40: =6/11*100 -> 54.54545455 | AJ40: 2030 | AK40: 2007 | AM40: 33 | AN40: 8 | AO40: 1 | AP40: 101 | AQ40: 59 | AR40: 1 | AV40: Si | AW40: rif. Tab. C | AX40: 165 | AY40: 203 | BA40: Per i dettagli dei benefici, si rimanda al PdS17
A41: Intervento Piano precedente | B41: Area Sud | C41: 1 | F41: Campania/Puglia/Basilicata/Calabria | G41: 510-P | H41: Stazioni 380/150 kV e relativi raccordi alla rete AT per la raccolta di produzione da fonte rinnovabile nel Sud | I41: - | J41: - | K41: - | L41: 1 | M41: 1 | O41: 1 | S41: 1 | X41: 1 | Y41: Gruppo di opere | Z41: 12 | AA41: 12 | AB41: =1/12*100 -> 8.333333333 | AC41: 0 | AD41: =2/12*100 -> 16.66666667 | AE41: =2/12*100 -> 16.66666667 | AF41: 0 | AG41: =7/12*100 -> 58.33333333 | AJ41: 2035 | AK41: 2008 | AM41: 31 | AN41: 4 | AO41: 3 | AP41: 1 | AR41: 1 | AV41: No | AX41: 8 | AY41: 33 | BA41: - Il totale investimento sostenuto si riferisce alla somma dei 4 Cluster. Così suddiviso: Cluster 1: <1 Cluster 2: 6 Cluster 3: 1 Cluster 4: ricompreso in 521 - P - '- Il totale investimento stimato si riferisce alla somma dei 4 Cluster. Così suddiviso: Cluster 1: 6 Cluster 2: 15 Cluster 3: 12 Cluster 4: ved. 521 - P
A42: Intervento Piano precedente | B42: Area Sud | C42: 1 | F42: Campania | G42: 511-P | H42: Stazione 380 kV S. Sofia | I42: - | J42: - | K42: - | M42: 1 | O42: 1 | R42: 1 | X42: 1 | Y42: Gruppo di opere | Z42: 6 | AA42: 6 | AC42: 30 | AE42: 20 | AG42: 50 | AJ42: 2035 | AK42: 2002 | AM42: 31 | AO42: 12 | AP42: 39 | AQ42: 5 | AR42: 10 | AV42: Si | AW42: rif. Tab. C | AX42: 25 | AY42: 74 | BA42: Per i dettagli dei benefici, si rimanda al PdS17
A43: Intervento Piano precedente | B43: Area Sud | C43: 1 | F43: Puglia | G43: 512-P | H43: Stazione 380 - 150 kV di Palo del Colle | I43: - | J43: - | K43: - | M43: 1 | O43: 1 | X43: 1 | Y43: Gruppo di opere | Z43: 5 | AA43: 5 | AC43: 20 | AD43: 40 | AG43: 40 | AJ43: 2034 | AK43: 2007 | AM43: 13 | AP43: 4 | AR43: 2 | AS43: 38 | AT43: 1 | AU43: 1 | AV43: Si | AW43: rif. Tab. C | AX43: 46 | AY43: 78 | BA43: Per i dettagli dei benefici, si rimanda al PdS17
A44: Intervento Piano precedente | B44: Area Sud | C44: 1 | F44: Campania | G44: 514-P | H44: Riassetto rete a 220 kV città di Napoli | I44: - | J44: - | K44: RGIP 2017 | M44: 1 | O44: 1 | X44: 1 | Y44: Gruppo di opere | Z44: 5 | AA44: 5 | AC44: 20 | AF44: 20 | AG44: 60 | AJ44: 2032 | AK44: 2008 | AM44: 11 | AO44: 6 | AP44: 33 | AQ44: 4 | AR44: 10 | AS44: 7 | AT44: 1 | AU44: 5 | AV44: Si | AW44: rif. Tab. C | AX44: 146 | AY44: 159 | BA44: - Per i dettagli delle attività concluse si rimnda ai Piani di Sviluppo Precedenti -Per i dettagli dei benefici, si rimanda al PdS 2017
A45: Intervento Piano precedente | B45: Area Sud | C45: 1 | F45: Campania | G45: 515-P | H45: Stazione 220 kV Maddaloni | I45: - | J45: - | K45: - | M45: 1 | X45: 1 | Y45: Stazione | Z45: 1 | AA45: 1 | AC45: 100 | AI45: 2032 | AJ45: 2035 | AK45: 2006 | AV45: No | AX45: 4 | AY45: 10
A46: Intervento Piano precedente | B46: Area Sud | C46: 1 | F46: Campania/Lazio | G46: 517-P | H46: Interventi sulla rete AT per la raccolta della produzione rinnovabile tra Lazio e Campania | I46: - | J46: - | K46: - | L46: 1 | M46: 1 | O46: 1 | S46: 1 | X46: 1 | Y46: Rimozione limitazioni linea | Z46: 3 | AA46: 2 | AG46: 100 | AJ46: 2028 | AK46: 2012 | AS46: 61 | AT46: 2 | AU46: 3 | AV46: No | AX46: 5 | AY46: 6
A47: Intervento Piano precedente | B47: Area Sud | C47: 1 | F47: Campania | G47: 518-P | H47: Interventi sulla rete AT per la raccolta della produzione rinnovabile in Campania | I47: - | J47: - | K47: - | L47: 1 | M47: 1 | O47: 1 | S47: 1 | X47: 1 | Y47: Gruppo di opere | Z47: 9 | AA47: 8 | AC47: 10 | AE47: 10 | AG47: 80 | AJ47: 2035 | AK47: 2008 | AM47: 18 | AO47: 8 | AP47: 15 | AQ47: 4 | AR47: 1 | AS47: 159 | AT47: 39 | AU47: 105 | AV47: Si | AW47: rif. Tab. C | AX47: 27 | AY47: 40 | BA47: - Il totale investimento sostenuto si riferisce alla somma dei 4 Cluster. Così suddiviso: Cluster 1: 12 Cluster 3: 5 Cluster 4: 10 '- Il totale investimento stimato si riferisce alla somma dei 4 Cluster. Così suddiviso: Cluster 1: 13 Cluster 3: 14 Cluster 4: 13 - Per i dettagli dei benefici si rimanda al PdS 2019
A48: Intervento Piano precedente | B48: Area Sud | C48: 1 | F48: Puglia | G48: 519-P | H48: Interventi sulla rete AT per la raccolta della produzione rinnovabile in Puglia | I48: - | J48: - | K48: - | L48: 1 | M48: 1 | O48: 1 | S48: 1 | X48: 1 | Y48: Gruppo di opere | Z48: 2 | AA48: 1 | AC48: 100 | AJ48: 2032 | AK48: 2008 | AS48: 247 | AT48: 45 | AU48: 3 | AV48: Si | AW48: rif. Tab. C | AX48: 9 | AY48: 43 | BA48: Per i dettagli dei benefici si rimanda al PdS 2017
A49: Intervento Piano precedente | B49: Area Sud | C49: 1 | F49: Basilicata/Puglia | G49: 520-P | H49: Interventi sulla rete AT per la raccolta della produzione rinnovabile in Basilicata | I49: - | J49: - | K49: - | L49: 1 | M49: 1 | O49: 1 | S49: 1 | X49: 1 | Y49: Gruppo di opere | Z49: 6 | AA49: 4 | AC49: 25 | AE49: 25 | AG49: 50 | AJ49: 2027 | AK49: 2009 | AM49: 41 | AN49: 2 | AO49: 3 | AP49: 41 | AQ49: 2 | AR49: 3 | AS49: 163 | AT49: 70 | AU49: 1 | AV49: Si | AW49: rif. Tab. C | AX49: 22 | AY49: 44 | BA49: - Il totale investimento sostenuto si riferisce alla somma dei 3 Cluster. Così suddiviso: Cluster 1: 17 Cluster 3: 5 '- Il totale investimento stimato si riferisce alla somma dei 3 Cluster. Così suddiviso: Cluster 1: 29 Cluster 3: 15 Per i dettagli dei benefici, si rimanda al PdS 18 (Cluster 1) e al PdS 19 (Cluster 2)
A50: Intervento Piano precedente | B50: Area Sud | C50: 1 | F50: Calabria | G50: 521-P | H50: Interventi sulla rete AT per la raccolta della produzione rinnovabile in Calabria | I50: - | J50: - | K50: - | L50: 1 | M50: 1 | O50: 1 | S50: 1 | X50: 1 | Y50: Gruppo di opere | Z50: 8 | AA50: 7 | AC50: 14 | AD50: 14 | AG50: 72 | AJ50: 2033 | AK50: 2008 | AM50: 48 | AN50: 4 | AO50: 1 | AP50: 83 | AQ50: 5 | AR50: 4 | AS50: 59 | AU50: 1 | AV50: Si | AW50: rif. Tab. C | AX50: =8+15+9 -> 32 | AY50: =11+50+9 -> 70 | AZ50: Dipendenza da accordi con e-distribuzione per la rimozione delle limitazioni presso le Cabine Primarie | BA50: Per i dettagli dei benefici, si rimanda al PdS 2019
A51: Intervento Piano precedente | B51: Area Sud | C51: 1 | F51: Puglia | G51: 523-P | H51: Elettrodotto 150 kV Sural – Taranto Ovest | I51: - | J51: - | K51: - | M51: 1 | X51: 1 | Y51: Rimozione limitazioni linea | Z51: 2 | AA51: 2 | AF51: 50 | AG51: 50 | AJ51: 2023 | AK51: 2008 | AS51: 20 | AU51: 1 | AV51: No | AX51: 3 | AY51: 5 | AZ51: Dipendenza da accordi con e-distribuzione per la rimozione delle limitazioni presso le Cabine Primarie
A52: Intervento Piano precedente | B52: Area Sud | C52: 1 | F52: Calabria | G52: 525-P | H52: Rinforzi rete AT Calabria centrale ionica | I52: - | J52: - | K52: - | L52: 1 | O52: 1 | S52: 1 | Y52: Gruppo di opere | Z52: 1 | AA52: 1 | AD52: 100 | AI52: 2026 | AJ52: 2029 | AK52: 2010 | AM52: 8 | AP52: 1 | AV52: No | AX52: <1 | AY52: 7
A53: Intervento Piano precedente | B53: Area Sud | C53: 1 | F53: Puglia | G53: 526-P | H53: Elettrodotto 150 kV Noci – Martina Franca | I53: - | J53: - | K53: - | M53: 1 | O53: 1 | R53: 1 | X53: 1 | Y53: Linea | Z53: 1 | AA53: 1 | AD53: 100 | AI53: 2025 | AJ53: 2028 | AK53: 2012 | AM53: 21 | AN53: 18 | AP53: 30 | AV53: Si | AW53: rif. Tab. C | AX53: <1 | AY53: 41
A54: Intervento Piano precedente | B54: Area Sud | C54: 1 | F54: Campania | G54: 528-P | H54: Elettrodotto 150 kV Goleto – Avellino N. | I54: - | J54: - | K54: - | L54: 1 | O54: 1 | S54: 1 | Y54: Gruppo di opere | Z54: 3 | AA54: 2 | AB54: 50 | AD54: 50 | AH54: 2020 | AI54: 2025 | AJ54: 2030 | AK54: 2013 | AM54: 29 | AP54: 70 | AQ54: 23 | AR54: 5 | AS54: 12 | AT54: 5 | AV54: No | AX54: <1 | AY54: 23
A55: Intervento Piano precedente | B55: Area Sud | C55: 1 | F55: Puglia | G55: 529-P | H55: Raccordi a 150 kV Brindisi Sud | I55: - | J55: - | K55: - | L55: 1 | O55: 1 | S55: 1 | Y55: Linea | Z55: 1 | AA55: 1 | AB55: 0 | AC55: 100 | AD55: 0 | AE55: 0 | AF55: 0 | AG55: 0 | AH55: 2021 | AI55: 2027 | AJ55: 2029 | AK55: 2013 | AM55: 5 | AP55: 7 | AQ55: 1 | AV55: No | AX55: 2 | AY55: 4
A56: Intervento Piano precedente | B56: Area Sud | C56: 1 | F56: Campania | G56: 530-P | H56: Stazione 380 kV S. Maria Capua Vetere | I56: - | J56: - | K56: - | M56: 1 | X56: 1 | Y56: Linea | Z56: 1 | AA56: 1 | AC56: 100 | AH56: 2021 | AI56: 2025 | AJ56: 2028 | AK56: 2013 | AM56: 1 | AP56: 1 | AV56: No | AX56: <1 | AY56: 7
A57: Intervento Piano precedente | B57: Area Sud | C57: 1 | F57: Campania | G57: 531-P | H57: Nuovo elettrodotto 150 kV “SSE Benevento FS – CP Benevento Ind.” | I57: - | J57: - | K57: - | L57: 1 | O57: 1 | S57: 1 | T57: 1 | Y57: Linea | Z57: 1 | AA57: 1 | AB57: 0 | AC57: 100 | AD57: 0 | AE57: 0 | AF57: 0 | AG57: 0 | AH57: 2023 | AI57: 2027 | AJ57: 2029 | AK57: 2016 | AM57: 7 | AO57: 3 | AV57: No | AX57: <1 | AY57: 14 | AZ57: 506-P Montecorvino-Benevento
A58: Intervento Piano precedente | B58: Area Sud | C58: 1 | F58: Basilicata | G58: 532-P | H58: Interventi sulla rete AT nell’area tra le province di Potenza e Matera | I58: - | J58: - | K58: - | L58: 1 | O58: 1 | S58: 1 | Y58: Linea | Z58: 2 | AA58: 2 | AB58: 100 | AH58: 2025 | AI58: 2029 | AJ58: 2032 | AK58: 2016 | AM58: 20 | AN58: 12 | AV58: No | AX58: <1 | AY58: 13
A59: Intervento Piano precedente | B59: Area Sud | C59: 1 | F59: Campania | G59: 533-P | H59: Interventi sulla rete AT nell’area tra le province di Napoli e Caserta | I59: - | J59: - | K59: - | M59: 1 | O59: 1 | X59: 1 | Y59: Gruppo di opere | Z59: 5 | AA59: 4 | AB59: 25 | AC59: 50 | AG59: 25 | AI59: 2025 | AJ59: 2029 | AK59: 2016 | AM59: 10 | AO59: 1 | AP59: 76 | AQ59: 7 | AR59: 15 | AS59: 1 | AV59: Si | AW59: rif. Tab. C | AX59: 8 | AY59: 26 | AZ59: -Soluzione connessione CP Suio - Acquisto in RTN porzione di rete esistente
A60: Intervento Piano precedente | B60: Area Sud | C60: 1 | F60: Puglia/Molise | G60: 534-P (e1 530-P) | H60: Direttrice 150 kV “SE Foggia – SSE Termoli” | I60: - | J60: - | K60: - | L60: 1 | O60: 1 | S60: 1 | T60: 1 | Y60: Rimozione limitazioni linea | Z60: 2 | AA60: 2 | AB60: 50 | AC60: 50 | AH60: 2021 | AI60: 2026 | AJ60: 2030 | AK60: 2016 | AS60: 93 | AT60: 1 | AU60: 4 | AV60: Si | AW60: rif. Tab. C | AX60: <1 | AY60: 29
A61: Intervento Piano precedente | B61: Area Sud | C61: 1 | F61: Puglia | G61: 535-P | H61: Interventi sulla rete AT per la raccolta di energia rinnovabile nell’area tra le province di Foggia e Barletta | I61: - | J61: - | K61: - | L61: 1 | O61: 1 | S61: 1 | Y61: Gruppo di opere | Z61: 1 | AA61: 1 | AB61: 100 | AH61: 2027 | AI61: 2030 | AJ61: 2032 | AK61: 2017 | AM61: 19 | AO61: 1 | AV61: Si | AW61: rif. Tab. C | AX61: 24 | AY61: 51 | AZ61: Possibili acquisizioni di porzioni di rete AT già esistenti
A62: Intervento Piano precedente | B62: Area Sud | C62: 1 | F62: Campania | G62: 536-P (e1 516-P) | H62: Interconnessione a 150 kV isola di Ischia | I62: - | J62: - | K62: - | M62: 1 | O62: 1 | X62: 1 | Y62: Gruppo di opere | Z62: 2 | AA62: 2 | AB62: 100 | AH62: 2023 | AI62: 2026 | AJ62: 2029 | AK62: 2009 | AM62: 25 | AN62: 5 | AO62: 1 | AS62: 22 | AT62: 5 | AU62: 2 | AV62: Si | AW62: rif. Tab. C | AX62: <1 | AY62: 90 | AZ62: Attività ricompresa in PdS precedenti all'interno dell'intervento 516-P. Piano Resilienza
A63: Intervento Piano precedente | B63: Area Sud | C63: 1 | F63: Campania | G63: 537-P | H63: Elettrodotto 220 kV Arenella – Colli Aminei | I63: - | J63: - | K63: - | M63: 1 | X63: 1 | Y63: Rimozione limitazioni linea | Z63: 1 | AA63: 1 | AD63: 100 | AI63: 2026 | AJ63: 2030 | AK63: 2018 | AM63: 3 | AN63: 1 | AO63: 2 | AP63: 2 | AQ63: 2 | AR63: 1 | AV63: No | AX63: <1 | AY63: 9 | AZ63: Riassetto rete a 220 kV città di Napoli (514 - P)
A64: Intervento Piano precedente | B64: Area Sud | C64: 1 | F64: Puglia | G64: 538-P | H64: Stazione 380/150 kV Deliceto | I64: - | J64: - | K64: - | L64: 1 | S64: 1 | Y64: Stazione | Z64: 1 | AA64: 1 | AF64: 100 | AI64: 2021 | AJ64: 2024 | AK64: 2018 | AV64: No | AX64: 2 | AY64: 5 | BA64: Non presenti impatti territoriali: intervento relativo a sole aree di stazione
A65: Intervento Piano precedente | B65: Area Sud | C65: 1 | F65: Puglia | G65: 539-P | H65: Stazione 380/150 kV Galatina | I65: - | J65: - | K65: - | L65: 1 | M65: 1 | S65: 1 | X65: 1 | Y65: Stazione | Z65: 1 | AA65: 1 | AE65: 100 | AI65: 2023 | AJ65: 2024 | AK65: 2018 | AV65: No | AX65: <1 | AY65: 2 | BA65: Non presenti impatti territoriali: intervento relativo a sole aree di stazione
A66: Intervento Piano precedente | B66: Area Sud | C66: 1 | F66: Campania | G66: 540-P | H66: Stazione 150 kV Tanagro | I66: - | J66: - | K66: - | L66: 1 | M66: 1 | S66: 1 | X66: 1 | Y66: Stazione | Z66: 1 | AA66: 1 | AC66: 100 | AH66: 2023 | AI66: 2024 | AJ66: 2025 | AK66: 2018 | AV66: No | AX66: <1 | AY66: 5 | AZ66: Sono in corso valutazioni per l'acquisizione in ambito RTN della parte AT dell'impianto Tanagro | BA66: Non presenti impatti territoriali: intervento relativo a sole aree di stazione
A67: Intervento Piano precedente | B67: Area Sud | C67: 1 | F67: Campania | G67: 541-P | H67: Stazione 150 kV Bussento | I67: - | J67: - | K67: - | M67: 1 | N67: 1 | X67: 1 | Y67: Gruppo di opere | Z67: 2 | AA67: 2 | AC67: 100 | AH67: 2023 | AI67: 2024 | AJ67: 2025 | AK67: 2018 | AV67: No | AX67: 1 | AY67: 5 | BA67: Non presenti impatti territoriali: intervento relativo a sole aree di stazione
A68: Intervento Piano precedente | B68: Area Sud | C68: 1 | F68: Basilicata/Calabria | G68: 542-P | H68: Sviluppi rete AT Calabria Nord Ionica | I68: - | J68: - | K68: - | M68: 1 | X68: 1 | Y68: Gruppo di opere | Z68: 5 | AA68: 5 | AB68: 80 | AG68: 20 | AJ68: 2032 | AK68: 2018 | AL68: 300 | AM68: 9 | AN68: 1 | AO68: 1 | AP68: 5 | AS68: 118 | AT68: 30 | AU68: 11 | AV68: Si | AW68: rif. Tab. C | AX68: 2 | AY68: 33 | AZ68: Subordinato all'acquisizione dell'asset da terzi
A69: Intervento Piano precedente | B69: Area Sud | C69: 1 | F69: Campania | G69: 543-P | H69: Nuovo elettrodotto 220 kV CP Arenella - SE Fuorigrotta | I69: - | J69: - | K69: - | M69: 1 | O69: 1 | X69: 1 | Y69: Linea | Z69: 1 | AA69: 1 | AB69: 100 | AH69: 2023 | AI69: 2026 | AJ69: 2030 | AK69: 2019 | AM69: 6 | AO69: 6 | AV69: No | AX69: <1 | AY69: 12
A70: Intervento Piano precedente | B70: Area Sud | C70: 1 | F70: Basilicata | G70: 545-P | H70: Nuovo elettrodotto 150 kV “SE Vaglio RT (e1 FS) – nuova SE 150 kV Sider.Lucchini” | I70: - | J70: - | K70: - | M70: 1 | R70: 1 | T70: 1 | X70: 1 | Y70: Gruppo di opere | Z70: 2 | AA70: 2 | AB70: 100 | AH70: 2024 | AI70: 2027 | AJ70: 2030 | AK70: 2019 | AM70: 5 | AO70: 1 | AV70: No | AX70: <1 | AY70: 8 | AZ70: 546-P Elettrodotto 380 kV Aliano - Montecorvino
A71: Intervento Piano precedente | B71: Area Sud | C71: 1 | F71: Basilicata/Calabria | G71: 546-P | H71: Elettrodotto 380 kV Aliano – Montecorvino | I71: - | J71: 1109 | K71: - | L71: 1 | M71: 1 | O71: 1 | Q71: 1 | S71: 1 | X71: 1 | Y71: Gruppo di opere | Z71: 3 | AA71: 3 | AB71: 100 | AH71: 2026 | AI71: 2030 | AJ71: 2032 | AK71: 2021 (2010) | AL71: 300 | AM71: 116 | AN71: 32 | AO71: 1 | AV71: Si | AW71: rif. Tab. C | AX71: <1 | AY71: 274 | AZ71: Con altre opere: 553-N Elettrodotto 380 kV Benevento Nord 506-P Elettrodotto 380 kV Montecorvino – Benevento 545-P Nuovo elettrodotto 150 kV “SE Vaglio RT (ex FS) – Nuova SE 150 kV Sider.Lucchini” Da accordi con terzi: Dipendenza da accordi con e-distribuzione per la rimozione delle limitazioni presso le Cabine Primarie.
A72: Intervento Piano precedente | B72: Area Sud | C72: 1 | F72: Calabria | G72: 548-P | H72: Nuovo Potenziamento rete AT area Crotone | I72: - | J72: - | K72: - | L72: 1 | S72: 1 | Y72: Linea | Z72: 1 | AA72: 1 | AB72: 100 | AH72: 2027 | AI72: 2031 | AJ72: 2035 | AK72: 2020 | AM72: 11 | AV72: No | AX72: <1 | AY72: 2
A73: Intervento Piano precedente | B73: Area Sud | C73: 1 | F73: Calabria | G73: 549-P | H73: Razionalizzazione rete AT Golfo di Gioia Tauro | I73: - | J73: - | K73: - | M73: 1 | T73: 1 | X73: 1 | Y73: Gruppo di opere | Z73: 4 | AA73: 3 | AB73: 100 | AH73: 2027 | AI73: 2031 | AJ73: 2035 | AK73: 2020 | AM73: 12 | AO73: 1 | AP73: 41 | AQ73: 13 | AR73: 6 | AV73: No | AX73: <1 | AY73: 15
A74: Intervento Piano precedente | B74: Area Sud | C74: 1 | F74: Sicilia/Calabria | G74: 550-P | H74: Razionalizzazione Rete AT Golfo di Santa Eufemia | I74: - | J74: - | K74: - | M74: 1 | T74: 1 | X74: 1 | Y74: Gruppo di opere | Z74: 4 | AA74: 3 | AB74: 100 | AH74: 2025 | AI74: 2028 | AJ74: 2030 | AK74: 2020 | AM74: 15 | AO74: 1 | AP74: 42 | AR74: 2 | AV74: No | AX74: <1 | AY74: 15
A75: Intervento Piano precedente | B75: Area Sud | C75: 1 | F75: Campania | G75: 553-P | H75: Elettrodotto 380 kV Area Nord Benevento | I75: - | J75: 1109 | K75: - | L75: 1 | M75: 1 | N75: 1 | P75: 1 | Q75: 1 | R75: 1 | S75: 1 | T75: 1 | V75: 1 | X75: 1 | Y75: Linea | Z75: 2 | AA75: 1 | AB75: 100 | AC75: 0 | AD75: 0 | AE75: 0 | AF75: 0 | AG75: 0 | AH75: 2027 | AI75: 2031 | AJ75: 2035 | AK75: 2021 | AL75: 200 | AM75: 42 | AN75: 25 | AO75: 1 | AV75: Si | AW75: =IF(AV75="Si","rif. Tab. C", " ") -> rif. Tab. C | AX75: <1 | AY75: 60 | AZ75: Intervento 546-P (El. 380 kV Aliano – Montecorvino) Intervento 506-P (El. 380 kV Montecorvino – Benevento)
A76: Intervento Piano precedente | B76: Area Sud | C76: 1 | F76: Puglia | G76: 554-p | H76: Nuovo HVDC Italia-Grecia (GRITA 2) | I76: - | J76: 1112 | K76: - | L76: 1 | M76: 1 | N76: 1 | O76: 1 | Q76: 1 | S76: 1 | U76: 1 | V76: 1 | X76: 1 | Y76: Gruppo di opere | Z76: 2 | AA76: 2 | AB76: 100 | AC76: 0 | AD76: 0 | AE76: 0 | AF76: 0 | AG76: 0 | AH76: 2023 | AI76: 2027 | AJ76: 2031 | AK76: 2021 | AL76: 500 | AM76: 123 | AN76: 2 | AO76: 3 | AV76: Si | AW76: rif. Tab. C | AX76: 1 | AY76: 750
A77: Intervento Piano precedente | B77: Area Sud | C77: 1 | F77: Sicilia/Calabria | G77: 555-P | H77: Nuovo collegamento 380 kV Bolano Paradiso | I77: - | J77: - | K77: - | L77: 1 | N77: 1 | Q77: 1 | S77: 1 | V77: 1 | X77: 1 | Y77: Gruppo di opere | Z77: 5 | AA77: 5 | AB77: 40 | AC77: 20 | AD77: 20 | AE77: 20 | AF77: 0 | AG77: 0 | AH77: 2022 | AI77: 2024 | AJ77: 2026 | AK77: 2021 | AL77: 500 | AM77: 9 | AN77: 2 | AO77: 2 | AV77: Si | AW77: rif. Tab. C | AX77: 12 | AY77: 175 | AZ77: 509-P (Riassetto rete nord Calabria) 602-P (Elettrodotto 380 kV Chiaramonte – Gulfi – Ciminna) 603-P (Elettrodotto 380 kV Paternò – Pantano – Priolo) 723-P (HVDC Continente-Sicilia-Sardegna)
A78: Intervento Piano precedente | B78: Area Sud | C78: 1 | F78: Puglia | G78: 556-P | H78: Raccordi 150 kV alla SE Cerignola 380/150 kV | I78: - | J78: - | K78: - | L78: 1 | N78: 1 | P78: 1 | R78: 1 | S78: 1 | V78: 1 | X78: 1 | Y78: Gruppo di opere | Z78: 2 | AA78: 2 | AB78: 100 | AC78: 0 | AD78: 0 | AE78: 0 | AF78: 0 | AG78: 0 | AH78: 2026 | AI78: 2030 | AJ78: 2032 | AK78: 2021 | AM78: 1 | AV78: No | AX78: <1 | AY78: 8
A79: Intervento Piano precedente | B79: Area Sud | C79: 1 | F79: Puglia | G79: 557-P | H79: Raccordi 380 kV alla SE Manfredonia 380 kV | I79: - | J79: - | K79: - | L79: 1 | M79: 1 | P79: 1 | R79: 1 | S79: 1 | V79: 1 | X79: 1 | Y79: Linea | Z79: 1 | AA79: 1 | AB79: 100 | AC79: 0 | AD79: 0 | AE79: 0 | AF79: 0 | AG79: 0 | AH79: 2026 | AI79: 2030 | AJ79: 2032 | AK79: 2021 | AM79: 1 | AP79: 1 | AV79: No | AX79: <1 | AY79: 2
A80: Intervento Piano precedente | B80: Area Sud | C80: 1 | F80: Basilicata | G80: 558-P | H80: SE Melfi 380/150 kV e raccordi 150 kV | I80: - | J80: - | K80: - | L80: 1 | M80: 1 | N80: 1 | O80: 1 | P80: 1 | R80: 1 | S80: 1 | V80: 1 | X80: 1 | Y80: Gruppo di opere | Z80: 2 | AA80: 2 | AB80: 100 | AC80: 0 | AD80: 0 | AE80: 0 | AF80: 0 | AG80: 0 | AH80: 2025 | AI80: 2031 | AJ80: 2035 | AK80: 2021 | AM80: 9 | AV80: No | AX80: <1 | AY80: 9
A81: Intervento Piano precedente | B81: Area Sud | C81: 1 | F81: Lazio, Campania | G81: 559-P | H81: Incremento magliatura 150 kV dorsale ferroviaria AV Roma - Napoli | I81: - | J81: - | K81: - | M81: 1 | T81: 1 | X81: 1 | Y81: Linea | Z81: 2 | AA81: 2 | AB81: 100 | AC81: 0 | AD81: 0 | AE81: 0 | AF81: 0 | AG81: 0 | AH81: 2028 | AI81: 2032 | AJ81: 2035 | AK81: 2021 | AM81: 1 | AP81: 1 | AV81: No | AX81: <1 | AY81: 2
A82: Intervento Piano precedente | B82: Area Sud | C82: 1 | F82: Puglia | G82: 560-P | H82: SE 380/150 kV Foggia | I82: - | J82: - | K82: - | L82: 1 | M82: 1 | N82: 1 | O82: 1 | P82: 1 | R82: 1 | S82: 1 | V82: 1 | X82: 1 | Y82: Stazione | Z82: 1 | AA82: 1 | AB82: 100 | AC82: 0 | AD82: 0 | AE82: 0 | AF82: 0 | AG82: 0 | AH82: 2024 | AI82: 2028 | AJ82: 2031 | AK82: 2021 | AV82: No | AX82: <1 | AY82: 4
A83: Intervento Piano precedente | B83: Area Sud | C83: 1 | F83: Puglia | G83: 561-P | H83: SE 380/150 kV Troia | I83: - | J83: - | K83: - | L83: 1 | M83: 1 | N83: 1 | O83: 1 | P83: 1 | R83: 1 | S83: 1 | V83: 1 | X83: 1 | Y83: Stazione | Z83: 1 | AA83: 1 | AB83: 100 | AC83: 0 | AD83: 0 | AE83: 0 | AF83: 0 | AG83: 0 | AH83: 2024 | AI83: 2028 | AJ83: 2031 | AK83: 2021 | AV83: No | AX83: <1 | AY83: 4
A84: Intervento Piano precedente | B84: Area Sud | C84: 1 | F84: Puglia | G84: 562-P | H84: SE 380/150 kV Andria | I84: - | J84: - | K84: - | L84: 1 | M84: 1 | N84: 1 | O84: 1 | P84: 1 | R84: 1 | S84: 1 | V84: 1 | X84: 1 | Y84: Stazione | Z84: 1 | AA84: 1 | AB84: 100 | AC84: 0 | AD84: 0 | AE84: 0 | AF84: 0 | AG84: 0 | AH84: 2024 | AI84: 2028 | AJ84: 2031 | AK84: 2021 | AV84: No | AX84: <1 | AY84: 4
A85: Intervento Piano precedente | B85: Area Sicilia | C85: 1 | F85: Sicilia | G85: 601-I | H85: Nuova interconnessione Italia-Tunisia | I85: 2.33 | J85: 29 | K85: - | L85: 1 | M85: 1 | N85: 1 | O85: 1 | Q85: 1 | S85: 1 | U85: 1 | V85: 1 | Y85: Linea | Z85: 2 | AA85: 2 | AB85: 0 | AC85: 0 | AD85: 100 | AE85: 0 | AF85: 0 | AG85: 0 | AH85: 2022 | AI85: 2024 | AJ85: 2028 | AK85: 2016 | AL85: 600 | AM85: 176 | AN85: 13 | AV85: Si | AW85: rif. Tab. C | AX85: <2 | AY85: 425 | AZ85: Elettrodotto 380 kV Chiaramonte Gulfi – Ciminna (602-P); Collegamento HVDC Continente – Sicilia – Sardegna (723-P)
A86: Intervento Piano precedente | B86: Area Sicilia | C86: 1 | F86: Sicilia | G86: 602-P | H86: Elettrodotto 380 kV “Chiaramonte Gulfi – Ciminna” | I86: - | J86: - | K86: RIP 2017 | L86: 1 | M86: 1 | N86: 1 | O86: 1 | P86: 1 | S86: 1 | V86: 1 | X86: 1 | Y86: Gruppo di opere | Z86: 6 | AA86: 3 | AB86: 0 | AC86: 0 | AD86: 0 | AE86: 0 | AF86: 100 | AG86: 0 | AI86: 2022 | AJ86: 2026/2030 | AK86: 2005 | AM86: 193 | AO86: 1 | AP86: 20 | AQ86: 2 | AR86: 1 | AV86: Si | AW86: rif. Tab. C | AX86: 43 | AY86: 480 | AZ86: Elettrodotto 380 kV “Assoro - Sorgente 2 e Sorgente 2 – Villafranca” (604-P); Collegamento HVDC Continente – Sicilia – Sardegna (723-P); Nuova interconnessione Italia-Tunisia (601-I); "Caracoli-Ciminna" (627-P)
A87: Intervento Piano precedente | B87: Area Sicilia | C87: 1 | F87: Sicilia | G87: 603-P | H87: Elettrodotto 380 kV Paternò-Pantano-Priolo | I87: - | J87: - | K87: RGIP 2017 | L87: 1 | M87: 1 | N87: 1 | O87: 1 | P87: 1 | S87: 1 | X87: 1 | Y87: Gruppo di opere | Z87: 5 | AA87: 7 | AB87: 0 | AC87: 29 | AD87: 14 | AE87: 0 | AF87: 57 | AG87: 0 | AJ87: 2028 | AK87: 2006 | AM87: 90 | AN87: 4 | AO87: 1 | AP87: 114 | AQ87: 16 | AR87: 1 | AS87: 15 | AV87: Si | AW87: rif. Tab. C | AX87: 218 | AY87: 325 | BA87: Per i benefici si rimanda al PdS 2017
A88: Intervento Piano precedente | B88: Area Sicilia | C88: 1 | F88: Sicilia | G88: 607-P | H88: Elettrodotto 220 kV Partinico- Fulgatore | I88: - | J88: - | K88: - | L88: 1 | P88: 1 | S88: 1 | Y88: Linea | Z88: 1 | AA88: 1 | AB88: 100 | AC88: 0 | AD88: 0 | AE88: 0 | AF88: 0 | AG88: 0 | AH88: 2026 | AI88: 2031 | AJ88: 2035 | AK88: 2021 | AM88: 50 | AN88: 2 | AO88: 2 | AV88: Si | AW88: rif. Tab. C | AX88: <1 | AY88: 31
A89: Intervento Piano precedente | B89: Area Sicilia | C89: 1 | F89: Sicilia | G89: 610-P | H89: Elettrodotto 150 kV Paternò – Belpasso | I89: - | J89: - | K89: - | M89: 1 | X89: 1 | Y89: Linea | Z89: 1 | AA89: 1 | AB89: 0 | AC89: 0 | AD89: 100 | AE89: 0 | AF89: 0 | AG89: 0 | AI89: 2025 | AJ89: 2027 | AK89: 2012 | AM89: 5 | AP89: 1 | AV89: No | AX89: <1 | AY89: 3
A90: Intervento Piano precedente | B90: Area Sicilia | C90: 1 | F90: Sicilia | G90: 611-P | H90: Interventi sulla rete AT nell’area di Catania | I90: - | J90: - | K90: - | M90: 1 | O90: 1 | R90: 1 | X90: 1 | Y90: Linea | Z90: 2 | AA90: 2 | AB90: 0 | AC90: 0 | AD90: 0 | AE90: 0 | AF90: 100 | AG90: 0 | AI90: 2021 | AJ90: 2024 | AK90: 2010 | AM90: 6 | AO90: 6 | AS90: 10 | AU90: 5 | AV90: No | AX90: 11 | AY90: 15
A91: Intervento Piano precedente | B91: Area Sicilia | C91: 1 | F91: Sicilia | G91: 612-P | H91: Interventi sulla rete AT nell’area a nord di Catania | I91: - | J91: - | K91: - | M91: 1 | O91: 1 | T91: 1 | X91: 1 | Y91: Gruppo di opere | Z91: 4 | AA91: 3 | AB91: 0 | AC91: 0 | AD91: 0 | AE91: 0 | AF91: 67 | AG91: 33 | AJ91: 2025 | AK91: 2010 | AM91: 17 | AO91: 11 | AP91: 28 | AR91: 16 | AV91: Si | AW91: rif. Tab. C | AX91: 17 | AY91: 40 | BA91: Per i benefici si rimanda al PdS 2020
A92: Intervento Piano precedente | B92: Area Sicilia | C92: 1 | F92: Sicilia | G92: 613-P | H92: Interventi sulla rete AT nell’area di Ragusa | I92: - | J92: - | K92: - | L92: 1 | M92: 1 | O92: 1 | R92: 1 | S92: 1 | X92: 1 | Y92: Gruppo di opere | Z92: 5 | AA92: 4 | AB92: 0 | AC92: 0 | AD92: 0 | AE92: 0 | AF92: 100 | AG92: 0 | AJ92: 2028 | AK92: 2007 | AM92: 23 | AN92: 3 | AV92: Si | AW92: rif. Tab. C | AX92: 32 | AY92: 72 | BA92: Per i benefici si rimanda al PdS 2019
A93: Intervento Piano precedente | B93: Area Sicilia | C93: 1 | F93: Sicilia | G93: 616-P | H93: Stazione 380 kV Vizzini (e1 SE 380 kV Mineo) | I93: - | J93: - | K93: - | L93: 1 | M93: 1 | O93: 1 | S93: 1 | X93: 1 | Y93: Gruppo di opere | Z93: 4 | AA93: 4 | AB93: 0 | AC93: 0 | AD93: 0 | AE93: 0 | AF93: 50 | AG93: 50 | AI93: 2020 | AJ93: 2024 | AK93: 2011 | AM93: 39 | AP93: 7 | AV93: Si | AW93: rif. Tab. C | AX93: 45 | AY93: 57 | BA93: Per i benefici si rimanda al PdS 2019
A94: Intervento Piano precedente | B94: Area Sicilia | C94: 1 | F94: Sicilia | G94: 622-P | H94: Direttrice 150 kV "SE Caracoli-SSE Furnari RT" | I94: - | J94: - | K94: - | M94: 1 | T94: 1 | X94: 1 | Y94: Gruppo di opere | Z94: 5 | AA94: 4 | AB94: 100 | AC94: 0 | AD94: 0 | AE94: 0 | AF94: 0 | AG94: 0 | AH94: 2026 | AI94: 2033 | AJ94: 2035 | AK94: 2021 | AM94: 1 | AO94: 1 | AS94: 147 | AT94: 34 | AU94: 7 | AV94: No | AX94: 0 | AY94: 13 | AZ94: 501-P/629-P
A95: Intervento Piano precedente | B95: Area Sicilia | C95: 1 | F95: Sicilia | G95: 623-P | H95: Nuovo elettrodotto 150 kV "Lentini - Lentini RT (e1 FS)" | I95: - | J95: - | K95: - | M95: 1 | O95: 1 | T95: 1 | X95: 1 | Y95: Linea | Z95: 1 | AA95: 1 | AB95: 0 | AC95: 100 | AD95: 0 | AE95: 0 | AF95: 0 | AG95: 0 | AH95: 2025 | AI95: 2028 | AJ95: 2030 | AK95: 2019 | AM95: 3 | AO95: 2 | AV95: No | AX95: <1 | AY95: 3 | AZ95: 603-P
A96: Intervento Piano precedente | B96: Area Sicilia | C96: 1 | F96: Sicilia | G96: 624-P | H96: Nuovo raccordo 150 kV “CP Siracusa Est – Siracusa RT (e1 FS)” | I96: - | J96: - | K96: - | M96: 1 | O96: 1 | R96: 1 | X96: 1 | Y96: Gruppo di opere | Z96: 2 | AA96: 2 | AB96: 100 | AC96: 0 | AD96: 0 | AE96: 0 | AF96: 0 | AG96: 0 | AH96: 2026 | AI96: 2033 | AJ96: 2035 | AK96: 2019 | AM96: 1 | AO96: 1 | AP96: 21 | AR96: 7 | AV96: No | AX96: <1 | AY96: 5
A97: Intervento Piano precedente | B97: Area Sicilia | C97: 1 | F97: Sicilia | G97: 625-P | H97: Razionalizzazione rete AT area Caltanissetta | I97: - | J97: - | K97: - | M97: 1 | T97: 1 | X97: 1 | Y97: Gruppo di opere | Z97: 3 | AA97: 2 | AB97: 100 | AC97: 0 | AD97: 0 | AE97: 0 | AF97: 0 | AG97: 0 | AH97: 2026 | AI97: 2033 | AJ97: 2035 | AK97: 2020 | AM97: 1 | AO97: 1 | AP97: 7 | AR97: 1 | AV97: No | AX97: 0 | AY97: 3
A98: Intervento Piano precedente | B98: Area Sicilia | C98: 1 | F98: Sicilia | G98: 626-P | H98: Nuovo elettrodotto 150 kV Vallelunga RT - SE Cammarata | I98: - | J98: - | K98: - | L98: 1 | M98: 1 | S98: 1 | T98: 1 | X98: 1 | Y98: Gruppo di opere | Z98: 2 | AA98: 1 | AB98: 100 | AC98: 0 | AD98: 0 | AE98: 0 | AF98: 0 | AG98: 0 | AH98: 2026 | AI98: 2032 | AJ98: 2035 | AK98: 2020 | AM98: 10 | AO98: 1 | AV98: No | AX98: <1 | AY98: 8
A99: Intervento Piano precedente | B99: Area Sicilia | C99: 1 | F99: Sicilia | G99: 627-P | H99: Elettrodotto 380 kV Caracoli - Ciminna | I99: - | J99: - | K99: - | L99: 1 | M99: 1 | N99: 1 | O99: 1 | P99: 1 | S99: 1 | Y99: Linea | Z99: 1 | AA99: 1 | AB99: 0 | AC99: 100 | AD99: 0 | AE99: 0 | AF99: 0 | AG99: 0 | AH99: 2023 | AI99: 2027 | AJ99: 2030 | AK99: 2020 | AM99: 22 | AN99: 4 | AO99: 1 | AV99: Si | AW99: rif. Tab. C | AX99: <1 | AY99: 70 | AZ99: 602-P, 723-P, 605-P | BA99: Per i benefici si rimanda al PdS 2021
A100: Intervento Piano precedente | B100: Area Sicilia | C100: 1 | F100: Sicilia | G100: 628-P | H100: Interventi di magliatura nella zona industriale di Catania | I100: - | J100: - | K100: - | M100: 1 | X100: 1 | Y100: Gruppo di opere | Z100: 2 | AA100: 2 | AB100: 100 | AC100: 0 | AD100: 0 | AE100: 0 | AF100: 0 | AG100: 0 | AH100: 2026 | AI100: 2033 | AJ100: 2035 | AK100: 2021 | AM100: 6 | AN100: 1 | AV100: No | AW100: =IF(AV100="Si","rif. Tab. C", " ") ->  | AX100: 0 | AY100: 9 | AZ100: (603-P) El. 380 kV Paternò-Pantano-Priolo 1489 CRT
A101: Intervento Piano precedente | B101: Area Sicilia | C101: 1 | F101: Sicilia | G101: 629-N | H101: Razionalizzazione area di Cefalù | M101: 1 | T101: 1 | X101: 1 | Y101: Gruppo di opere | Z101: 3 | AA101: 2 | AB101: 100 | AC101: 0 | AD101: 0 | AE101: 0 | AF101: 0 | AG101: 0 | AH101: 2026 | AI101: 2033 | AJ101: 2035 | AK101: 2021 | AM101: 1 | AO101: 1 | AP101: 1 | AR101: 1 | AV101: No | AW101: =IF(AV101="Si","rif. Tab. C", " ") ->  | AX101: 0 | AY101: 5 | AZ101: 589 CRT
A102: Intervento Piano precedente | B102: Area Sicilia | C102: 1 | F102: Sicilia | G102: 630-P | H102: Interconnessione Isola di Favignana | L102: 1 | M102: 1 | N102: 1 | O102: 1 | R102: 1 | S102: 1 | V102: 1 | X102: 1 | Y102: Gruppo di opere | Z102: 4 | AA102: 4 | AB102: 100 | AC102: 0 | AD102: 0 | AE102: 0 | AF102: 0 | AG102: 0 | AH102: 2025 | AI102: 2033 | AJ102: 2035 | AK102: 2021 | AM102: 43 | AN102: 11 | AV102: Si | AW102: rif. Tab. C | AX102: 0 | AY102: 100 | BA102: Per la stima delle voci di costo e degli indicatori di beneficio si rimanda all’analisi costi benefici riportate nella scheda 630-N del PdS’21
A103: Intervento Piano precedente | B103: Area Sicilia | C103: 1 | F103: Sicilia | G103: 632-P | H103: Incremento di magliatura 150 kV area di Trapani | M103: 1 | S103: 1 | X103: 1 | Y103: Gruppo di opere | Z103: 2 | AA103: 2 | AB103: 100 | AC103: 0 | AD103: 0 | AE103: 0 | AF103: 0 | AG103: 0 | AH103: 2026 | AI103: 2033 | AJ103: 2035 | AK103: 2021 | AM103: 1 | AS103: 22 | AT103: 1 | AU103: 1 | AV103: No | AW103: =IF(AV103="Si","rif. Tab. C", " ") ->  | AX103: 0 | AY103: 9
A104: Intervento Piano precedente | B104: Area Nord-Ovest | D104: 1 | F104: Piemonte/Lombardia | G104: 4-P | H104: Elettrodotto 380 kV Trino-Lacchiarella e opere di razionalizzazione associate | I104: - | J104: - | K104: - | M104: 1 | O104: 1 | X104: 1 | Y104: Gruppo di opere | Z104: 27 | AA104: 1 | AB104: 0 | AC104: 0 | AD104: 0 | AE104: 0 | AF104: 0 | AG104: 100 | AJ104: 2038 | AK104: 2004 | AM104: 94 | AN104: 44 | AO104: 6 | AP104: 114 | AQ104: 53 | AR104: 9 | AV104: No | AX104: 194 | AY104: 405
A105: Intervento Piano precedente | B105: Area Nord-Ovest | D105: 1 | F105: Piemonte | G105: 6-P | H105: Razionalizzazione rete 220 e 132 kV Provincia di Torino | I105: - | J105: - | K105: RIP 2017 | M105: 1 | O105: 1 | X105: 1 | Y105: Gruppo di opere | Z105: 34 | AA105: 19 | AB105: 0 | AC105: 0 | AD105: 0 | AE105: 0 | AF105: 0 | AG105: 100 | AJ105: 2035 | AK105: 2006 | AM105: 9 | AO105: 4 | AP105: 31 | AQ105: 7 | AR105: 5 | AS105: 70 | AT105: 4 | AU105: 2 | AV105: Si | AW105: rif. Tab. C | AX105: 196 | AY105: 244 | BA105: Per i dettagli dei benefici, si rimanda al PdS 2017
A106: Intervento Piano precedente | B106: Area Nord-Ovest | D106: 1 | F106: Piemonte | G106: 24-P | H106: Stazione 220 kV Novara Sud | I106: - | J106: - | K106: - | M106: 1 | X106: 1 | Y106: Stazione | Z106: 1 | AA106: 1 | AB106: 0 | AC106: 0 | AD106: 0 | AE106: 0 | AF106: 100 | AG106: 0 | AJ106: 2025 | AK106: 2007 | AV106: No | AX106: 8 | AY106: 14
A107: Intervento Piano precedente | B107: Area Nord-Ovest | D107: 1 | F107: Liguria | G107: 26-P | H107: Stazione 220 kV San Colombano | I107: - | J107: - | K107: - | M107: 1 | O107: 1 | X107: 1 | Y107: Stazione | Z107: 1 | AA107: 1 | AB107: 0 | AC107: 0 | AD107: 0 | AE107: 0 | AF107: 100 | AG107: 0 | AJ107: 2025 | AK107: 2014 | AV107: No | AX107: 5 | AY107: 12
A108: Intervento Piano precedente | B108: Area Nord-Ovest | D108: 1 | F108: Liguria | G108: 15-P | H108: Elettrodotto 132 kV “Imperia – S. Remo” | I108: - | J108: - | K108: - | M108: 1 | T108: 1 | X108: 1 | Y108: Gruppo di opere | Z108: 2 | AA108: 2 | AB108: 100 | AC108: 0 | AD108: 0 | AE108: 0 | AF108: 0 | AG108: 0 | AH108: 2025 | AI108: 2027 | AJ108: 2030 | AK108: 2005 | AS108: 26 | AT108: 1 | AU108: 1 | AV108: No | AX108: 0 | AY108: 9
A109: Intervento Piano precedente | B109: Area Nord-Ovest | D109: 1 | F109: Piemonte | G109: 14-P | H109: Elettrodotto 132 kV Magliano Alpi – Fossano e scrocio di Murazzo | I109: - | J109: - | K109: - | M109: 1 | O109: 1 | X109: 1 | Y109: Gruppo di opere | Z109: 2 | AA109: 2 | AB109: 0 | AC109: 0 | AD109: 0 | AE109: 50 | AF109: 0 | AG109: 50 | AJ109: 2027 | AK109: 2003 | AM109: 15 | AN109: 1 | AV109: No | AX109: 1.7 | AY109: 16.5
A110: Intervento Piano precedente | B110: Area Nord-Ovest | D110: 1 | F110: Liguria | G110: 10-P | H110: Rinforzi 132 kV Area Metropolitana di Genova | I110: - | J110: - | K110: - | M110: 1 | O110: 1 | T110: 1 | X110: 1 | Y110: Gruppo di opere | Z110: 12 | AA110: 12 | AB110: =5/12*100 -> 41.66666667 | AC110: 0 | AD110: 0 | AE110: 0 | AF110: =1/12*100 -> 8.333333333 | AG110: =6/12*100 -> 50 | AJ110: 2030 | AK110: 2007 | AM110: 11 | AN110: 1 | AO110: 6 | AP110: 15 | AR110: 6 | AS110: 11 | AU110: 1 | AV110: Si | AW110: rif. Tab. C | AX110: 35 | AY110: 88 | BA110: Per i dettagli dei benefici, si rimanda al PdS 2017
A111: Intervento Piano precedente | B111: Area Nord-Ovest | D111: 1 | F111: Valle d'Aosta | G111: 25-P | H111: Rete 132 kV provincia di Aosta | I111: - | J111: - | K111: - | M111: 1 | X111: 1 | Y111: Gruppo di opere | Z111: 2 | AA111: 2 | AB111: 0 | AC111: 0 | AD111: 0 | AE111: 50 | AF111: 50 | AG111: 0 | AJ111: 2025 | AK111: 2017 | AV111: No | AX111: <1 | AY111: 1
A112: Intervento Piano precedente | B112: Area Nord-Ovest | D112: 1 | F112: Piemonte | G112: 155-P | H112: Stazione 132 kV Novara Est | I112: - | J112: - | K112: - | M112: 1 | X112: 1 | Y112: Stazione | Z112: 1 | AA112: 1 | AB112: 100 | AC112: 0 | AD112: 0 | AE112: 0 | AF112: 0 | AG112: 0 | AH112: 2025 | AI112: 2025 | AJ112: 2030 | AK112: 2018 | AV112: No | AX112: <1 | AY112: 10.5
A113: Intervento Piano precedente | B113: Area Nord-Ovest | D113: 1 | F113: Piemonte | G113: 159-P | H113: Stazione 132 kV Villadossola | I113: - | J113: - | K113: - | M113: 1 | X113: 1 | Y113: Stazione | Z113: 1 | AA113: 1 | AB113: 0 | AC113: 100 | AD113: 0 | AE113: 0 | AF113: 0 | AG113: 0 | AI113: 2024 | AJ113: 2035 | AK113: 2018 | AV113: No | AX113: <1 | AY113: 3
A114: Intervento Piano precedente | B114: Area Nord-Ovest | D114: 1 | F114: Valle d'Aosta | G114: 158-P | H114: Stazione 220 kV Villeneuve | I114: - | J114: - | K114: - | M114: 1 | X114: 1 | Y114: Stazione | Z114: 1 | AA114: 1 | AB114: 0 | AC114: 100 | AD114: 0 | AE114: 0 | AF114: 0 | AG114: 0 | AI114: 2024 | AJ114: 2027 | AK114: 2018 | AV114: No | AX114: <1 | AY114: 3
A115: Intervento Piano precedente | B115: Area Nord-Ovest | D115: 1 | F115: Piemonte | G115: 3-P | H115: Nuovo incremento di capacità di interconnessione con la Francia | K115: - | L115: 1 | M115: 1 | N115: 1 | O115: 1 | U115: 1 | V115: 1 | X115: 1 | Y115: Gruppo di opere | Z115: 2 | AA115: 2 | AB115: 0 | AC115: 0 | AD115: 0 | AE115: 0 | AF115: 100 | AG115: 0 | AJ115: 2023 | AK115: 2004 | AM115: 89 | AN115: 2 | AO115: 9 | AV115: No | AX115: 285 | AY115: 297 | AZ115: Opera realizzata in sinergia con l’intervento 2-I (medesimo cantiere)
A116: Intervento Piano precedente | B116: Area Nord | D116: 1 | F116: Lombardia | G116: 104-P | H116: Elettrodotto 380 kV tra Milano e Brescia | I116: - | J116: - | K116: - | M116: 1 | N116: 1 | P116: 1 | V116: 1 | X116: 1 | Y116: Gruppo di opere | Z116: 4 | AA116: 4 | AB116: 50 | AC116: 0 | AD116: 0 | AE116: 0 | AF116: 25 | AG116: 25 | AJ116: 2025 | AK116: 2010 | AM116: 64 | AO116: 1 | AP116: 55 | AR116: 1 | AV116: No | AX116: 26 | AY116: 71
A117: Intervento Piano precedente | B117: Area Nord | D117: 1 | F117: Lombardia | G117: 106-P | H117: Elettrodotto 220 kV Glorenza – Tirano – der.Premadio | I117: - | J117: - | K117: - | L117: 1 | M117: 1 | O117: 1 | P117: 1 | S117: 1 | V117: 1 | Y117: Gruppo di opere | Z117: 3 | AA117: 3 | AB117: 0 | AC117: 0 | AD117: 0 | AE117: =1/3*100 -> 33.33333333 | AF117: 0 | AG117: =2/3*100 -> 66.66666667 | AJ117: 2024 | AK117: 2004 | AM117: 8 | AN117: 3 | AO117: 1 | AP117: 4 | AQ117: 2 | AV117: Si | AW117: rif. Tab. C | AX117: 16.5 | AY117: 26 | BA117: Per i dettagli dei benefici, si rimanda al PdS 2019
A118: Intervento Piano precedente | B118: Area Nord | D118: 1 | F118: Lombardia | G118: 113-P | H118: Razionalizzazione 220/132 kV in Provincia di Lodi | I118: - | J118: - | K118: - | M118: 1 | O118: 1 | X118: 1 | Y118: Gruppo di opere | Z118: 29 | AA118: 3 | AB118: 0 | AC118: 0 | AD118: 0 | AE118: 0 | AF118: 0 | AG118: 100 | AJ118: 2035 | AK118: 2006 | AM118: 2 | AS118: 22 | AU118: 4 | AV118: No | AX118: 150 | AY118: 218 | BA118: Le attività in corso si riferiscono ad opere di razionalizzazione associate all’opera principale già entrata in servizio, conseguenti alla necessità di ottemperare a prescrizioni autorizzative e/o concertative quindi non soggette ad Analisi Costi Benefici.
A119: Intervento Piano precedente | B119: Area Nord | D119: 1 | F119: Lombardia | G119: 116-P | H119: Razionalizzazione 220/132 kV in Valle Sabbia | I119: - | J119: - | K119: - | L119: 1 | M119: 1 | O119: 1 | S119: 1 | W119: 1 | X119: 1 | Y119: Gruppo di opere | Z119: 5 | AA119: 5 | AB119: 0 | AC119: 0 | AD119: 0 | AE119: =3/5*100 -> 60 | AF119: =2/5*100 -> 40 | AG119: 0 | AJ119: 2025 | AK119: 2010 | AM119: 11 | AN119: 1 | AP119: 22 | AR119: 2 | AV119: Si | AW119: rif. Tab. C | AX119: 42 | AY119: 63 | BA119: Per i dettagli dei benefici, si rimanda al PdS 2017
A120: Intervento Piano precedente | B120: Area Nord | D120: 1 | F120: Lombardia | G120: 127-P | H120: Stazione 380 kV Mese | I120: - | J120: - | K120: - | L120: 1 | M120: 1 | O120: 1 | P120: 1 | S120: 1 | V120: 1 | Y120: Stazione | Z120: 1 | AA120: 1 | AB120: 0 | AC120: 0 | AD120: 100 | AE120: 0 | AF120: 0 | AG120: 0 | AI120: 2030 | AJ120: 2035 | AK120: 2008 | AV120: Si | AW120: rif. Tab. C | AX120: <1 | AY120: 37
A121: Intervento Piano precedente | B121: Area Nord | D121: 1 | F121: Lombardia | G121: 126-P | H121: Stazione 380 kV Magenta | I121: - | J121: - | K121: - | M121: 1 | O121: 1 | X121: 1 | Y121: Gruppo di opere | Z121: 6 | AA121: 2 | AB121: 0 | AC121: 0 | AD121: 0 | AE121: 0 | AF121: 100 | AG121: 0 | AJ121: 2023 | AK121: 2009 | AM121: 8 | AO121: 5 | AP121: 6 | AR121: 3 | AV121: Si | AW121: rif. Tab. C | AX121: 29 | AY121: 39 | BA121: Per i dettagli dei benefici, si rimanda al PdS 2018
A122: Intervento Piano precedente | B122: Area Nord | D122: 1 | F122: Lombardia | G122: 138-P | H122: Stazione 380 kV Brugherio | I122: - | J122: - | K122: - | M122: 1 | X122: 1 | Y122: Stazione | Z122: 1 | AA122: 1 | AB122: 0 | AC122: 0 | AD122: 0 | AE122: 0 | AF122: 100 | AG122: 0 | AJ122: 2025 | AK122: 2007 | AV122: No | AX122: <1 | AY122: 3
A123: Intervento Piano precedente | B123: Area Nord | D123: 1 | F123: Lombardia | G123: 142-P | H123: Stazione 380 kV Tavazzano | I123: - | J123: - | K123: - | M123: 1 | X123: 1 | Y123: Stazione | Z123: 2 | AA123: 2 | AB123: 50 | AC123: 0 | AD123: 0 | AE123: 0 | AF123: 50 | AG123: 0 | AJ123: 2025 | AK123: 2007 | AV123: No | AX123: 2.5 | AY123: 7
A124: Intervento Piano precedente | B124: Area Nord | D124: 1 | F124: Lombardia | G124: 137-P | H124: Stazione 380 kV Bovisio | I124: - | J124: - | K124: - | M124: 1 | X124: 1 | Y124: Stazione | Z124: 2 | AA124: 2 | AB124: 0 | AC124: 0 | AD124: 0 | AE124: 0 | AF124: 50 | AG124: 50 | AJ124: 2025 | AK124: 2006/2010 | AV124: No | AX124: 4 | AY124: 6
A125: Intervento Piano precedente | B125: Area Nord | D125: 1 | F125: Lombardia | G125: 143-P | H125: Stazione 380 kV Turbigo | I125: - | J125: - | K125: - | M125: 1 | X125: 1 | Y125: Stazione | Z125: 2 | AA125: 2 | AB125: 50 | AC125: 0 | AD125: 0 | AE125: 0 | AF125: 0 | AG125: 50 | AJ125: 2035 | AK125: 2006/2010 | AV125: No | AX125: 3 | AY125: 12
A126: Intervento Piano precedente | B126: Area Nord | D126: 1 | F126: Lombardia | G126: 144-P | H126: Stazione 380 kV S.Rocco | I126: - | J126: - | K126: - | M126: 1 | X126: 1 | Y126: Stazione | Z126: 1 | AA126: 1 | AB126: 0 | AC126: 0 | AD126: 0 | AE126: 0 | AF126: 100 | AG126: 0 | AJ126: 2023 | AK126: 2011 | AV126: No | AX126: <2 | AY126: 2
A127: Intervento Piano precedente | B127: Area Nord | D127: 1 | F127: Lombardia | G127: 152-P | H127: Stazione 220 kV Tirano | I127: - | J127: - | K127: - | M127: 1 | X127: 1 | Y127: Stazione | Z127: 1 | AA127: 1 | AB127: 0 | AC127: 0 | AD127: 0 | AE127: 0 | AF127: 100 | AG127: 0 | AI127: 2023 | AJ127: 2024 | AK127: 2017 | AV127: No | AX127: 2 | AY127: 4
A128: Intervento Piano precedente | B128: Area Nord | D128: 1 | F128: Lombardia | G128: 130-P | H128: Stazione 220 kV Vaiano Valle | I128: - | J128: - | K128: - | M128: 1 | N128: 1 | X128: 1 | Y128: Stazione | Z128: 1 | AA128: 1 | AB128: 100 | AC128: 0 | AD128: 0 | AE128: 0 | AF128: 0 | AG128: 0 | AH128: 2025 | AI128: 2028 | AJ128: 2030 | AK128: 2006 | AM128: 3 | AV128: No | AX128: 3 | AY128: 19
A129: Intervento Piano precedente | B129: Area Nord | D129: 1 | F129: Lombardia | G129: 149-P | H129: Elettrodotto 132 kV Cedrate - Casorate | I129: - | J129: - | K129: - | M129: 1 | P129: 1 | X129: 1 | Y129: Rimozione limitazioni linea | Z129: 1 | AA129: 1 | AB129: 100 | AC129: 0 | AD129: 0 | AE129: 0 | AF129: 0 | AG129: 0 | AH129: 2025 | AI129: 2027 | AJ129: 2035 | AK129: 2013 | AS129: 7 | AU129: 1 | AV129: No | AX129: <1 | AY129: 10
A130: Intervento Piano precedente | B130: Area Nord | D130: 1 | F130: Lombardia | G130: 153-P | H130: Riassetto rete 132 kV area Rho | I130: - | J130: - | K130: - | M130: 1 | X130: 1 | Y130: Gruppo di opere | Z130: 4 | AA130: 4 | AB130: 100 | AC130: 0 | AD130: 0 | AE130: 0 | AF130: 0 | AG130: 0 | AH130: 2025 | AI130: 2033 | AJ130: 2035 | AK130: 2017 | AS130: 15 | AU130: 4 | AV130: Si | AW130: rif. Tab. C | AX130: 0 | AY130: 38
A131: Intervento Piano precedente | B131: Area Nord | D131: 1 | F131: Lombardia | G131: 114-P | H131: Riassetto rete 132 kV Brescia | I131: - | J131: - | K131: - | M131: 1 | O131: 1 | X131: 1 | Y131: Linea | Z131: 2 | AA131: 2 | AB131: 0 | AC131: 0 | AD131: 0 | AE131: 100 | AF131: 0 | AG131: 0 | AI131: 2023 | AJ131: 2027 | AK131: 2008 | AS131: 7 | AU131: 5 | AV131: No | AX131: 6 | AY131: 19
A132: Intervento Piano precedente | B132: Area Nord | D132: 1 | F132: Lombardia | G132: 108-P | H132: Riassetto rete 132 kV tra La Casella e Castelnuovo | I132: - | J132: - | K132: - | M132: 1 | X132: 1 | Y132: Gruppo di opere | Z132: 6 | AA132: 6 | AB132: =4/6*100 -> 66.66666667 | AC132: 0 | AD132: 0 | AE132: 0 | AF132: =2/6*100 -> 33.33333333 | AG132: 0 | AI132: 2023 | AJ132: 2035 | AK132: 2011 | AM132: 10 | AS132: 57 | AU132: 1 | AV132: No | AX132: <1 | AY132: 15
A133: Intervento Piano precedente | B133: Area Nord | D133: 1 | F133: Lombardia | G133: 119-P | H133: Razionalizzazione 132 kV Cremona | I133: - | J133: - | K133: - | M133: 1 | P133: 1 | R133: 1 | X133: 1 | Y133: Gruppo di opere | Z133: 4 | AA133: 4 | AB133: =1/4*100 -> 25 | AC133: 50 | AD133: 25 | AE133: 0 | AF133: 0 | AG133: 0 | AI133: 2024 | AJ133: 2035 | AK133: 2010 | AS133: 48 | AT133: 1 | AU133: 1 | AV133: Si | AW133: rif. Tab. C | AX133: <1 | AY133: 40
A134: Intervento Piano precedente | B134: Area Nord | D134: 1 | F134: Lombardia | G134: 110-P | H134: Riassetto rete AT tra Lodi e Piacenza | I134: - | J134: - | K134: - | M134: 1 | X134: 1 | Y134: Linea | Z134: 1 | AA134: 1 | AB134: 0 | AC134: 0 | AD134: 0 | AE134: 100 | AF134: 0 | AG134: 0 | AI134: 2025 | AJ134: 2026 | AK134: 2011 | AV134: No | AX134: <1 | AY134: 8
A135: Intervento Piano precedente | B135: Area Nord | D135: 1 | F135: Lombardia | G135: 154-P | H135: Riassetto lago di Como | I135: - | J135: - | K135: - | M135: 1 | O135: 1 | X135: 1 | Y135: Gruppo di opere | Z135: 3 | AA135: 3 | AB135: 0 | AC135: 100 | AD135: 0 | AE135: 0 | AF135: 0 | AG135: 0 | AH135: 2027 | AI135: 2032 | AJ135: 2035 | AK135: 2018 | AM135: 18 | AN135: 2 | AO135: 5 | AP135: 67 | AQ135: 10 | AR135: 17 | AV135: No | AX135: <1 | AY135: 13
A136: Intervento Piano precedente | B136: Area Nord | D136: 1 | F136: Lombardia | G136: 156-P | H136: Razionalizzazione rete 132 kV Cislago – Castellanza – Olgiate O. | I136: - | J136: - | K136: - | M136: 1 | X136: 1 | Y136: Linea | Z136: 1 | AA136: 1 | AB136: 100 | AC136: 0 | AD136: 0 | AE136: 0 | AF136: 0 | AG136: 0 | AH136: 2024 | AI136: 2028 | AJ136: 2030 | AK136: 2018 | AM136: 2 | AO136: 1 | AP136: 2 | AR136: 1 | AV136: No | AX136: <1 | AY136: 4
A137: Intervento Piano precedente | B137: Area Nord | D137: 1 | F137: Lombardia | G137: 112-P | H137: Razionalizzazione 380 kV Media Valtellina (Fase B) | I137: - | J137: - | K137: - | M137: 1 | O137: 1 | P137: 1 | R137: 1 | X137: 1 | Y137: Gruppo di opere | Z137: 14 | AA137: 14 | AB137: =0.714285714285714*100 -> 71.42857143 | AC137: =0.285714285714286*100 -> 28.57142857 | AD137: 0 | AE137: 0 | AF137: 0 | AG137: 0 | AI137: 2033 | AJ137: 2038 | AK137: 2004 | AM137: 163 | AN137: 48 | AO137: 8 | AP137: 466 | AQ137: 106 | AR137: 27 | AV137: No | AX137: 8.4 | AY137: 524 | BA137: L'intervento non è soggetto ad ACB in quanto è una compensazione legata alla San Fiorano Robbia
A138: Intervento Piano precedente | B138: Area Nord | D138: 1 | F138: Lombardia | G138: 117-P | H138: Razionalizzazione rete AT Val Camonica/Val Seriana (BG) | I138: - | J138: - | K138: - | M138: 1 | X138: 1 | Y138: Linea | Z138: 1 | AA138: 1 | AB138: 100 | AC138: 0 | AD138: 0 | AE138: 0 | AF138: 0 | AG138: 0 | AH138: 2024 | AI138: 2030 | AJ138: 2033 | AK138: 2009 | AM138: 28 | AN138: 11 | AP138: 26 | AQ138: 2 | AR138: 3 | AV138: No | AX138: <1 | AY138: 15
A139: Intervento Piano precedente | B139: Area Sardegna/Centro Nord | D139: 1 | E139: 1 | F139: Sardegna/Toscana | G139: 301-P | H139: Collegamento HVDC Sardegna – Corsica – Italia (SA.CO.I.3) | I139: 2.4 | J139: 299 | K139: - | L139: 1 | M139: 1 | N139: 1 | O139: 1 | Q139: 1 | S139: 1 | U139: 1 | V139: 1 | X139: 1 | Y139: Gruppo di opere | Z139: 3 | AA139: 3 | AB139: 0 | AC139: 0 | AD139: 100 | AE139: 0 | AF139: 0 | AG139: 0 | AI139: 2023 | AJ139: 2027 | AK139: 2011 | AL139: 400 | AM139: 21 | AO139: 3 | AP139: 30 | AQ139: 1 | AS139: 103 | AV139: Si | AW139: rif. Tab. C | AX139: 181 | AY139: 950
A140: Intervento Piano precedente | B140: Area Sardegna | D140: 1 | F140: Sardegna | G140: 707-P | H140: Elettrodotto 150 kV SE S.Teresa – Buddusò | I140: - | J140: - | K140: RIP 2017 | L140: 1 | M140: 1 | O140: 1 | S140: 1 | V140: 1 | X140: 1 | Y140: Gruppo di opere | Z140: 4 | AA140: 4 | AB140: 50 | AC140: 0 | AD140: 25 | AE140: 0 | AF140: 0 | AG140: 25 | AJ140: 2028 | AK140: 2003 | AM140: 92 | AN140: 1 | AP140: 6 | AQ140: 3 | AV140: Si | AW140: rif. Tab. C | AX140: 14 | AY140: 85 | BA140: Per i dettagli dei benefici, si rimanda al PdS 2017
A141: Intervento Piano precedente | B141: Area Sardegna | D141: 1 | F141: Sardegna | G141: 708-P | H141: Elettrodotto 150 kV Selargius – Goni | I141: - | J141: - | K141: - | L141: 1 | M141: 1 | O141: 1 | S141: 1 | X141: 1 | Y141: Linea | Z141: 2 | AA141: 2 | AB141: 0 | AC141: 50 | AD141: 0 | AE141: 50 | AF141: 0 | AG141: 0 | AI141: 2025 | AJ141: 2030 | AK141: 2004 | AM141: 30 | AO141: 2 | AV141: No | AX141: <1 | AY141: 16
A142: Intervento Piano precedente | B142: Area Sardegna | D142: 1 | F142: Sardegna | G142: 724-P | H142: Adeguamento SE Rumianca | I142: - | J142: - | K142: - | M142: 1 | X142: 1 | Y142: Stazione | Z142: 4 | AA142: 4 | AB142: 75 | AC142: 0 | AD142: 0 | AE142: 0 | AF142: 0 | AG142: 25 | AJ142: 2026 | AK142: 2018 | AV142: No | AX142: 4.5 | AY142: 22
A143: Intervento Piano precedente | B143: Centro Sud/Sicilia/Sardegna | C143: 1 | D143: 1 | F143: Campania/Sicilia/Sardegna | G143: 723 / W-P | H143: Collegamento HVDC Continente – Sicilia – Sardegna (West Link) | I143: - | J143: 339 | K143: - | L143: 1 | M143: 1 | N143: 1 | O143: 1 | Q143: 1 | S143: 1 | V143: 1 | X143: 1 | Y143: Gruppo di opere | Z143: 5 | AA143: 5 | AB143: 0 | AC143: 0 | AD143: 100 | AE143: 0 | AF143: 0 | AG143: 0 | AI143: 2023 | AJ143: 2027 | AK143: 2018 | AL143: 1000 | AM143: 848 | AN143: 43 | AO143: 36 | AV143: Si | AW143: rif. Tab. C | AX143: <1 | AY143: 1900 | AZ143: 723/E-P, 602-P, 627-P, 605-P, 601-I | BA143: - Per i dettagli dei benefici, si rimanda al PdS 2021 - I valori degli impatti territoriali si riferiscono sia all'intervento 723 W/P che 723 E/P
A144: Intervento Piano precedente | B144: Centro Sud/Sicilia/Sardegna | C144: 1 | D144: 1 | F144: Campania/Sicilia/Sardegna | G144: 723 / E-P | H144: Collegamento HVDC Continente – Sicilia – Sardegna (East Link) | I144: - | J144: 339 | K144: - | L144: 1 | M144: 1 | N144: 1 | O144: 1 | Q144: 1 | S144: 1 | V144: 1 | X144: 1 | Y144: Gruppo di opere | Z144: 6 | AA144: 6 | AB144: 0 | AC144: 0 | AD144: 0 | AE144: 100 | AF144: 0 | AG144: 0 | AJ144: 2028 | AK144: 2018 | AL144: 1000 | AV144: Si | AW144: rif. Tab. C | AX144: <1 | AY144: 1800 | AZ144: 723/W-P, 506-P, 546-P, 601-I, 602-P, 627-P e 605-P | BA144: Per i dettagli dei benefici, si rimanda al PdS 2021
A145: Intervento Piano precedente | B145: Area Nord-Ovest | D145: 1 | F145: Piemonte | G145: 28-P | H145: Riassetto Sud Ovest di Alessandria | I145: - | J145: - | K145: - | M145: 1 | R145: 1 | X145: 1 | Y145: Linea | Z145: 2 | AA145: 2 | AB145: 100 | AC145: 0 | AD145: 0 | AE145: 0 | AF145: 0 | AG145: 0 | AH145: 2023 | AI145: 2027 | AJ145: 2030 | AK145: 2019 | AV145: Si | AW145: rif. Tab. C | AX145: 0 | AY145: 27
A146: Intervento Piano precedente | B146: Area Nord-Ovest | D146: 1 | F146: Piemonte | G146: 29-P | H146: Riassetto rete 220 kV area Sud Ovest di Torino | I146: - | J146: - | K146: - | M146: 1 | R146: 1 | X146: 1 | Y146: Stazione | Z146: 1 | AA146: 1 | AB146: 100 | AC146: 0 | AD146: 0 | AE146: 0 | AF146: 0 | AG146: 0 | AH146: 2024 | AI146: 2026 | AJ146: 2035 | AK146: 2019 | AM146: 4 | AO146: 1 | AP146: 2 | AR146: 1 | AV146: No | AX146: 0 | AY146: 9 | AZ146: 6-P
A147: Intervento Piano precedente | B147: Area Nord | D147: 1 | F147: Lombardia | G147: 161-P | H147: Riassetto rete 220 kV a Nord di Milano | I147: - | J147: - | K147: - | M147: 1 | X147: 1 | Y147: Linea | Z147: 2 | AA147: 2 | AB147: 100 | AC147: 0 | AD147: 0 | AE147: 0 | AF147: 0 | AG147: 0 | AH147: 2023 | AI147: 2026 | AJ147: 2028 | AK147: 2019 | AV147: No | AX147: 0 | AY147: 1
A148: Intervento Piano precedente | B148: Area Nord | D148: 1 | F148: Lombardia | G148: 162-P | H148: Riassetto rete AT area Bordogna | I148: - | J148: - | K148: - | L148: 1 | M148: 1 | O148: 1 | P148: 1 | S148: 1 | X148: 1 | Y148: Gruppo di opere | Z148: 5 | AA148: 5 | AB148: 100 | AC148: 0 | AD148: 0 | AE148: 0 | AF148: 0 | AG148: 0 | AH148: 2024 | AI148: 2027 | AJ148: 2035 | AK148: 2019 | AM148: 36 | AN148: 11 | AO148: 2 | AP148: 63 | AQ148: 23 | AR148: 3 | AV148: Si | AW148: rif. Tab. C | AX148: 0 | AY148: 30
A149: Intervento Piano precedente | B149: Area Nord | D149: 1 | F149: Lombardia | G149: 163-P | H149: Riassetto Nord di Brescia | I149: - | J149: - | K149: - | M149: 1 | O149: 1 | X149: 1 | Y149: Gruppo di opere | Z149: 2 | AA149: 2 | AB149: 100 | AC149: 0 | AD149: 0 | AE149: 0 | AF149: 0 | AG149: 0 | AH149: 2025 | AI149: 2028 | AJ149: 2030 | AK149: 2019 | AM149: 9 | AO149: 2 | AP149: 7 | AR149: 2 | AV149: No | AX149: 0 | AY149: 20
A150: Intervento Piano precedente | B150: Area Nord | D150: 1 | F150: Lombardia | G150: 164-P | H150: Risoluzione derivazione rigida CP Gravedona | I150: - | J150: - | K150: - | L150: 1 | M150: 1 | O150: 1 | S150: 1 | X150: 1 | Y150: Gruppo di opere | Z150: 2 | AA150: 2 | AB150: 100 | AC150: 0 | AD150: 0 | AE150: 0 | AF150: 0 | AG150: 0 | AH150: 2024 | AI150: 2027 | AJ150: 2029 | AK150: 2019 | AM150: 2 | AO150: 1 | AP150: 3 | AR150: 1 | AV150: No | AX150: 0 | AY150: 14
A151: Intervento Piano precedente | B151: Area Nord-Ovest | D151: 1 | F151: Liguria | G151: 30-P | H151: Elettrodotto 220 kV Erzelli - Bistagno | M151: 1 | X151: 1 | Y151: Rimozione limitazioni linea | Z151: 1 | AA151: 1 | AB151: 100 | AC151: 0 | AD151: 0 | AE151: 0 | AF151: 0 | AG151: 0 | AH151: 2023 | AI151: 2027 | AJ151: 2030 | AK151: 2020 | AS151: 50 | AT151: 12 | AU151: 1 | AV151: No | AX151: <1 | AY151: 5
A152: Intervento Piano precedente | B152: Area Nord-Ovest | D152: 1 | F152: Valle d’Aosta | G152: 31-P | H152: Adeguamento SE Chatillon | M152: 1 | X152: 1 | Y152: Stazione | Z152: 1 | AA152: 1 | AB152: 100 | AC152: 0 | AD152: 0 | AE152: 0 | AF152: 0 | AG152: 0 | AH152: 2023 | AI152: 2027 | AJ152: 2030 | AK152: 2020 | AV152: No | AX152: 0 | AY152: 5
A153: Intervento Piano precedente | B153: Area Nord | D153: 1 | F153: Lombardia | G153: 165-P | H153: Razionalizzazione rete 380 kV Brianza | M153: 1 | N153: 1 | O153: 1 | P153: 1 | X153: 1 | Y153: Gruppo di opere | Z153: 3 | AA153: 3 | AB153: 0 | AC153: =1/3*100 -> 33.33333333 | AD153: =2/3*100 -> 66.66666667 | AE153: 0 | AF153: 0 | AG153: 0 | AI153: 2027 | AJ153: 2030 | AK153: 2020 | AM153: 18 | AN153: 1 | AO153: 3 | AP153: 26 | AQ153: 2 | AR153: 10 | AV153: Si | AW153: rif. Tab. C | AX153: <1 | AY153: 245
A154: Intervento Piano precedente | B154: Area Nord | D154: 1 | F154: Lombardia | G154: 166-P | H154: Risoluzione antenna CP Liscate | M154: 1 | X154: 1 | Y154: Gruppo di opere | Z154: 2 | AA154: 2 | AB154: 100 | AC154: 0 | AD154: 0 | AE154: 0 | AF154: 0 | AG154: 0 | AH154: 2025 | AI154: 2028 | AJ154: 2030 | AK154: 2020 | AM154: 5 | AP154: 5 | AV154: No | AX154: 0 | AY154: 6
A155: Intervento Piano precedente | B155: Area Sardegna | D155: 1 | F155: Sardegna | G155: 725-P | H155: Adeguamento SE Florinas | I155: - | J155: - | K155: - | M155: 1 | X155: 1 | Y155: Stazione | Z155: 1 | AA155: 1 | AB155: 0 | AC155: 100 | AD155: 0 | AE155: 0 | AF155: 0 | AG155: 0 | AH155: 2026 | AI155: 2028 | AJ155: 2032 | AK155: 2020 | AV155: No | AX155: 0 | AY155: 4
A156: Intervento Piano precedente | B156: Area Sardegna | D156: 1 | F156: Sardegna | G156: 726-P | H156: Adeguamento SE Ploaghe | I156: - | J156: - | K156: - | M156: 1 | X156: 1 | Y156: Stazione | Z156: 1 | AA156: 1 | AB156: 0 | AC156: 100 | AD156: 0 | AE156: 0 | AF156: 0 | AG156: 0 | AH156: 2026 | AI156: 2028 | AJ156: 2032 | AK156: 2020 | AV156: No | AX156: 0 | AY156: 4
A157: Intervento Piano precedente | B157: Area Sardegna | D157: 1 | F157: Sardegna | G157: 727-P | H157: Adeguamento SE Tula | I157: - | J157: - | K157: - | M157: 1 | S157: 1 | X157: 1 | Y157: Stazione | Z157: 1 | AA157: 1 | AB157: 0 | AC157: 100 | AD157: 0 | AE157: 0 | AF157: 0 | AG157: 0 | AH157: 2026 | AI157: 2028 | AJ157: 2032 | AK157: 2020 | AV157: No | AX157: 0 | AY157: 4
A158: Intervento Piano precedente | B158: Area Sardegna | D158: 1 | F158: Sardegna | G158: 728-P | H158: Adeguamento SE Busachi | I158: - | J158: - | K158: - | M158: 1 | X158: 1 | Y158: Stazione | Z158: 1 | AA158: 1 | AB158: 0 | AC158: 100 | AD158: 0 | AE158: 0 | AF158: 0 | AG158: 0 | AH158: 2026 | AI158: 2028 | AJ158: 2032 | AK158: 2020 | AV158: No | AX158: 0 | AY158: 4
A159: Intervento Piano precedente | B159: Area Sardegna | D159: 1 | F159: Sardegna | G159: 729-P | H159: Adeguamento SE Nurri | I159: - | J159: - | K159: - | M159: 1 | S159: 1 | X159: 1 | Y159: Stazione | Z159: 1 | AA159: 1 | AB159: 0 | AC159: 100 | AD159: 0 | AE159: 0 | AF159: 0 | AG159: 0 | AH159: 2026 | AI159: 2028 | AJ159: 2032 | AK159: 2020 | AV159: No | AX159: 0 | AY159: 4
A160: Intervento Piano precedente | B160: Area Sardegna | D160: 1 | F160: Sardegna | G160: 730-P | H160: Adeguamento SE Ulassai | I160: - | J160: - | K160: - | M160: 1 | S160: 1 | X160: 1 | Y160: Stazione | Z160: 1 | AA160: 1 | AB160: 0 | AC160: 100 | AD160: 0 | AE160: 0 | AF160: 0 | AG160: 0 | AH160: 2026 | AI160: 2028 | AJ160: 2032 | AK160: 2020 | AV160: No | AX160: 0 | AY160: 4
A161: Intervento Piano precedente | B161: Area Nord-Ovest | D161: 1 | F161: Piemonte | G161: 32-P | H161: Rimozione Antenna CP Cappellazzo | M161: 1 | X161: 1 | Y161: Linea | Z161: 1 | AA161: 1 | AB161: 100 | AC161: 0 | AD161: 0 | AE161: 0 | AF161: 0 | AG161: 0 | AH161: 2024 | AI161: 2027 | AJ161: 2030 | AK161: 2021 | AM161: 8 | AV161: No | AX161: 0 | AY161: 4
A162: Intervento Piano precedente | B162: Area Nord | D162: 1 | F162: Lombardia | G162: 167-P | H162: Razionalizzazione Valchiavenna | L162: 1 | M162: 1 | N162: 1 | O162: 1 | Q162: 1 | S162: 1 | U162: 1 | V162: 1 | X162: 1 | Y162: Gruppo di opere | Z162: 8 | AA162: 8 | AB162: 100 | AC162: 0 | AD162: 0 | AE162: 0 | AF162: 0 | AG162: 0 | AH162: 2023 | AI162: 2033 | AJ162: 2038 | AK162: 2021 | AL162: 1000 | AM162: 270 | AN162: 82 | AO162: 15 | AP162: 552 | AQ162: 78 | AR162: 39 | AV162: Si | AW162: rif. Tab. C | AX162: <1 | AY162: 1244 | AZ162: 112-P 127-P
A163: Intervento Piano precedente | B163: Area Nord | D163: 1 | F163: Lombardia | G163: 168-P | H163: Riassetto rete 132 kV tra Mantova e Ostiglia | M163: 1 | O163: 1 | X163: 1 | Y163: Gruppo di opere | Z163: 3 | AA163: 3 | AB163: 100 | AC163: 0 | AD163: 0 | AE163: 0 | AF163: 0 | AG163: 0 | AH163: 2023 | AI163: 2026 | AJ163: 2028 | AK163: 2021 | AM163: 37 | AP163: 6 | AV163: No | AX163: 0 | AY163: 9 | AZ163: 328-P
A164: Intervento Piano precedente | B164: Area Nord | D164: 1 | F164: Lombardia | G164: 169-P | H164: Riassetto rete tra Tavazzano e Colà | M164: 1 | X164: 1 | Y164: Gruppo di opere | Z164: 2 | AA164: 2 | AB164: 100 | AC164: 0 | AD164: 0 | AE164: 0 | AF164: 0 | AG164: 0 | AH164: 2023 | AI164: 2028 | AJ164: 2030 | AK164: 2021 | AM164: 4 | AO164: 1 | AP164: 2 | AS164: 107 | AU164: 4 | AV164: Si | AW164: rif. Tab. C | AX164: 0 | AY164: 59
A165: Intervento Piano precedente | B165: Area Nord | D165: 1 | F165: Lombardia | G165: 170-P | H165: Riassetto rete tra Cislago e Dalmine | M165: 1 | X165: 1 | Y165: Gruppo di opere | Z165: 5 | AA165: 5 | AB165: 100 | AC165: 0 | AD165: 0 | AE165: 0 | AF165: 0 | AG165: 0 | AH165: 2025 | AI165: 2028 | AJ165: 2030 | AK165: 2021 | AM165: 9 | AN165: 1 | AO165: 3 | AS165: 9 | AT165: 1 | AU165: 3 | AV165: No | AX165: 0 | AY165: 9
A166: Intervento Piano precedente | B166: Area Nord | D166: 1 | F166: Piemonte | G166: 171-P | H166: Nuova stazione 380 kV Greggio | M166: 1 | T166: 1 | X166: 1 | Y166: Gruppo di opere | Z166: 2 | AA166: 2 | AB166: 100 | AC166: 0 | AD166: 0 | AE166: 0 | AF166: 0 | AG166: 0 | AH166: 2026 | AI166: 2032 | AJ166: 2035 | AK166: 2021 | AV166: No | AX166: 0 | AY166: 14
A167: Intervento Piano precedente | B167: Area Sardegna | D167: 1 | F167: Sardegna | G167: 731-P | H167: Riassetto rete area Rumianca/S.Gilla | M167: 1 | S167: 1 | X167: 1 | Y167: Gruppo di opere | Z167: 3 | AA167: 3 | AB167: 0 | AC167: 100 | AD167: 0 | AE167: 0 | AF167: 0 | AG167: 0 | AH167: 2023 | AI167: 2025 | AJ167: 2027 | AK167: 2021 | AM167: 5 | AV167: No | AX167: 0 | AY167: 15
A168: Intervento Piano precedente | B168: Area Nord-Est | E168: 1 | F168: Veneto | G168: 204-P | H168: Elettrodotto 220 kV Interconnessione Italia - Austria | I168: - | J168: 375 | K168: - | L168: 1 | N168: 1 | U168: 1 | V168: 1 | Y168: Gruppo di opere | Z168: 3 | AA168: 2 | AB168: 100 | AC168: 0 | AD168: 0 | AE168: 0 | AF168: 0 | AG168: 0 | AH168: 2023 | AI168: 2032 | AJ168: 2035 | AK168: 2001 | AL168: 500 | AM168: 32 | AN168: 31 | AO168: 3 | AP168: 32 | AQ168: 26 | AR168: 1 | AV168: Si | AW168: rif. Tab. C | AX168: 2 | AY168: 83
A169: Intervento Piano precedente | B169: Area Nord-Est | E169: 1 | F169: Trentino Alto Adige | G169: 208-P | H169: Elettrodotto 132/110 kV Prati di Vizze (IT) – Steinach (AT) | I169: - | J169: 336 | K169: RIP 2017 | L169: 1 | N169: 1 | O169: 1 | R169: 1 | U169: 1 | V169: 1 | Y169: Gruppo di opere | Z169: 4 | AA169: 4 | AB169: 0 | AC169: 25 | AD169: 0 | AE169: 25 | AF169: 0 | AG169: 50 | AJ169: 2023 | AK169: 2003 | AM169: 3 | AO169: 1 | AP169: 2 | AR169: 1 | AS169: 14 | AV169: Si | AW169: rif. Tab. C | AX169: 31 | AY169: 60 | BA169: Per i dettagli dei benefici, si rimanda al PdS 2017
A170: Intervento Piano precedente | B170: Area Nord-Est | E170: 1 | F170: Trentino Alto Adige | G170: 252-P | H170: Interconnessione AT Dobbiaco - Austria | I170: - | J170: - | K170: - | N170: 1 | U170: 1 | X170: 1 | Y170: Linea | Z170: 1 | AA170: 1 | AB170: 100 | AC170: 0 | AD170: 0 | AE170: 0 | AF170: 0 | AG170: 0 | AH170: 2032 | AI170: 3035 | AJ170: 2038 | AK170: 2018 | AL170: 80 - 160 | AM170: 18 | AN170: 2 | AO170: 3 | AV170: Si | AW170: rif. Tab. C | AX170: <1 | AY170: 59 | AZ170: 215-P
A171: Intervento Piano precedente | B171: Area Nord-Est | E171: 1 | F171: Friuli Venezia Giulia | G171: 207-P | H171: Elettrodotto 380 kV Udine Ovest - Redipuglia | I171: - | J171: - | K171: - | M171: 1 | N171: 1 | O171: 1 | P171: 1 | R171: 1 | T171: 1 | U171: 1 | V171: 1 | X171: 1 | Y171: Gruppo di opere | Z171: 13 | AA171: 6 | AB171: 0 | AC171: 16.66666667 | AD171: 0 | AE171: 0 | AF171: 0 | AG171: =(5/6)*100 -> 83.33333333 | AJ171: 2028 | AK171: 2002 | AM171: 16 | AN171: 1 | AO171: 3 | AP171: 37 | AQ171: 1 | AR171: 3 | AV171: Si | AW171: rif. Tab. C | AX171: 160 | AY171: 171 | BA171: Per i dettagli dei benefici, si rimanda al PdS 2017
A172: Intervento Piano precedente | B172: Area Nord-Est | E172: 1 | F172: Veneto | G172: 203-P | H172: Razionalizzazione 380 kV fra Venezia e Padova | I172: - | J172: - | K172: RIP 2017 | N172: 1 | O172: 1 | P172: 1 | R172: 1 | X172: 1 | Y172: Gruppo di opere | Z172: 14 | AA172: 12 | AB172: 9 | AC172: 0 | AD172: 0 | AE172: 58 | AF172: 0 | AG172: 33 | AJ172: 2028 | AK172: 2004 | AM172: 67 | AO172: 2 | AP172: 72 | AR172: 6 | AS172: 1 | AV172: Si | AW172: rif. Tab. C | AX172: 112 | AY172: 372 | BA172: - Opera a cura del distributore localePer i dettagli dei benefici, si rimanda al PdS 2017 - Opera a cura del distributore locale
A173: Intervento Piano precedente | B173: Area Nord-Est | E173: 1 | F173: Trentino Alto Adige | G173: 222-P | H173: Riassetto rete 220 kV Trentino Alto Adige | I173: - | J173: - | K173: - | L173: 1 | M173: 1 | O173: 1 | P173: 1 | S173: 1 | V173: 1 | X173: 1 | Y173: Gruppo di opere | Z173: 6 | AA173: 5 | AB173: 0 | AC173: 60 | AD173: 0 | AE173: 40 | AF173: 0 | AG173: 0 | AJ173: 2034 | AK173: 2013 | AM173: 13 | AO173: 3 | AP173: 7 | AR173: 1 | AS173: 169 | AT173: 12 | AU173: 4 | AV173: Si | AW173: rif. Tab. C | AX173: 7 | AY173: 100 | BA173: Per i dettagli dei benefici, si rimanda al PdS 2021
A174: Intervento Piano precedente | B174: Area Nord-Est | E174: 1 | F174: Veneto | G174: 216-P | H174: Razionalizzazione rete Media Valle del Piave | I174: - | J174: - | K174: RIP 2017 | L174: 1 | M174: 1 | O174: 1 | P174: 1 | S174: 1 | V174: 1 | X174: 1 | Y174: Gruppo di opere | Z174: 11 | AA174: 10 | AB174: 30 | AC174: 0 | AD174: 70 | AE174: 0 | AF174: 0 | AG174: 0 | AI174: 2024 | AJ174: 2038 | AK174: <2004 | AM174: 77 | AN174: 26 | AO174: 5 | AP174: 77 | AQ174: 27 | AR174: 4 | AS174: 78 | AT174: 18 | AU174: 2 | AV174: Si | AW174: rif. Tab. C | AX174: 10 | AY174: 269
A175: Intervento Piano precedente | B175: Area Nord-Est | E175: 1 | F175: Veneto/Trentino Alto Adige | G175: 215-P | H175: Riassetto rete alto Bellunese | I175: - | J175: - | K175: - | L175: 1 | M175: 1 | O175: 1 | P175: 1 | R175: 1 | S175: 1 | W175: 1 | X175: 1 | Y175: Gruppo di opere | Z175: 3 | AA175: 3 | AB175: 0 | AC175: 0 | AD175: 0 | AE175: 0 | AF175: 33 | AG175: 67 | AJ175: 2023 | AK175: 2010 | AM175: 39 | AN175: 17 | AO175: 18 | AP175: 3 | AR175: 1 | AS175: 124 | AT175: 18 | AU175: 27 | AV175: Si | AW175: rif. Tab. C | AX175: 66 | AY175: 103 | BA175: Per i dettagli dei benefici, si rimanda al PdS 2019
A176: Intervento Piano precedente | B176: Area Nord-Est | E176: 1 | F176: Veneto | G176: 206-P | H176: Stazione 380 kV Volpago | I176: - | J176: - | K176: RIP 2017 | M176: 1 | N176: 1 | O176: 1 | U176: 1 | X176: 1 | Y176: Gruppo di opere | Z176: 6 | AA176: 4 | AB176: 50 | AC176: 25 | AD176: 0 | AE176: 0 | AF176: 0 | AG176: 25 | AJ176: 2040 | AK176: 2006 | AM176: 74 | AN176: 7 | AO176: 6 | AP176: 18 | AR176: 3 | AS176: 125 | AT176: 13 | AU176: 4 | AV176: Si | AW176: rif. Tab. C | AX176: 6 | AY176: 320 | BA176: Opera a cura del distributore locale
A177: Intervento Piano precedente | B177: Area Nord-Est | E177: 1 | F177: Veneto | G177: 229-P | H177: Stazione 380 kV Sandrigo | I177: - | J177: - | K177: - | M177: 1 | X177: 1 | Y177: Stazione | Z177: 1 | AA177: 1 | AB177: 0 | AC177: 0 | AD177: 0 | AE177: 0 | AF177: 100 | AG177: 0 | AJ177: 2023 | AK177: 2012 | AV177: No | AX177: <1 | AY177: 5 | BA177: Impatti territoriali non significativi
A178: Intervento Piano precedente | B178: Area Nord-Est | E178: 1 | F178: Veneto | G178: 239-P | H178: Stazione 380 kV Dugale | I178: - | J178: - | K178: - | M178: 1 | X178: 1 | Y178: Stazione | Z178: 1 | AA178: 1 | AB178: 0 | AC178: 0 | AD178: 100 | AE178: 0 | AF178: 0 | AG178: 0 | AJ178: 2024 | AK178: 2012 | AV178: No | AX178: <1 | AY178: 5 | BA178: Impatti territoriali non significativi
A179: Intervento Piano precedente | B179: Area Nord-Est | E179: 1 | F179: Trentino Alto Adige | G179: 249-P | H179: Stazione 220/132 kV S.Floriano | I179: - | J179: - | K179: - | L179: 1 | M179: 1 | S179: 1 | T179: 1 | X179: 1 | Y179: Gruppo di opere | Z179: 2 | AA179: 2 | AB179: 100 | AC179: 0 | AD179: 0 | AE179: 0 | AF179: 0 | AG179: 0 | AH179: 2026 | AI179: 2032 | AJ179: 2035 | AK179: 2018 | AV179: No | AX179: 0 | AY179: 15
A180: Intervento Piano precedente | B180: Area Nord-Est | E180: 1 | F180: Friuli Venezia Giulia | G180: 253-P | H180: Stazione 220/132 kV Padriciano | I180: - | J180: - | K180: - | M180: 1 | X180: 1 | Y180: Gruppo di opere | Z180: 2 | AA180: 2 | AB180: 100 | AC180: 0 | AD180: 0 | AE180: 0 | AF180: 0 | AG180: 0 | AI180: 2026 | AJ180: 2029 | AK180: 2018 | AV180: No | AX180: 3 | AY180: 14
A181: Intervento Piano precedente | B181: Area Nord-Est | E181: 1 | F181: Trentino Alto Adige | G181: 235-P | H181: Stazione 220 kV Ala | I181: - | J181: - | K181: - | M181: 1 | S181: 1 | X181: 1 | Y181: Gruppo di opere | Z181: 4 | AA181: 3 | AB181: 100 | AC181: 0 | AD181: 0 | AE181: 0 | AF181: 0 | AG181: 0 | AH181: 2028 | AI181: 2032 | AJ181: 2035 | AK181: 2008 | AP181: 4 | AR181: 1 | AS181: 9 | AU181: 1 | AV181: No | AX181: <1 | AY181: 11
A182: Intervento Piano precedente | B182: Area Nord-Est | E182: 1 | F182: Trentino Alto Adige | G182: 238-P | H182: Stazione 220 kV Glorenza | I182: - | J182: - | K182: - | L182: 1 | M182: 1 | O182: 1 | S182: 1 | X182: 1 | Y182: Gruppo di opere | Z182: 3 | AA182: 3 | AB182: 0 | AC182: 66.67 | AD182: 0 | AE182: 0 | AF182: 0 | AG182: 33.33 | AJ182: 2024 | AK182: 2012 | AM182: 1 | AS182: 34 | AT182: 30 | AU182: 1 | AV182: Si | AW182: rif. Tab. C | AX182: 21 | AY182: 38 | BA182: Per i dettagli dei benefici, si rimanda al PdS 2019
A183: Intervento Piano precedente | B183: Area Nord-Est | E183: 1 | F183: Veneto | G183: 237-P | H183: Stazione 220 kV Schio e potenziamento rete | I183: - | J183: - | K183: - | M183: 1 | O183: 1 | R183: 1 | X183: 1 | Y183: Gruppo di opere | Z183: 6 | AA183: 6 | AB183: 33 | AC183: 16 | AD183: 0 | AE183: 17 | AF183: 0 | AG183: 33 | AJ183: 2030 | AK183: 2006 | AM183: 17 | AP183: 3 | AS183: 52 | AT183: 1 | AU183: 1 | AV183: Si | AW183: rif. Tab. C | AX183: 19 | AY183: 140 | BA183: Per i dettagli dei benefici, si rimanda al PdS 2019
A184: Intervento Piano precedente | B184: Area Nord-Est | E184: 1 | F184: Friuli Venezia Giulia | G184: 210-P | H184: Elettrodotto 132 kV Redipuglia – Duino | I184: - | J184: - | K184: - | M184: 1 | X184: 1 | Y184: Rimozione limitazioni linea | Z184: 2 | AA184: 2 | AB184: 0 | AC184: 50 | AD184: 0 | AE184: 0 | AF184: 0 | AG184: 50 | AJ184: 2026 | AK184: 2009 | AS184: 15 | AT184: 13 | AU184: 1 | AV184: No | AX184: 1 | AY184: 4
A185: Intervento Piano precedente | B185: Area Nord-Est | E185: 1 | F185: Trentino Alto Adige | G185: 220-P | H185: Razionalizzazione rete AT nell’area di S.Massenza | I185: - | J185: - | K185: - | L185: 1 | M185: 1 | R185: 1 | S185: 1 | X185: 1 | Y185: Gruppo di opere | Z185: 5 | AA185: 5 | AB185: 40 | AC185: 20 | AD185: 0 | AE185: 0 | AF185: 0 | AG185: 40 | AJ185: 2027 | AK185: 2008 | AM185: 1 | AP185: 21 | AR185: 1 | AV185: No | AX185: 7 | AY185: 12
A186: Intervento Piano precedente | B186: Area Nord-Est | E186: 1 | F186: Trentino Alto Adige | G186: 221-P | H186: Razionalizzazione 132 kV Trento Sud | I186: - | J186: - | K186: - | M186: 1 | R186: 1 | S186: 1 | X186: 1 | Y186: Gruppo di opere | Z186: 6 | AA186: 5 | AB186: 60 | AC186: 0 | AD186: 0 | AE186: 40 | AF186: 0 | AG186: 0 | AI186: 2023 | AJ186: 2030 | AK186: 2003 | AM186: 58 | AN186: 2 | AO186: 7 | AP186: 48 | AQ186: 2 | AR186: 7 | AS186: 34 | AT186: 1 | AU186: 2 | AV186: Si | AW186: rif. Tab. C | AX186: 4 | AY186: 43 | BA186: Per i dettagli dei benefici, si rimanda al PdS 2021
A187: Intervento Piano precedente | B187: Area Nord-Est | E187: 1 | F187: Veneto | G187: 225-P | H187: Potenziamento rete AT area Rovigo | I187: - | J187: - | K187: - | M187: 1 | R187: 1 | T187: 1 | W187: 1 | X187: 1 | Y187: Gruppo di opere | Z187: 3 | AA187: 3 | AB187: 33.33 | AC187: 0 | AD187: 0 | AE187: 33.33 | AF187: 0 | AG187: 33.34 | AJ187: 2031 | AK187: 2011 | AP187: 5 | AQ187: 1 | AR187: 5 | AV187: No | AX187: 2 | AY187: 3
A188: Intervento Piano precedente | B188: Area Nord-Est | E188: 1 | F188: Trentino Alto Adige | G188: 245-P | H188: Stazione Bressanone e direttrice 132 kV Terme di Brennero – Bolzano FS – Mori | I188: - | J188: - | K188: - | L188: 1 | M188: 1 | O188: 1 | P188: 1 | S188: 1 | T188: 1 | X188: 1 | Y188: Gruppo di opere | Z188: 6 | AA188: 6 | AB188: 66.67 | AC188: 0 | AD188: 17 | AE188: 0 | AF188: 0 | AG188: 16.66 | AJ188: 2035 | AK188: 2016/2007 | AM188: 4 | AO188: 3 | AP188: 74 | AQ188: 3 | AR188: 6 | AS188: 43 | AU188: 3 | AV188: Si | AW188: rif. Tab. C | AX188: 6 | AY188: 50
A189: Intervento Piano precedente | B189: Area Nord-Est | E189: 1 | F189: Friuli Venezia Giulia | G189: 246-P | H189: Direttrice 132 kV Opicina FS – Redipuglia | I189: - | J189: - | K189: - | N189: 1 | T189: 1 | Y189: Rimozione limitazioni linea | Z189: 1 | AA189: 1 | AB189: 0 | AC189: 0 | AD189: 0 | AE189: 100 | AF189: 0 | AG189: 0 | AJ189: 2025 | AK189: 2016 | AS189: 31 | AT189: 31 | AV189: No | AX189: <1 | AY189: 7
A190: Interconnector | B190: Area Nord-Est | E190: 1 | F190: Trentino Alto Adige | G190: 100I | H190: Incremento della capacità di interconnessione con l’Austria ai sensi della legge 99/2009 e s.m.i. | I190: - | J190: 26 | K190: - | L190: 1 | N190: 1 | O190: 1 | U190: 1 | V190: 1 | Y190: Gruppo di opere | Z190: 2 | AA190: 2 | AB190: 0 | AC190: 0 | AD190: 0 | AE190: 0 | AF190: 50 | AG190: 50 | AJ190: 2023 | AK190: 2010 | AM190: 26 | AO190: 1 | AV190: Si | AW190: rif. Tab. C | AX190: 61 | AY190: 80 | AZ190: 238–P | BA190: Per i dettagli dei benefici, si rimanda al PdS 2019
A191: Interconnector | B191: Area Nord-Est | E191: 1 | F191: Veneto | G191: 200-I | H191: Incremento della capacità di interconnessione con la Slovenia ai sensi della legge 99/2009 e s.m.i. | I191: 3.21 | J191: 150 | K191: - | L191: 1 | N191: 1 | O191: 1 | S191: 1 | U191: 1 | V191: 1 | X191: 1 | Y191: Gruppo di opere | Z191: 2 | AA191: 2 | AB191: 50 | AC191: 0 | AD191: 50 | AE191: 0 | AF191: 0 | AG191: 0 | AI191: 2026 | AJ191: 2042 | AK191: 2010 | AL191: 1000 | AS191: 38 | AT191: 2 | AU191: 2 | AV191: Si | AW191: rif. Tab. C | AX191: 5 | AY191: 400-450
A192: Intervento Piano precedente | B192: Area Centro-Nord | E192: 1 | F192: Emilia Romagna/Toscana | G192: 302-P | H192: Elettrodotto 380 kV Colunga – Calenzano | I192: - | J192: 33 | K192: - | L192: 1 | M192: 1 | N192: 1 | O192: 1 | Q192: 1 | S192: 1 | T192: 1 | V192: 1 | W192: 1 | X192: 1 | Y192: Gruppo di opere | Z192: 13 | AA192: 9 | AB192: 0 | AC192: 0 | AD192: 0 | AE192: 89 | AF192: 0 | AG192: 11 | AJ192: 2025 | AK192: 2005 | AL192: 400 | AM192: 129 | AN192: 27 | AO192: 3 | AP192: 108 | AQ192: 16 | AR192: 3 | AV192: Si | AW192: rif. Tab. C | AX192: 74 | AY192: 252 | BA192: Per i dettagli dei benefici, si rimanda al PdS 2020
A193: Intervento Piano precedente | B193: Area Centro-Nord | E193: 1 | F193: Toscana | G193: 309-P | H193: Elettrodotto 132 kV Elba – Continente | I193: - | J193: - | K193: RIP 2017 | M193: 1 | N193: 1 | O193: 1 | P193: 1 | R193: 1 | W193: 1 | X193: 1 | Y193: Linea | Z193: 2 | AA193: 2 | AB193: 0 | AC193: 0 | AE193: 50 | AF193: 50 | AG193: 0 | AJ193: 2023 | AK193: 2011 | AM193: 42 | AN193: 31 | AO193: 1 | AP193: 7 | AQ193: 1 | AR193: 1 | AV193: Si | AW193: rif. Tab. C | AX193: 89 | AY193: 143 | BA193: Per i dettagli dei benefici, si rimanda al PdS 2017
A194: Intervento Piano precedente | B194: Area Centro-Nord | E194: 1 | F194: Toscana | G194: 306-P | H194: Riassetto rete 380 e 132 kV area di Lucca | I194: - | J194: - | K194: - | M194: 1 | N194: 1 | T194: 1 | X194: 1 | Y194: Gruppo di opere | Z194: 3 | AA194: 3 | AB194: 33 | AC194: 0 | AD194: 67 | AE194: 0 | AF194: 0 | AG194: 0 | AI194: 2026 | AJ194: 2034 | AK194: 2008 | AM194: 3 | AO194: 1 | AS194: 32 | AU194: 2 | AV194: Si | AW194: rif. Tab. C | AX194: 2 | AY194: 66
A195: Intervento Piano precedente | B195: Area Centro-Nord | E195: 1 | F195: Toscana | G195: 317-P | H195: Rete metropolitana di Firenze | I195: - | J195: - | K195: - | M195: 1 | O195: 1 | P195: 1 | S195: 1 | W195: 1 | X195: 1 | Y195: Gruppo di opere | Z195: 12 | AA195: 12 | AB195: 0 | AC195: 0 | AD195: 0 | AE195: 0 | AF195: 58 | AG195: 42 | AJ195: 2024 | AK195: 2010 | AM195: 11 | AO195: 7 | AP195: 16 | AR195: 7 | AS195: 3 | AU195: 1 | AV195: Si | AW195: rif. Tab. C | AX195: 25 | AY195: 44 | BA195: Per i dettagli dei benefici, si rimanda al PdS 2017
A196: Intervento Piano precedente | B196: Area Centro-Nord | E196: 1 | F196: Emilia Romagna | G196: 319-P | H196: Anello 132 kV Riccione - Rimini | I196: - | J196: - | K196: - | M196: 1 | O196: 1 | R196: 1 | T196: 1 | X196: 1 | Y196: Gruppo di opere | Z196: 6 | AA196: 6 | AB196: 17 | AC196: 0 | AD196: 0 | AE196: 83 | AF196: 0 | AG196: 0 | AI196: 2024 | AJ196: 2028 | AK196: 2009 | AM196: 17 | AO196: 6 | AP196: 41 | AR196: 8 | AS196: 19 | AU196: 2 | AV196: Si | AW196: rif. Tab. C | AX196: 10 | AY196: 53 | BA196: Per i dettagli dei benefici, si rimanda al PdS 2021
A197: Intervento Piano precedente | B197: Area Centro-Nord | E197: 1 | F197: Toscana | G197: 305-P | H197: Rete AT di Arezzo | I197: - | J197: - | K197: - | M197: 1 | X197: 1 | Y197: Gruppo di opere | Z197: 6 | AA197: 6 | AB197: 67 | AC197: 0 | AD197: 0 | AE197: 16.66666667 | AF197: 0 | AG197: 16 | AJ197: 2034 | AK197: 2009 | AS197: 57 | AT197: 8 | AU197: 6 | AV197: No | AX197: 1 | AY197: 13
A198: Intervento Piano precedente | B198: Area Centro-Nord | E198: 1 | F198: Emilia Romagna | G198: 307-P | H198: Elettrodotto 220 kV Colunga - Este | I198: - | J198: - | K198: - | M198: 1 | X198: 1 | Y198: Gruppo di opere | Z198: 4 | AA198: 3 | AB198: 0 | AC198: 0 | AD198: 0 | AE198: 100 | AF198: 0 | AG198: 0 | AJ198: 2024 | AK198: 2001 | AM198: 18 | AO198: 4 | AP198: 65 | AQ198: 1 | AR198: 9 | AS198: 28 | AT198: 1 | AV198: No | AX198: 6 | AY198: 13
A199: Intervento Piano precedente | B199: Area Centro-Nord | E199: 1 | F199: Toscana | G199: 308-P | H199: Riassetto rete area Livorno | I199: - | J199: - | K199: - | M199: 1 | N199: 1 | P199: 1 | T199: 1 | X199: 1 | Y199: Gruppo di opere | Z199: 8 | AA199: 5 | AB199: 20 | AC199: 0 | AD199: 0 | AE199: 20 | AF199: 20 | AG199: 40 | AJ199: 2030 | AK199: 2009 | AM199: 1 | AO199: 1 | AP199: 1 | AS199: 33 | AT199: 5 | AV199: Si | AW199: rif. Tab. C | AX199: 39 | AY199: 57 | BA199: Per i dettagli dei benefici, si rimanda al PdS 2019
A200: Intervento Piano precedente | B200: Area Centro-Nord | E200: 1 | F200: Emilia Romagna | G200: 310-P | H200: Rete 132 kV tra Borgonovo, Salsominore e Borgotaro | I200: - | J200: - | K200: - | L200: 1 | M200: 1 | S200: 1 | X200: 1 | Y200: Gruppo di opere | Z200: 3 | AA200: 3 | AB200: 67 | AC200: 0 | AD200: 0 | AE200: 0 | AF200: 0 | AG200: 33.33333333 | AJ200: 2030 | AK200: 2003 | AM200: 15 | AN200: 2 | AV200: Si | AW200: rif. Tab. C | AX200: 7 | AY200: 31 | BA200: Per i dettagli dei benefici, si rimanda al PdS 2020
A201: Intervento Piano precedente | B201: Area Centro-Nord | E201: 1 | F201: Toscana | G201: 311-P | H201: Elettrodotto 132 kV Grosseto FS – Orbetello FS | I201: - | J201: - | K201: - | L201: 1 | M201: 1 | S201: 1 | T201: 1 | X201: 1 | Y201: Gruppo di opere | Z201: 3 | AA201: 3 | AB201: 67 | AC201: 0 | AD201: 0 | AE201: 0 | AF201: 0 | AG201: 33 | AJ201: 2030 | AK201: 2003 | AM201: 21 | AN201: 1 | AO201: 1 | AS201: 44 | AV201: No | AX201: <1 | AY201: 22
... 32 more rows

Sheet Foglio1 (hidden)
A1: Per liste | C1: NON TOCCARE | O1: BE
A2: Intervento Piano precedente | E2: Area Nord-Ovest | H2: DTNO | J2: Dispositivo di compensazione | M2: Si | O2: ST
A3: Interconnector | E3: Area Nord-Est | H3: DTNE | J3: Gruppo di opere | M3: No | O3: DG
A4: Nuovo intervento | E4: Area Nord | H4: DTCS | J4: Linea | O4: V1
E5: Area Centro | J5: Rimozione limitazioni linea | O5: V3
E6: Area Centro-Nord | J6: Stazione | O6: PNIEC
E7: Area Sardegna | O7: PNIEC-BAU
E8: Area Sicilia | O8: DEC
E9: Area Sud | O9: BAU
E10: Area Sardegna/Centro Nord | O10: PNIEC-DEC
E11: Centro Sud/Sicilia/Sardegna | O11: PNIEC-PNIEC-DEC
O12: PNIEC-BAU-BAU
O13: NT-IT/NT-IT
O14: BAU-BAU
O15: NT-IT/BAU
O16: ST-ST
O17: DEC-DEC
O18: FF55/DE
O19: LT/LT
O20: DE
O21: LT

Sheet C-Benefici Attesi PdS23
AE2: Base?
AF3: Non presenti in attuale ACB, devono essere popolati solo per scenari di PdSp precedenti | AG3: Non presenti in attuale ACB, devono essere popolati solo per scenari di PdSp precedenti | AL3: Non presenti in attuale ACB, devono essere popolati solo per scenari di PdSp precedenti | BM3: DA verificare se valorizzata colonna | CB3: serve doppia colonna GW e GWh?
O4: =SUBTOTAL(9,O8:O120) -> 277 | P4: =SUBTOTAL(9,P8:P120) -> 0 | R4: =SUBTOTAL(9,R8:R120) -> 16 | T4: =SUBTOTAL(9,T8:T120) -> 3 | U4: =SUBTOTAL(9,U8:U120) -> 4.002 | W4: =SUBTOTAL(9,W8:W120) -> 27 | Y4: =SUBTOTAL(9,Y8:Y120) -> -2 | Z4: =SUBTOTAL(9,Z8:Z120) -> 3 | AB4: =SUBTOTAL(9,AB8:AB120) -> 0 | AC4: =SUBTOTAL(9,AC8:AC120) -> 50 | AD4: =SUBTOTAL(9,AD8:AD120) -> 29 | AE4: =SUBTOTAL(9,AE8:AE120) -> 1083 | AF4: =SUBTOTAL(9,AF8:AF120) -> 57.9 | AH4: =SUBTOTAL(9,AH8:AH120) -> 197 | AJ4: =SUBTOTAL(9,AJ8:AJ120) -> 208 | AK4: =SUBTOTAL(9,AK8:AK120) -> 663.3 | AL4: =SUBTOTAL(9,AM8:AM120) -> 14 | AM4: =SUBTOTAL(9,AO8:AO120) -> 71.46 | AN4: =SUBTOTAL(9,AN8:AN120) -> 116.6 | AO4: =SUBTOTAL(9,AS8:AS120) -> 0 | AP4: =SUBTOTAL(9,AT8:AT120) -> 32.6 | AQ4: =SUBTOTAL(9,AU8:AU120) -> -27.03 | AS4: =SUBTOTAL(9,AW8:AW120) -> 4515 | AT4: =SUBTOTAL(9,AX8:AX120) -> 111.9 | AU4: =SUBTOTAL(9,AY8:AY120) -> 450.2 | AW4: =SUBTOTAL(9,BA8:BA120) -> 187 | AX4: =SUBTOTAL(9,BC8:BC120) -> 449.012 | AY4: =SUBTOTAL(9,BD8:BD120) -> 0 | BA4: =SUBTOTAL(9,BF8:BF120) -> 34.6 | BB4: =SUBTOTAL(9,BG8:BG120) -> 1483 | BC4: =SUBTOTAL(9,BI8:BI120) -> 0 | BD4: =SUBTOTAL(9,BJ8:BJ120) -> 1196.3 | BE4: =SUBTOTAL(9,BK8:BK120) -> 340.83 | BF4: =SUBTOTAL(9,BL8:BL120) -> 29.912 | BG4: =SUBTOTAL(9,BM8:BM120) -> 0 | BH4: =SUBTOTAL(9,BO8:BO120) -> 2513.3029 | BI4: =SUBTOTAL(9,BP8:BP120) -> 2470 | BJ4: =SUBTOTAL(9,BQ8:BQ120) -> 1541900 | BK4: =SUBTOTAL(9,BS8:BS120) -> 0.048 | BL4: =SUBTOTAL(9,BT8:BT120) -> 43.8 | BM4: =SUBTOTAL(9,BU8:BU120) -> -0.197 | BO4: =SUBTOTAL(9,BV8:BV120) -> 1600 | BP4: =SUBTOTAL(9,BW8:BW120) -> 9341 | BQ4: =SUBTOTAL(9,BX8:BX120) -> 44 | BS4: =SUBTOTAL(9,BY8:BY120) -> 970.633 | BT4: =SUBTOTAL(9,BZ8:BZ120) -> 0.007 | BU4: =SUBTOTAL(9,CB8:CB120) -> 7.78247 | BV4: =SUBTOTAL(9,CC8:CC120) -> 0 | BW4: =SUBTOTAL(9,CE8:CE120) -> 4761.477 | BX4: =SUBTOTAL(9,CF8:CF120) -> 1432.417 | BY4: =SUBTOTAL(9,CH8:CH120) -> 3976.67 | BZ4: =SUBTOTAL(9,CI8:CI120) -> -0.445 | CB4: =SUBTOTAL(9,CK8:CK120) -> 37600 | CC4: =SUBTOTAL(9,CL8:CL120) -> 9024384 | CD4: =SUBTOTAL(9,CL8:CL120) -> 9024384 | CE4: =SUBTOTAL(9,CM8:CM120) -> 3352.5 | CF4: =SUBTOTAL(9,CO8:CO120) -> 1406.878 | CH4: =SUBTOTAL(9,CP8:CP120) -> 0.012 | CI4: =SUBTOTAL(9,CR8:CR120) -> 10.16272 | CK4: =SUBTOTAL(9,CS8:CS120) -> 0.5539 | CL4: =SUBTOTAL(9,CU8:CU120) -> 6665.2526 | CM4: =SUBTOTAL(9,CW8:CW120) -> 243.77 | CN4: =SUBTOTAL(9,CN8:CN120) -> -1942 | CO4: =SUBTOTAL(9,CY8:CY120) -> 7.934 | CP4: =SUBTOTAL(9,DA8:DA120) -> 19200 | CR4: =SUBTOTAL(9,DB8:DB120) -> 39453457 | CS4: =SUBTOTAL(9,DC8:DC120) -> 9886 | CV4: CORRETTA QUANTIFICAZIONE IN ENERGIA | DD4: =SUBTOTAL(9,DD8:DD120) -> -2624
O5: Benefici Monetari Mln€ | P5: Benefici Monetari Mln€ | Q5: Benefici Monetari Mln€ | R5: Benefici Monetari Mln€ | S5: Benefici Monetari Mln€ | T5: Benefici Monetari Mln€ | U5: Benefici Monetari Mln€ | V5: Benefici Monetari Mln€ | W5: Benefici Monetari Mln€ | X5: Benefici Monetari Mln€ | Y5: Benefici Monetari Mln€ | Z5: Benefici Monetari Mln€ | AA5: Benefici Monetari Mln€ | AB5: Benefici Monetari Mln€ | AC5: Benefici Monetari Mln€ | AD5: Benefici Monetari Mln€ | AE5: Benefici Base Monetari Mln€ | AF5: Benefici Base Monetari Mln€ | AG5: Benefici Base Monetari Mln€ | AH5: Benefici Base Monetari Mln€ | AI5: Benefici Base Monetari Mln€ | AJ5: Benefici Base Monetari Mln€ | AK5: Benefici Base Monetari Mln€ | AL5: Benefici Base Monetari Mln€ | AM5: Benefici Base Monetari Mln€ | AN5: Benefici Base Monetari Mln€ | AO5: Benefici Base Monetari Mln€ | AP5: Benefici Base Monetari Mln€ | AQ5: Benefici Base Monetari Mln€ | AR5: Benefici Base Monetari Mln€ | AS5: Benefici Base Monetari Mln€ | AT5: Benefici Base Monetari Mln€ | AU5: Benefici Base Monetari Mln€ | AW5: Benefici Base Monetari Mln€ | AX5: Benefici Base Monetari Mln€ | AY5: Benefici Base Monetari Mln€ | AZ5: Benefici Base Monetari Mln€ | BA5: Benefici Base Monetari Mln€ | BB5: Benefici Base Monetari Mln€ | BC5: Benefici Base Monetari Mln€ | BD5: Benefici Base Monetari Mln€ | BE5: Benefici Base Monetari Mln€ | BF5: Benefici Base Monetari Mln€ | BG5: Benefici Base Monetari Mln€ | BH5: Benefici Base Monetari Mln€ | BI5: Benefici Base Monetari Mln€ | BJ5: Benefici Base Monetari Mln€ | BK5: Benefici Base Monetari Mln€ | BL5: Quantità di benefici monetari | BM5: Quantità di benefici monetari | BN5: Quantità di benefici monetari | BO5: Quantità di benefici monetari | BP5: Quantità di benefici monetari | BQ5: Quantità di benefici monetari | BR5: Quantità di benefici monetari | BS5: Quantità di benefici monetari | BT5: Quantità di benefici monetari | BU5: Quantità di benefici monetari | BV5: Quantità di benefici monetari | BW5: Quantità di benefici monetari | BX5: Quantità di benefici monetari | BY5: Quantità di benefici monetari | BZ5: Quantità di benefici monetari | CA5: Quantità di benefici monetari | CB5: Quantità di benefici monetari | CC5: Quantità di benefici monetari | CD5: Quantità di benefici monetari | CE5: Quantità di benefici monetari | CF5: Quantità di benefici monetari | CG5: Quantità di benefici monetari | CH5: Quantità di benefici monetari | CI5: Quantità di benefici monetari | CJ5: Quantità di benefici monetari | CK5: Quantità di benefici monetari | CL5: Quantità di benefici monetari | CM5: Quantità di benefici monetari | CN5: Quantità di benefici monetari | CO5: Quantità di benefici monetari | CP5: Quantità di benefici monetari | CQ5: Quantità di benefici monetari | CR5: Quantità di benefici monetari | CS5: Quantità di benefici monetari | CT5: Quantità di benefici monetari | CU5: Quantità di benefici monetari | CV5: Quantità di benefici monetari | CW5: Quantità di benefici monetari | CX5: Quantità di benefici monetari | CY5: Quantità di benefici monetari | DA5: Altri benefici non monetari | DB5: Altri benefici non monetari | DC5: Altri benefici non monetari | DD5: Altri benefici non monetari
B6: Distretto Territoriale | O6: 2025 | P6: 2025 | Q6: 2025 | R6: 2025 | S6: 2025 | T6: 2025 | U6: 2025 | V6: 2025 | W6: 2025 | X6: 2025 | Y6: 2025 | Z6: 2025 | AA6: 2025 | AB6: 2025 | AC6: 2025 | AD6: 2025 | AE6: 2030 | AF6: 2030 | AG6: 2030 | AH6: 2030 | AI6: 2030 | AJ6: 2030 | AK6: 2030 | AL6: 2030 | AM6: 2030 | AN6: 2030 | AO6: 2030 | AP6: 2030 | AQ6: 2030 | AR6: 2030 | AS6: 2030 | AT6: 2030 | AU6: 2030 | AV6: 2030 | AW6: 2040 | AX6: 2040 | AY6: 2040 | AZ6: 2040 | BA6: 2040 | BB6: 2040 | BC6: 2040 | BD6: 2040 | BE6: 2040 | BF6: 2040 | BG6: 2040 | BH6: 2040 | BI6: 2040 | BJ6: 2040 | BK6: 2040 | BL6: 2025 | BM6: 2025 | BN6: 2025 | BO6: 2025 | BP6: 2025 | BQ6: 2025 | BR6: 2025 | BS6: 2025 | BT6: 2025 | BU6: 2025 | BV6: 2025 | BW6: 2025 | BX6: 2025 | BY6: 2030 | BZ6: 2030 | CA6: 2030 | CB6: 2030 | CC6: 2030 | CD6: 2030 | CE6: 2030 | CF6: 2030 | CG6: 2030 | CH6: 2030 | CI6: 2030 | CJ6: 2030 | CK6: 2030 | CL6: 2030 | CM6: 2030 | CN6: 2030 | CO6: 2040 | CP6: 2040 | CQ6: 2040 | CR6: 2040 | CS6: 2040 | CT6: 2040 | CU6: 2040 | CV6: 2040 | CW6: 2040 | CX6: 2040 | CY6: 2040 | CZ6: 2040 | DA6: 2040 | DB6: 2040 | DC6: 2040 | DD6: 2040
A7: Area Territoriale | B7: DTNO | C7: DTNE | D7: DTCS | E7: Regioni interessate | F7: Codice PdS dell'Intervento | G7: Nome dell'intervento | H7: Scenario | I7: IUS | J7: IUS benefici base | K7: IUS benefici totali | L7: VAN [M€] | M7: VAN benefici base [M€] | N7: VAN benefici totali [M€] | O7: B1 - SEW | P7: B2a - Riduzione Perdite | Q7: B2b- Riduzione Perdite | R7: B3a- Riduzione ENF | S7: B3b- Riduzione ENF | T7: B4 - Costi evitati o differiti | U7: B5b - Integrazione rinnovabili | V7: B5- Integrazione rinnovabili | W7: B6 - Investimenti evitati | X7: B7 - Costi evitati MSD | Y7: B7n - Costi evitati MSD Nodale | Z7: B7z - Costi evitati MSD Zonale | AA7: B13 - Incremento Resilienza | AB7: B16 - Opex Evitati o differiti | AC7: B18 - Riduzione CO2 | AD7: B19 - Rid. NOx, SOx, PM | AE7: B1 - SEW | AF7: B2a - Riduzione Perdite | AG7: B2b - Riduzione Perdite | AH7: B3a- Riduzione ENF | AI7: B3b - Riduzione ENF | AJ7: B4 - Costi evitati o differiti | AK7: B5a - Integrazione rinnovabili | AL7: B5b - Integrazione rinnovabili | AM7: B6 - Investimenti evitati | AN7: B7 - Costi evitati MSD Nodale | AO7: B7n - Costi evitati MSD Nodale | AP7: B7z - Costi evitati MSD Zonale | AQ7: B8 - Costi per servizi di rete e approvvigionamento | AR7: B13 - Incremento Resilienza | AS7: B16 - Opex Evitati o differiti | AT7: B18 - Riduzione CO2 | AU7: B19 - Rid. NOx, SOx, PM | AV7: B21 - Visual Amenity | AW7: B1 - SEW | AX7: B2a - Riduzione Perdite | AY7: B3a- Riduzione ENF | AZ7: B3b - Riduzione ENF | BA7: B4 - Costi evitati o differiti | BB7: B5a - Integrazione rinnovabili | BC7: B5b - Integrazione rinnovabili | BD7: B6 - Investimenti evitati | BE7: B7 - Costi evitati MSD Nodale | BF7: B7n - Costi evitati MSD Nodale | BG7: B7z - Costi evitati MSD Zonale | BH7: B8 - Costi per servizi di rete e approvvigionamento | BI7: B16 - Opex Evitati o differiti | BJ7: B18 - Riduzione CO2 | BK7: B19 - Rid. NOx, SOx, PM | BL7: B2a - Riduzione Perdite [GWh] | BM7: B2a - Riduzione Perdite [GW] | BN7: B2b - Riduzione perdite [MW] | BO7: B3a- Riduzione ENF [MWh] | BP7: B3b- Riduzione ENF [MWh] | BQ7: B5a - Integrazione rinnovabili [MWh] | BR7: B5b - Integrazione rinnovabili [GWh] | BS7: B5b - Integrazione rinnovabili [GW] | BT7: B18 - Riduzione CO2 [k ton] | BU7: B19 - Rid. NOx, SOx, PM [k ton] | BV7: I21 - TTC/Zone di mercato [MW] | BW7: I5 - Overgeneration [MWh] | BX7: I8 - Variaz. emissioni CO2 [k ton] | BY7: B2a - Riduzione Perdite [GWh] | BZ7: B2a - Riduzione Perdite [GW] | CA7: B2b - Riduzione Perdite [MW] | CB7: B3a- Riduzione ENF [GWh] | CC7: B3a- Riduzione ENF [GW] | CD7: B3b - Riduzione ENF [MWh] | CE7: B5a - Integrazione rinnovabili [GWh] | CF7: B5b - Integrazione rinnovabili [GWh] | CG7: B5b - Integrazione rinnovabili [GW] | CH7: B18 - Riduzione CO2 [k ton] | CI7: B19 - Rid. NOx, SOx, PM [k ton] | CJ7: B20 [anni] | CK7: I21 - TTC/Zone di mercato [MW] | CL7: I5 - Overgeneration [MWh] | CM7: I8 - Variaz. emissioni CO2 [k ton] | CN7: I2 - Variaz. Perdite [GWh] | CO7: B2a - Riduzione Perdite [GWh] | CP7: B2a - Riduzione Perdite [GW] | CQ7: B2b - Riduzione Perdite [MW] | CR7: B3a- Riduzione ENF [GWh] | CS7: B3a- Riduzione ENF [GW] | CT7: B3b - Riduzione ENF [GWh] | CU7: B5a - Integrazione rinnovabili [GWh] | CV7: B5b - Integrazione rinnovabili [GWh] | CW7: B5b - Integrazione rinnovabili [GW] | CX7: B18 - Riduzione CO2 [k ton] | CY7: B19 - Rid. NOx, SOx, PM [k ton] | CZ7: B20 - Anticipo Fruizione Benefici (anni) | DA7: I21 - TTC/Zone di mercato [MW] | DB7: I5 - Overgeneration [MWh] | DC7: I8 - Variaz. emissioni CO2 [k ton] | DD7: I2 - Variaz. Perdite [GWh]
A8: Area Centro/Centro-Nord/Nord | B8: 1 | C8: 1 | D8: 1 | E8: Lazio/Toscana/Emilia- Romagna/ Lombardia | F8: 355-N | G8: HVDC Milano-Montalto | H8: FF55/DE | I8: =CONCATENATE(J8,"-",K8) -> 4,1-5,1 | J8: 4.1 | K8: 5.1 | L8: =CONCATENATE(M8,"-",N8) -> 6825-9000 | M8: 6825 | N8: 9000 | AE8: 185 | AK8: -23 | AN8: 1 | AQ8: 137 | AT8: 3 | AU8: -2 | AW8: 1045 | BB8: -194 | BE8: 4 | BH8: 57 | BJ8: 195 | BK8: 50 | CE8: -192.7 | CH8: 647 | CI8: -0.1 | CK8: 2000/800 | CL8: 783425 | CM8: 647 | CN8: -624 | CU8: -1527.9 | CX8: 1334 | CY8: 1.2 | DA8: 2000/800 | DB8: 5541030 | DC8: 1334 | DD8: -821
A9: Area Centro/Centro-Nord/Nord | B9: 1 | C9: 1 | D9: 1 | E9: Lazio/Toscana/Emilia- Romagna/ Lombardia | F9: 355-N | G9: HVDC Milano-Montalto | H9: LT/LT | I9: 1,7-2,1 | J9: 1.7 | K9: 2.1 | L9: 1550-2330 | M9: 1550 | N9: 2330 | AE9: 74 | AK9: -24 | AN9: 1 | AQ9: 60 | AT9: 1 | AU9: 6 | AW9: 370 | BB9: -86 | BE9: 7 | BH9: 91 | BJ9: 73 | BK9: 12 | CE9: -208.2 | CH9: 115 | CI9: 0.1 | CK9: 2000/800 | CL9: 350112 | CM9: 115 | CN9: -690 | CU9: -677 | CX9: 501 | CY9: 0.3 | DA9: 2000/800 | DB9: 1445072 | DC9: 501 | DD9: -633
A10: Area Centro/Centro-Nord | C10: 1 | D10: 1 | E10: Toscana/Umbria | F10: 356-N | G10: Central Link | H10: FF55/DE | I10: 3,3-4 | J10: 3.3 | K10: 4 | L10: 520-670 | M10: 520 | N10: 670 | AK10: 2 | AN10: 1 | AQ10: 18 | AW10: 92 | BB10: -21 | BE10: -1 | BH10: 7 | BJ10: 13 | BK10: 4 | CE10: 15.3 | CK10: 600 | CL10: 5209 | CN10: -127 | CU10: -168.7 | CX10: 88 | CY10: 0.1 | DA10: 600 | DB10: 420935 | DC10: 88 | DD10: -330
A11: Area Centro/Centro-Nord | C11: 1 | D11: 1 | E11: Toscana/Umbria | F11: 356-N | G11: Central Link | H11: LT/LT | I11: 1,3-1,6 | J11: 1.3 | K11: 1.6 | L11: 80-140 | M11: 80 | N11: 140 | AK11: 1 | AQ11: 4 | AW11: 36 | BB11: -11 | BE11: -1 | BH11: 8 | BJ11: 7 | BK11: 0 | CE11: 4 | CK11: 600 | CL11: 180 | CN11: -128 | CU11: -84.1 | CX11: 49 | CY11: 0 | DA11: 600 | DB11: 103085 | DC11: 49 | DD11: -209
A12: Area Centro/Sardegna | B12: 1 | D12: 1 | E12: Sardegna/Lazio | F12: 732-N | G12: Dorsale Sarda: HVDC Fiumesanto – Montalto (SAPEI 2) e Sardinian Link | H12: DE | I12: 5,8-6 | J12: 5.8 | K12: 6 | L12: 3760-3900 | M12: 3760 | N12: 3900 | AW12: 78 | BB12: 359 | BE12: 55 | BH12: 74 | BJ12: 15 | BK12: 4 | CU12: 2491 | CX12: 102 | CY12: 0.1 | DA12: 1000 | DB12: 3310311 | DC12: 102 | DD12: -48
A13: Area Centro/Sardegna | B13: 1 | D13: 1 | E13: Sardegna/Lazio | F13: 732-N | G13: Dorsale Sarda: HVDC Fiumesanto – Montalto (SAPEI 2) e Sardinian Link | H13: LT | I13: 3,9-4 | J13: 3.9 | K13: 4 | L13: 2220-2320 | M13: 2220 | N13: 2320 | AW13: 24 | BB13: 153 | BE13: 15 | BH13: 181 | BJ13: 12 | BK13: 1 | CU13: 1059.1 | CX13: 79 | CY13: 0.03 | DA13: 1000 | DB13: 1268765 | DC13: 79 | DD13: -16
A14: Area Centro Sud | D14: 1 | E14: Calabria/Basilicata/Campania/ Lazio | F14: 563/1-N | G14: Dorsale Ionica - Tirrenica: HVDC Rossano-Montecorvino-Latina | H14: DE | I14: 1,8-2,2 | J14: 1.8 | K14: 2.2 | L14: 1405-2180 | M14: 1405 | N14: 2180 | AW14: 338 | BB14: -7 | BE14: 43 | BH14: -43 | BJ14: 61 | BK14: 19 | CU14: -57.6 | CX14: 418 | CY14: 0.4 | DA14: 2000/1000 | DB14: 1968058 | DC14: 418 | DD14: -71
A15: Area Centro Sud | D15: 1 | E15: Calabria/Basilicata/Campania/ Lazio | F15: 563/1-N | G15: Dorsale Ionica - Tirrenica: HVDC Rossano-Montecorvino-Latina | H15: LT | I15: 1,4-1,6 | J15: 1.4 | K15: 1.6 | L15: 700-1045 | M15: 700 | N15: 1045 | AW15: 103 | BB15: 154 | BE15: 8 | BH15: -5 | BJ15: 27 | BK15: 8 | CU15: 1206.9 | CX15: 188 | CY15: 0.2 | DA15: 2000/1000 | DB15: 1782160 | DC15: 188 | DD15: -8
A16: Area Centro Sud | D16: 1 | E16: Sicilia/Calabria | F16: 563/2-N | G16: Dorsale Ionica - Tirrenica: HVDC Ionian | H16: DE | I16: 4,6-4,7 | J16: 4.6 | K16: 4.7 | L16: 3400-3490 | M16: 3400 | N16: 3490 | AW16: 42 | BB16: 207 | BE16: 20 | BH16: 176 | BJ16: 6 | BK16: 2 | CU16: 1625.5 | CX16: 43 | CY16: 0.1 | DA16: 2000/1000 | DB16: 1982548 | DC16: 43 | DD16: -119
A17: Area Centro Sud | D17: 1 | E17: Sicilia/Calabria | F17: 563/2-N | G17: Dorsale Ionica - Tirrenica: HVDC Ionian | H17: LT | I17: 2,1-2,2 | J17: 2.1 | K17: 2.2 | L17: 1080-1120 | M17: 1080 | N17: 1120 | AW17: 6 | BB17: 147 | BE17: -11 | BH17: 66 | BJ17: 3 | BK17: 0.4 | CU17: 1153.3 | CX17: 23 | CY17: 0 | DA17: 2000/1000 | DB17: 1166333 | DC17: 23 | DD17: -31
A18: Area Centro Sud/Centro Nord | C18: 1 | D18: 1 | E18: Puglia/Molise/Abruzzo/ Marche/Emilia- Romagna | F18: 447-N | G18: Dorsale Adriatica: HVDC Foggia-Villanova-Fano-Forlì | H18: FF55/DE | I18: 4,4-5,2 | J18: 4.4 | K18: 5.2 | L18: 5720-7070 | M18: 5720 | N18: 7070 | AE18: 103 | AK18: 32 | AN18: 2 | AQ18: 13 | AT18: 2 | AU18: 3 | AW18: 744 | BB18: -110 | BE18: 44 | BH18: 96 | BJ18: 119 | BK18: 27 | CE18: 270.2 | CH18: 322 | CI18: 0.1 | CK18: 600/500 | CL18: 759560 | CM18: 322 | CN18: -12 | CU18: -863.9 | CX18: 812 | CY18: 0.6 | DA18: 600/1000/2000 | DB18: 4157383 | DC18: 812 | DD18: -425
A19: Area Centro Sud/Centro Nord | C19: 1 | D19: 1 | E19: Puglia/Molise/Abruzzo/ Marche/Emilia- Romagna | F19: 447-N | G19: Dorsale Adriatica: HVDC Foggia-Villanova-Fano-Forlì | H19: LT/LT | I19: 1,3-1,6 | J19: 1.3 | K19: 1.6 | L19: 580-1020 | M19: 580 | N19: 1020 | AE19: 32 | AK19: 30 | AN19: 1 | AQ19: 5 | AW19: 202 | BB19: -16 | BE19: 9 | BH19: 38 | BJ19: 45 | BK19: 3 | CE19: 255.5 | CK19: 600/500 | CL19: 452089 | CM19: -34 | CN19: -23 | CU19: -127.5 | CX19: 306 | CY19: 0.1 | DA19: 600/1000/2000 | DB19: 1164358 | DC19: 306 | DD19: -280
A20: Area Nord-Ovest | B20: 1 | E20: Piemonte | F20: 6-P | G20: Razionalizzazione rete 220 e 132 kV Provincia di Torino | H20: V1 | I20: 2.1 | L20: 270 | X20: 27.6 | AN20: 27.6 | BL20: 29.91 | BO20: 80 | BY20: 31.28 | CB20: 0.084
A21: Area Nord-Ovest | B21: 1 | E21: Liguria | F21: 10-P | G21: Rinforzi 132 kV Area Metropolitana di Genova | H21: V1 | I21: 2.4 | L21: 75 | BP21: 200 | BW21: 0 | CA21: 0 | CD21: 209
A22: Area Nord | B22: 1 | E22: Lombardia | F22: 106-P | G22: Elettrodotto 220 kV Glorenza – Tirano – der.Premadio | H22: ST | I22: =CONCATENATE(J22,"-",K22) -> 1,8-1,8 | J22: 1.8 | K22: 1.8 | L22: =CONCATENATE(M22,"-",N22) -> 17-17 | M22: 17 | N22: 17 | P22: <1 | X22: 1 | AF22: 2 | AN22: 1 | BW22: 210 | CL22: 390
A23: Area Nord | B23: 1 | E23: Lombardia | F23: 116-P | G23: Razionalizzazione 220/132 kV in Valle Sabbia | H23: V1 | I23: 3.7 | L23: 220 | BM23: 0 | BN23: 0 | BP23: 620 | BS23: 0.048 | CA23: 0 | CD23: 648 | CG23: 0.048
A24: Area Nord | B24: 1 | E24: Lombardia | F24: 127-P | G24: Stazione 380 kV Mese | H24: DE | I24: =CONCATENATE(J24,"-",K24) -> 2,5-2,5 | J24: 2.5 | K24: 2.5 | L24: =CONCATENATE(M24,"-",N24) -> 40-40 | M24: 40 | N24: 40 | BB24: 4 | BE24: 3 | BI24: 0 | BJ24: 0 | BK24: 0 | CU24: 267.6 | DD24: -4
A25: Area Nord | B25: 1 | E25: Lombardia | F25: 126-P | G25: Stazione 380 kV Magenta | H25: ST | I25: 5,9-5,9 | J25: 5.9 | K25: 5.9 | L25: 194-194 | M25: 194 | N25: 194 | Q25: 1 | S25: 13 | AG25: 2 | AI25: 14
A26: Area Nord | B26: 1 | E26: Lombardia | F26: 153-P | G26: Riassetto rete 132 kV area Rho | H26: DE | I26: 1,8-1,8 | J26: 1.8 | K26: 1.8 | L26: 21-21 | M26: 21 | N26: 21 | AY26: 5 | CR26: 0.122 | DD26: 1
A27: Area Nord | B27: 1 | E27: Lombardia | F27: 119-P | G27: Razionalizzazione 132 kV Cremona | H27: DE | I27: 4,6-4,6 | J27: 4.6 | K27: 4.6 | L27: 96-96 | M27: 96 | N27: 96 | AY27: 10 | BB27: 1 | BH27: 2 | CR27: 0.24 | CU27: 9.2 | DD27: -6
A28: Area Sardegna/Centro Nord | B28: 1 | C28: 1 | E28: Sardegna/Toscana | F28: 301-P | G28: Collegamento HVDC Sardegna – Corsica – Italia (SA.CO.I.3) | H28: FF55/DE | I28: 3,2-3,4 | J28: 3.2 | K28: 3.4 | L28: 1900-2110 | M28: 1900 | N28: 2110 | AE28: 68 | AH28: 2 | AK28: 117 | AN28: -1 | AQ28: 132 | AT28: 2 | AU28: =+(-3) -> -3 | AW28: 85 | AY28: =+(-1) -> -1 | BB28: 52 | BE28: =+(-3) -> -3 | BJ28: 27 | BK28: 1 | CB28: 0.044 | CE28: 995.4 | CH28: 450 | CI28: -0,1 | CK28: 400 | CL28: 1254009 | CM28: 450 | CR28: =+(-0.02) -> -0.02 | CU28: 871.2 | CX28: 184 | DA28: 400 | DB28: 903993 | DC28: 184 | DD28: -61
A29: Area Sardegna/Centro Nord | B29: 1 | C29: 1 | E29: Sardegna/Toscana | F29: 301-P | G29: Collegamento HVDC Sardegna – Corsica – Italia (SA.CO.I.3) | H29: LT/LT | I29: 3,1-3,4 | J29: 3.1 | K29: 3.4 | L29: 1860-2135 | M29: 1860 | N29: 2135 | AE29: 43 | AH29: 2 | AK29: 59 | AN29: -1 | AQ29: 180 | AT29: 1 | AU29: =+(-5) -> -5 | AW29: 53 | AY29: 0 | BB29: 15 | BE29: =+(-2) -> -2 | BH29: 86 | BJ29: 41 | BK29: -4 | CB29: 0.054 | CE29: 504 | CH29: 227 | CI29: -0,1 | CK29: 400 | CL29: 598658 | CM29: 227 | CN29: -5 | CR29: =+(-0.003) -> -0.003 | CU29: 119.7 | CX29: 282 | CY29: =+(-0.1) -> -0.1 | DA29: 400 | DB29: 240426 | DC29: 282 | DD29: -32
A30: Centro Sud/Sicilia/Sardegna | B30: 1 | D30: 1 | E30: Campania/Sicilia/Sardegna | F30: 723-WP | G30: Collegamento HVDC Continente – Sicilia – Sardegna (West Link) | H30: NT-IT/NT-IT | I30: 5-5 | J30: 5 | K30: 5 | L30: 6236-6129 | M30: 6236 | N30: 6129 | AE30: -19 | AJ30: 93 | AL30: 6 | AO30: =+(-4) -> -4 | AP30: 401 | AT30: 0.2 | AU30: =+(-3) -> -3 | AW30: =+(-66) -> -66 | BA30: 75 | BC30: 93 | BF30: 4 | BG30: 627 | BJ30: -11 | BK30: -2 | CF30: 107.87 | CI30: -0,074 | CK30: 1000 | CL30: 2537 | CV30: 1397.74 | CX30: =+(-100) -> -100 | CY30: =+(-0.051) -> -0.051 | DA30: 1000 | DB30: 644353 | DC30: =+(-100) -> -100
A31: Centro Sud/Sicilia/Sardegna | B31: 1 | D31: 1 | E31: Campania/Sicilia/Sardegna | F31: 723-WP | G31: Collegamento HVDC Continente – Sicilia – Sardegna (West Link) | H31: BAU-BAU | I31: 1,7-1,7 | J31: 1.7 | K31: 1.7 | L31: 1079-1086 | M31: 1079 | N31: 1086 | AE31: 5 | AL31: 16 | AO31: 1 | AP31: 98 | AT31: -0,2 | AU31: =+(-2) -> -2 | AW31: 13 | BC31: 56 | BF31: =+(-0.4) -> -0.4 | BG31: 206 | BJ31: 3 | BK31: -0,1 | CF31: 284.58 | CI31: -0,065 | CK31: 1000 | CL31: 285260 | CV31: 835.24 | CX31: 26 | CY31: =+(-0.003) -> -0.003 | DA31: 1000 | DB31: 896947 | DC31: 26
A32: Centro Sud/Sicilia/Sardegna | B32: 1 | D32: 1 | E32: Campania/Sicilia/Sardegna | F32: 723-EP | G32: Collegamento HVDC Continente – Sicilia – Sardegna (East Link) | H32: NT-IT/NT-IT | I32: 2,5-2,8 | J32: 2.5 | K32: 2.8 | L32: 2152-2478 | M32: 2152 | N32: 2478 | AE32: 5 | AJ32: 53 | AL32: 33 | AP32: 128 | AT32: 2 | AU32: 9 | AW32: 93 | BA32: 53 | BC32: 52 | BG32: 146 | BJ32: 32 | BK32: 5 | CF32: 591.35 | CH32: 51 | CI32: 0.245 | CK32: 1000 | CL32: 2537 | CV32: 785.08 | CX32: 391 | CY32: 0.13 | DA32: 1000 | DB32: 644353 | DC32: 391
A33: Centro Sud/Sicilia/Sardegna | B33: 1 | D33: 1 | E33: Campania/Sicilia/Sardegna | F33: 723-EP | G33: Collegamento HVDC Continente – Sicilia – Sardegna (East Link) | H33: BAU-BAU | I33: 1,5-1,6 | J33: 1.5 | K33: 1.6 | L33: 730-897 | M33: 730 | N33: 897 | AE33: 12 | AJ33: 53 | AL33: 3 | AP33: 64 | AT33: 1 | AU33: 9 | AW33: 10 | BA33: 53 | BC33: 25 | BF33: =+(-3) -> -3 | BG33: 122 | BJ33: 9 | BK33: 8 | CF33: 45.9 | CH33: 29 | CI33: 0.251 | CK33: 1000 | CL33: 285260 | CV33: 371.95 | CX33: 80 | CY33: 0.224 | DA33: 1000 | DB33: 896947 | DC33: 80
A34: Area Nord-Ovest | B34: 1 | E34: Piemonte | F34: 28-P | G34: Riassetto Sud Ovest di Alessandria | H34: FF55/DE | I34: 2,2-2,2 | J34: 2.2 | K34: 2.2 | L34: 27-27 | M34: 27 | N34: 27 | AH34: 2.6 | AY34: 5 | CB34: 0.066 | CR34: 0.121
A35: Area Nord | B35: 1 | E35: Lombardia | F35: 162-P | G35: Riassetto rete AT area Bordogna | H35: DE | I35: 1,9-1,9 | J35: 1.9 | K35: 1.9 | L35: 18-18 | M35: 18 | N35: 18 | AY35: 1 | BB35: 2 | BE35: 1 | CR35: 0.017 | CU35: 16.2 | DD35: 25
A36: Area Nord | B36: 1 | E36: Lombardia | F36: 165-P | G36: Razionalizzazione rete 380 kV Brianza | H36: FF55/DE | I36: 2,9-2,9 | J36: 2.9 | K36: 2.9 | L36: 378-378 | M36: 378 | N36: 378 | AH36: 5 | AK36: 11 | AN36: 32 | BB36: 32 | BE36: 17 | CB36: 0.122 | CE36: 94.8 | CN36: 110 | CR36: 0.005 | CU36: 252.5 | DD36: 399
A37: Area Nord | B37: 1 | E37: Lombardia | F37: 167-P | G37: Razionalizzazione Valchiavenna e Interconnessione Svizzera | H37: DE | I37: 1,2-1,6 | J37: 1.2 | K37: 1.6 | L37: 116-460 | M37: 116 | N37: 460 | AW37: 37 | BB37: 17 | BE37: 11 | BH37: 31 | BJ37: 39 | BK37: 1 | CR37: =+(-0.007) -> -0.007 | CU37: 136.2 | CX37: 266 | CY37: 0.02 | DA37: 1000 | DB37: 30986 | DC37: 266 | DD37: 54
A38: Area Nord | B38: 1 | E38: Lombardia | F38: 167-P | G38: Razionalizzazione Valchiavenna e Interconnessione Svizzera | H38: LT | I38: 1-2,2 | J38: 1 | K38: 2.2 | L38: -36-835 | M38: -36 | N38: 835 | AW38: =+(-5) -> -5 | BB38: 2 | BE38: 76 | BH38: 6 | BJ38: 47 | BK38: 53 | CR38: 0.004 | CU38: 13.9 | CX38: 322 | CY38: 1.2 | DA38: 1000 | DB38: 1234 | DC38: 322 | DD38: 156
A39: Area Nord | B39: 1 | E39: Lombardia | F39: 169-P | G39: Riassetto rete tra Tavazzano e Colà | H39: FF55/DE | I39: 2,7-2,7 | J39: 2.7 | K39: 2.7 | L39: 84-84 | M39: 84 | N39: 84 | AH39: 11 | AY39: 11 | CB39: 0.282 | CR39: 0.282
A40: Area Nord-Est | C40: 1 | E40: Veneto | F40: 204-P | G40: Elettrodotto 220 kV Interconnessione Italia - Austria | H40: FF55/DE | I40: 8,8-11,6 | J40: 8.8 | K40: 11.6 | L40: 432-584 | M40: 432 | N40: 584 | AW40: 27 | BB40: 1 | BE40: 6 | BH40: 16 | BJ40: 9 | BK40: 6 | CU40: 10.3 | CX40: 279 | CY40: 0.2 | DA40: 500 | DB40: 1857 | DC40: 237 | DD40: -66
A41: Area Nord-Est | C41: 1 | E41: Veneto | F41: 204-P | G41: Elettrodotto 220 kV Interconnessione Italia - Austria | H41: LT/LT | I41: 3,5-9,2 | J41: 3.5 | K41: 9.2 | L41: 139-453 | M41: 139 | N41: 453 | AW41: 15 | BB41: 0 | BE41: 6 | BH41: -1 | BJ41: 6 | BK41: 26 | CU41: 0 | CX41: 180 | CY41: 0.6 | DA41: 500 | DC41: 180 | DD41: -25
A42: Area Nord-Est | C42: 1 | E42: Trentino Alto Adige | F42: 208-P | G42: Elettrodotto 132/110 kV Prati di Vizze (IT) – Steinach (AT) | H42: V1 | I42: 9.4 | L42: 432 | O42: 12 | X42: 9 | BL42: 0 | BO42: 50 | BQ42: 102400
A43: Area Nord-Est | C43: 1 | E43: Trentino Alto Adige | F43: 208-P | G43: Elettrodotto 132/110 kV Prati di Vizze (IT) – Steinach (AT) | H43: V3 | I43: 7.7 | L43: 348 | O43: 13 | BL43: 0 | BO43: 0 | BQ43: 147800
A44: Area Nord-Est | C44: 1 | E44: Trentino Alto Adige | F44: 208-P | G44: Elettrodotto 132/110 kV Prati di Vizze (IT) – Steinach (AT) | H44: V1 | I44: 17.8 | L44: 865 | O44: 36 | X44: 9 | BL44: 0 | BO44: 50 | BQ44: 102400
A45: Area Nord-Est | C45: 1 | E45: Trentino Alto Adige | F45: 208-P | G45: Elettrodotto 132/110 kV Prati di Vizze (IT) – Steinach (AT) | H45: V3 | I45: 13.1 | L45: 624 | O45: 24 | BL45: 0 | BO45: 0 | BQ45: 147800
A46: Area Nord-Est | C46: 1 | E46: Trentino Alto Adige | F46: 252-P | G46: Interconnessione AT Dobbiaco - Austria | H46: FF55/DE | I46: 4,2-6,4 | J46: 4.2 | K46: 6.4 | L46: 113-188 | M46: 113 | N46: 188 | AW46: 14 | BH46: 3 | BJ46: 7 | BK46: 1 | CX46: 51 | CY46: 0.03 | DA46: 80-160 | DB46: 842 | DC46: 48 | DD46: -18
A47: Area Nord-Est | C47: 1 | E47: Trentino Alto Adige | F47: 252-P | G47: Interconnessione AT Dobbiaco - Austria | H47: LT/LT | I47: 3-4,4 | J47: 3 | K47: 4.4 | L47: 69-120 | M47: 69 | N47: 120 | AW47: 4 | BB47: 1 | BE47: 3 | BH47: 5 | BJ47: -2 | BK47: 8 | CU47: 4.8 | CX47: -14 | CY47: 0.2 | DA47: 80-160 | DB47: 1455 | DC47: -14 | DD47: 4
A48: Area Nord-Est | C48: 1 | E48: Friuli Venezia Giulia | F48: 207-P | G48: Elettrodotto 380 kV Udine Ovest - Redipuglia | H48: V1 | I48: 10.4 | L48: 2103 | O48: 42 | X48: 61 | BL48: 0 | BO48: 940 | BQ48: 251000
A49: Area Nord-Est | C49: 1 | E49: Friuli Venezia Giulia | F49: 207-P | G49: Elettrodotto 380 kV Udine Ovest - Redipuglia | H49: V3 | I49: 8.2 | L49: 1611 | O49: 45 | X49: 5 | BL49: 0 | BO49: 580 | BQ49: 606000
A50: Area Nord-Est | C50: 1 | E50: Veneto | F50: 203-P | G50: Razionalizzazione 380 kV fra Venezia e Padova | H50: V3 | I50: 1.6 | L50: 183 | X50: 13 | AN50: 14 | BL50: 0 | BO50: 582 | BQ50: 0 | BY50: 0 | CB50: 0.565 | CE50: 0
A51: Area Nord-Est | C51: 1 | E51: Trentino Alto Adige | F51: 222-P | G51: Riassetto rete 220 kV Trentino Alto Adige | H51: NT-IT/NT-IT | I51: 2.3 | J51: 2.3 | K51: 2.3 | L51: 97 | M51: 97 | N51: 97 | AL51: 9 | BC51: 17 | CF51: 160.918 | CW51: 243.723
A52: Area Nord-Est | C52: 1 | E52: Veneto | F52: 216-P | G52: Razionalizzazione rete Media Valle del Piave | H52: FF55/DE | I52: 1.6 | J52: 1.6 | K52: 1.6 | L52: 89 | M52: 89 | N52: 89 | AY52: 5 | BB52: 2 | BE52: 22 | CN52: 23 | CR52: 0.241 | CU52: 12.1 | DD52: 32
A53: Area Nord-Est | C53: 1 | E53: Veneto | F53: 216-P | G53: Razionalizzazione rete Media Valle del Piave | H53: LT/LT | I53: 2 | J53: 2 | K53: 2 | L53: 162 | M53: 162 | N53: 162 | AY53: 7 | BE53: 30 | CR53: 0.353 | DD53: 98
A54: Area Nord-Est | C54: 1 | E54: Veneto/Trentino Alto Adige | F54: 215-P | G54: Riassetto rete alto Bellunese | H54: ST | I54: 1,6-2,7 | J54: 1.6 | K54: 2.7 | L54: 75-226 | M54: 75 | N54: 226 | P54: <1 | R54: 2 | U54: <1 | X54: <1 | AA54: 10 | AH54: 2 | AL54: 5 | AN54: 9 | AR54: 10
A55: Area Nord-Est | C55: 1 | E55: Veneto | F55: 206-P | G55: Stazione 380 kV Volpago | H55: FF55/DE | I55: 3 | J55: 3 | K55: 3 | L55: 347 | M55: 347 | N55: 347 | AY55: 60 | BB55: 3 | BE55: 2 | CR55: 1.503 | CU55: 1.7 | DD55: 51
A56: Area Nord-Est | C56: 1 | E56: Veneto | F56: 206-P | G56: Stazione 380 kV Volpago | H56: LT/LT | I56: 4.4 | J56: 4.4 | K56: 4.4 | L56: 598 | M56: 598 | N56: 598 | AY56: 75 | BB56: 4 | BE56: 16 | CR56: 1.887 | CU56: 28.6 | DD56: 56
A57: Area Nord-Est | C57: 1 | E57: Trentino Alto Adige | F57: 238-P | G57: Stazione 220 kV Glorenza | H57: ST | I57: 2.7 | J57: 2.7 | K57: 2.7 | L57: 54 | M57: 54 | N57: 54 | S57: 1 | U57: 3 | AH57: 1 | AL57: 5
A58: Area Nord-Est | C58: 1 | E58: Veneto | F58: 237-P | G58: Stazione 220 kV Schio e potenziamento rete | H58: ST | I58: 2.7 | J58: 2.7 | K58: 2.7 | L58: 213 | M58: 213 | N58: 213 | Q58: 2 | S58: 20 | AG58: 4 | AI58: 20
A59: Area Nord-Est | C59: 1 | E59: Trentino Alto Adige | F59: 221-P | G59: Razionalizzazione 132 kV Trento Sud | H59: BAU-BAU | I59: 3 | J59: 3 | K59: 3 | L59: 58 | M59: 58 | N59: 58 | AF59: 1 | AH59: 7 | AX59: 0.5 | AY59: 7 | BY59: 16.1 | CB59: 0.245 | CO59: 6.81 | CR59: 0.241
A60: Area Nord-Est | C60: 1 | E60: Trentino Alto Adige | F60: 245-P | G60: Stazione Bressanone e direttrice 132 kV Terme di Brennero – Bolzano FS – Mori | H60: DE | I60: 4 | J60: 4 | K60: 4 | L60: 99 | M60: 99 | N60: 99 | BB60: 14 | CU60: 118.3 | DD60: 21
A61: Area Nord-Est | C61: 1 | E61: Trentino Alto Adige | F61: 100I | G61: Incremento della capacità di interconnessione con l’Austria ai sensi della legge 99/2009 e s.m.i. | H61: ST | I61: 16,7-23,5 | J61: 16.7 | K61: 23.5 | L61: 762-1084 | M61: 762 | N61: 1084 | O61: 6 | X61: 53 | AC61: 11 | AD61: 8 | BV61: 300
A62: Area Nord-Est | C62: 1 | E62: Trentino Alto Adige | F62: 100I | G62: Incremento della capacità di interconnessione con l’Austria ai sensi della legge 99/2009 e s.m.i. | H62: DG | I62: 6,2-13,4 | J62: 6.2 | K62: 13.4 | L62: 254-599 | M62: 254 | N62: 599 | O62: 7 | X62: 12 | AC62: 13 | AD62: 8 | BV62: 300
A63: Area Nord-Est | C63: 1 | E63: Trentino Alto Adige | F63: 100I | G63: Incremento della capacità di interconnessione con l’Austria ai sensi della legge 99/2009 e s.m.i. | H63: ST | I63: 24,9-31,6 | J63: 24.9 | K63: 31.6 | L63: 1153-1475 | M63: 1153 | N63: 1475 | O63: 31 | X63: 53 | AC63: 11 | AD63: 8 | BV63: 300
A64: Area Nord-Est | C64: 1 | E64: Trentino Alto Adige | F64: 100I | G64: Incremento della capacità di interconnessione con l’Austria ai sensi della legge 99/2009 e s.m.i. | H64: DG | I64: 20,4-27,8 | J64: 20.4 | K64: 27.8 | L64: 939-1284 | M64: 939 | N64: 1284 | O64: 55 | X64: 12 | AC64: 13 | AD64: 8 | BV64: 300
A65: Area Nord-Est | C65: 1 | E65: Veneto | F65: 200I | G65: Incremento della capacità di interconnessione con la Slovenia ai sensi della legge 99/2009 e s.m.i. | H65: FF55/DE | I65: 6,5-8,7 | J65: 6.5 | K65: 8.7 | L65: 1487-2085 | M65: 1487 | N65: 2085 | AT65: -1 | AU65: 14 | AW65: 168 | BB65: 2 | BE65: 3 | BH65: 33 | BJ65: 34 | BK65: 31 | CH65: -127.5 | CI65: 0.3 | CK65: 1000 | CL65: 718 | CM65: -127.5 | CN65: 1 | CU65: 13.6 | CX65: 1025.8 | CY65: 0.7 | DA65: 1000 | DB65: 13511 | DC65: 453 | DD65: -118
A66: Area Nord-Est | C66: 1 | E66: Veneto | F66: 200I | G66: Incremento della capacità di interconnessione con la Slovenia ai sensi della legge 99/2009 e s.m.i. | H66: LT/LT | I66: 2,4-3,6 | J66: 2.4 | K66: 3.6 | L66: 384-706 | M66: 384 | N66: 706 | AE66: -2 | AN66: 5 | AQ66: 10 | AT66: -2 | AU66: 15 | AW66: -10 | BB66: 1 | BE66: 8 | BH66: 72 | BJ66: 1 | BK66: 31 | CH66: 127 | CI66: 0.4 | CK66: 1000 | CL66: 837 | CM66: -383 | CN66: 1 | CU66: 7.994 | CX66: 3.4 | CY66: 0.7 | DA66: 1000 | DB66: 4860 | DC66: 3 | DD66: -37
A67: Area Centro-Nord | C67: 1 | E67: Emilia Romagna/Toscana | F67: 302-P | G67: Elettrodotto 380 kV Colunga – Calenzano | H67: PNIEC | I67: 1,2-1,3 | J67: 1.2 | K67: 1.3 | L67: 36-52 | M67: 36 | N67: 52 | O67: 6 | U67: 1 | Y67: -2 | Z67: 3 | AC67: 2 | AD67: -3 | AE67: 6 | AH67: 0.32 | AL67: 5 | AO67: 0.45 | AP67: 6 | AT67: 2 | AU67: -1 | BR67: 9.019 | BT67: 43.8 | BU67: -0.197 | BV67: 400 | BW67: 9131 | BX67: 44 | CB67: 0.008 | CF67: 65.944 | CH67: 42.9 | CI67: -0.055 | CJ67: 1 | CK67: 400 | CL67: 61745 | CM67: 43
A68: Area Centro-Nord | C68: 1 | E68: Emilia Romagna/Toscana | F68: 302-P | G68: Elettrodotto 380 kV Colunga – Calenzano | H68: PNIEC-BAU | I68: 1,3-1,7 | J68: 1.3 | K68: 1.7 | L68: 50-119 | M68: 50 | N68: 119 | AE68: 9 | AH68: 0.08 | AL68: 1 | AO68: 0.01 | AP68: 9 | AT68: 7 | AU68: -1 | CB68: 0.002 | CF68: 19.035 | CH68: 158 | CI68: -0.09 | CJ68: 1 | CK68: 400 | CL68: 24877 | CM68: 158
A69: Area Centro-Nord | C69: 1 | E69: Toscana | F69: 309-P | G69: Elettrodotto 132 kV Elba – Continente | H69: V1 | I69: 5.4 | L69: 864 | AJ69: 1 | BN69: 1 | BP69: 1650 | BQ69: 0 | CA69: 1 | CD69: 1667 | CE69: 0
A70: Area Centro-Nord | C70: 1 | E70: Toscana | F70: 306-P | G70: Riassetto rete 380 e 132 kV area di Lucca | H70: FF55/DE | I70: 2.8 | J70: 2.8 | K70: 2.8 | L70: 84 | M70: 84 | N70: 84 | AY70: 13 | CR70: 0.32109 | DD70: 35
A71: Area Centro-Nord | C71: 1 | E71: Toscana | F71: 317-P | G71: Rete metropolitana di Firenze | H71: V1 | I71: 3.7 | L71: 184 | W71: 22 | X71: -5 | AN71: -5 | BL71: 0 | BO71: 150 | BQ71: 184500 | BZ71: 0 | CB71: 0.152 | CE71: 205
A72: Area Centro-Nord | C72: 1 | E72: Emilia Romagna | F72: 319-P | G72: Anello 132 kV Riccione - Rimini | H72: BAU-BAU | I72: 1.6 | J72: 1.6 | K72: 1.6 | L72: 29 | M72: 29 | N72: 29 | AF72: 0.3 | AH72: 3 | AX72: 0.4 | AY72: 7 | CA72: 1 | CB72: 0.102 | CQ72: 1 | CR72: 0.242
A73: Area Centro-Nord | C73: 1 | E73: Toscana | F73: 308-P | G73: Riassetto rete area Livorno | H73: ST | I73: 1.5 | J73: 1.5 | K73: 1.5 | L73: 24 | M73: 24 | N73: 24 | S73: 1 | T73: 3 | AI73: 1 | AJ73: 3
A74: Area Centro-Nord | C74: 1 | E74: Emilia Romagna | F74: 310-P | G74: Rete 132 kV tra Borgonovo, Salsominore e Borgotaro | H74: BAU-BAU | I74: 1.6 | J74: 1.6 | K74: 1.6 | L74: 12 | M74: 12 | N74: 12 | AI74: 2 | AZ74: 3 | CD74: 112 | CT74: 0.159
A75: Area Centro-Nord | C75: 1 | E75: Emilia Romagna | F75: 318-P | G75: Riassetto di Ferrara | H75: FF55/DE | I75: 1.4 | J75: 1.4 | K75: 1.4 | L75: 19 | M75: 19 | N75: 19 | AH75: 4 | AY75: 6 | CB75: 0.20927 | CN75: 10 | CR75: 0.28232 | DD75: 18
A76: Area Centro-Nord | C76: 1 | E76: Emilia Romagna | F76: 320-P | G76: Razionalizzazione 132 kV area di Reggio Emilia | H76: FF55/DE | I76: 2.3 | J76: 2.3 | K76: 2.3 | L76: 50 | M76: 50 | N76: 50 | CN76: 23
A77: Area Centro-Nord | C77: 1 | E77: Toscana | F77: 345-P | G77: Stazione 380/132 kV Larderello | H77: FF55/DE | I77: 14.2 | J77: 14.2 | K77: 14.2 | L77: 352 | M77: 352 | N77: 352 | AK77: 29 | BB77: 33 | CE77: 249.1 | CN77: 21 | CU77: 257.7 | DD77: 35
A78: Area Centro-Nord | C78: 1 | E78: Emilia Romagna | F78: 326-P | G78: Riassetto rete AT area di Bologna | H78: NT-IT/BAU | I78: 3.7 | J78: 3.7 | K78: 3.7 | L78: 157 | M78: 157 | N78: 157 | R78: 3 | AF78: 0.3 | AH78: 18 | BO78: 81 | CA78: 1 | CB78: 0.44
A79: Area Centro-Nord | C79: 1 | E79: Emilia Romagna/Toscana | F79: 337-P | G79: Rete 132 kV tra Romagna e Toscana | H79: FF55/DE | I79: 2.2 | J79: 2.2 | K79: 2.2 | L79: 45 | M79: 45 | N79: 45 | AY79: 9 | CR79: 0.21511 | DD79: 12
A80: Area Centro-Nord | C80: 1 | E80: Emilia Romagna | F80: 321-P | G80: Rete area Forlì/Cesena | H80: BAU-BAU | I80: 3.5 | J80: 3.5 | K80: 3.5 | L80: 70 | M80: 70 | N80: 70 | AF80: 0.3 | AH80: 7 | AX80: 1 | AY80: 8 | BZ80: 0.001 | CB80: 0.223 | CQ80: 2 | CR80: 0.273
A81: Area Centro-Nord | C81: 1 | E81: Toscana | F81: 338-P | G81: Stazione 380 kV a nord di Grosseto | H81: FF55/DE | I81: 3.2 | J81: 3.2 | K81: 3.2 | L81: 221 | M81: 221 | N81: 221 | AK81: 25 | BB81: 28 | CN81: 29
A82: Area Nord-Est | C82: 1 | E82: Veneto | F82: 259-P | G82: Razionalizzazione rete AT Verona | H82: FF55/DE | I82: 1.9 | J82: 1.9 | K82: 1.9 | L82: 60 | M82: 60 | N82: 60 | AY82: 15 | CS82: 0.3737 | DD82: 5
A83: Area Centro-Nord | C83: 1 | E83: Emilia Romagna | F83: 348-P | G83: Razionalizzazione rete tra Parma e Piacenza | H83: FF55/DE | I83: 2.4 | J83: 2.4 | K83: 2.4 | L83: 36 | M83: 36 | N83: 36 | AY83: 6 | CS83: 0.1502 | DD83: 17
A84: Area Centro-Nord | C84: 1 | E84: Toscana | F84: 351-P | G84: Rimozione limitazioni elettrodotto 380 kV Calenzano-Suvereto | H84: FF55/DE | I84: 7.1 | J84: 7.1 | K84: 7.1 | L84: 146 | M84: 146 | N84: 146 | AN84: 2 | BE84: 18
A85: Area Centro-Nord | C85: 1 | E85: Toscana | F85: 351-P | G85: Rimozione limitazioni elettrodotto 380 kV Calenzano-Suvereto | H85: LT/LT | I85: 4.2 | J85: 4.2 | K85: 4.2 | L85: 78 | M85: 78 | N85: 78 | BE85: 11
A86: Area Centro-Nord | C86: 1 | E86: Toscana | F86: 352-P | G86: Incremento magliatura rete 132 kV area Amiata | H86: FF55/DE | I86: 7.6 | J86: 7.6 | K86: 7.6 | L86: 476 | M86: 476 | N86: 476 | AK86: 42 | BB86: 48 | CE86: 357.9 | CN86: 16 | CU86: 374 | DD86: 20
A87: Area Centro-Nord | C87: 1 | E87: Toscana | F87: 354-P | G87: Interconnessione isola del Giglio | H87: NT-IT/NT-IT | I87: 1-1,3 | J87: 1 | K87: 1.3 | L87: 0-23 | M87: 0 | N87: 23 | AH87: 1 | AJ87: 5 | AL87: 0.01 | AT87: 0.4 | AU87: 1 | AY87: 1 | BA87: 6 | BC87: 0.01 | BJ87: 1 | BK87: 1 | CB87: 0.026 | CF87: 0.19 | CH87: 6.67 | CI87: 0.034 | CR87: 0.0287 | CV87: 0.1976 | CX87: 6.603 | CY87: 0.035
A88: Area Centro-Nord | C88: 1 | E88: Abruzzo/Marche | F88: 436-P | G88: HVDC Centro Sud / Centro Nord | H88: FF55/DE | I88: 3,1-4,2 | J88: 3.1 | K88: 4.2 | L88: 2410-3560 | M88: 2410 | N88: 3560 | AE88: 56 | AK88: -1 | AN88: 7 | AQ88: 52 | AT88: 1 | AU88: -7 | AW88: 395 | BB88: -100 | BE88: 84 | BH88: -16 | BJ88: 111 | BK88: 31 | CE88: -8.4 | CH88: 277 | CI88: -0.2 | CK88: 1000 | CL88: 207495 | CM88: 277 | CN88: -189 | CU88: -787.3 | CX88: 758 | CY88: 0.7 | DA88: 1000 | DB88: 2504059 | DC88: 758 | DD88: -356
A89: Area Centro-Nord | C89: 1 | E89: Abruzzo/Marche | F89: 436-P | G89: HVDC Centro Sud / Centro Nord | H89: LT/LT | I89: 1,4-1,7 | J89: 1.4 | K89: 1.7 | L89: 470-780 | M89: 470 | N89: 780 | AE89: 22 | AK89: -6 | AN89: 3 | AQ89: 6 | AT89: 0 | AU89: -1 | AW89: 178 | BB89: -43 | BE89: 23 | BH89: 19 | BJ89: 34 | BK89: 4 | CE89: -51.3 | CH89: 68 | CI89: -0.03 | CK89: 1000 | CL89: 55029 | CM89: 68 | CN89: -169 | CU89: -333.2 | CX89: 230 | CY89: 0.1 | DA89: 1000 | DB89: 586735 | DC89: 230 | DD89: -86
A90: Area Centro | D90: 1 | E90: Abruzzo/Lazio | F90: 411-P | G90: Interventi sulla rete AT per la raccolta della produzione rinnovabile in Abruzzo e Lazio | H90: NT-IT/BAU | I90: 1.5 | J90: 1.5 | L90: 31 | M90: 31 | R90: 6 | AH90: 7 | AT90: 0 | AU90: 0 | AW90: 0 | AX90: 0 | AY90: 0 | BA90: 0 | BC90: 0 | BD90: 0 | BF90: 0 | BG90: 0 | BI90: 0 | BJ90: 0 | BK90: 0 | BL90: 0 | BM90: 0 | BO90: 0.3029 | BP90: 0 | BQ90: 0 | BS90: 0 | BT90: 0 | BU90: 0 | BV90: 0 | BW90: 0 | BX90: 0 | BY90: 0 | BZ90: 0 | CB90: 0.3352 | CC90: 0 | CE90: 0 | CF90: 0 | CH90: 0 | CI90: 0 | CK90: 0 | CL90: 0 | CM90: 0 | CO90: 0 | CP90: 0 | CR90: 0 | CS90: 0 | CU90: 0 | CW90: 0 | CX90: 0 | CY90: 0
A91: Area Centro | D91: 1 | E91: Marche/Umbria/Abruzzo | F91: 421-P | G91: Razionalizzazione rete AT in Umbria | H91: LT/LT | I91: 2.4 | J91: 2.4 | K91: 2.4 | L91: 126 | M91: 126 | N91: 126 | R91: 5 | U91: 0.002 | W91: 5 | AH91: 5 | AK91: 9 | AL91: 0.002 | AT91: 0 | AU91: 0 | AW91: 0 | AX91: 0 | AY91: 8 | BA91: 0 | BB91: 9 | BC91: 0.002 | BD91: 0 | BF91: 0 | BG91: 0 | BI91: 0 | BJ91: 0 | BK91: 0 | BL91: 0.002 | BM91: 0 | BS91: 0 | BT91: 0 | BU91: 0 | BV91: 0 | BW91: 0 | BX91: 0 | BY91: 0.003 | BZ91: 0 | CB91: 0.182 | CE91: 73.6 | CF91: 0 | CH91: 0 | CI91: 0 | CK91: 24000 | CL91: 0 | CM91: 0 | CO91: 0.004 | CP91: 0 | CR91: 0.261 | CS91: 0 | CU91: 73.6 | CW91: 0 | CX91: 0 | CY91: 0 | DD91: 28
A92: Area Sud | D92: 1 | E92: Campania | F92: 506-P | G92: Elettrodotto 380 kV Montecorvino – Benevento | H92: FF55/DE | I92: 4,1-4,4 | J92: 4.1 | K92: 4.4 | L92: 822 | M92: 909 | N92: 822-909 | AE92: 105 | AK92: 40 | AL92: 4 | AN92: 5 | AQ92: 72 | AT92: 2 | AU92: 6 | AW92: -10 | AX92: 6 | AY92: 0 | BA92: 0 | BB92: 17 | BC92: 49 | BD92: 0 | BE92: 3 | BI92: 0 | BJ92: 4 | BK92: 2 | BL92: 0 | BM92: 0 | BO92: 0 | BP92: 0 | BQ92: 0 | BS92: 0 | BT92: 0 | BU92: 0 | BV92: 0 | BW92: 0 | BX92: 0 | BZ92: 0 | CB92: 0 | CC92: 0 | CE92: 342.3 | CF92: 0 | CH92: 291 | CI92: 0.1 | CK92: 200 S/CS - 900 S/CAL | CL92: 855562 | CM92: 291 | CN92: =(-101) -> -101 | CP92: 0 | CR92: 0 | CS92: 0 | CU92: 130.7 | CW92: 0 | CX92: 29 | CY92: 0.1 | DA92: 200 S/CS - 900 S/CAL | DB92: 152171 | DC92: 29 | DD92: =(-136) -> -136
A93: Area Sud | D93: 1 | E93: Campania | F93: 506-P | G93: Elettrodotto 380 kV Montecorvino – Benevento | H93: LT/LT | I93: 2,8-2,8 | J93: 2.8 | K93: 2.8 | L93: 471 | M93: 476 | N93: 471-476 | AE93: 35 | AK93: 41 | AL93: 4 | AN93: 5 | AQ93: 39 | AT93: 1 | AU93: 1 | AW93: 0 | AX93: 6 | AY93: 0 | BA93: 0 | BB93: 14 | BC93: 49 | BD93: 0 | BE93: 2 | BH93: 7 | BI93: 0 | BL93: 0 | BM93: 0 | BO93: 0 | BP93: 0 | BQ93: 0 | BS93: 0 | BT93: 0 | BU93: 0 | BV93: 0 | BW93: 0 | BX93: 0 | BZ93: 0 | CB93: 0 | CC93: 0 | CE93: 354.7 | CF93: 0 | CH93: 98 | CI93: 0 | CK93: 200 S/CS - 900 S/CAL | CL93: 523907 | CM93: 98 | CN93: =(-43) -> -43 | CP93: 0 | CR93: 0 | CS93: 0 | CU93: 107.3 | CW93: 0 | DA93: 200 S/CS - 900 S/CAL | DB93: 105629 | DD93: =-(41) -> -41
A94: Area Sud | D94: 1 | E94: Campania | F94: 536-P (EX 516-P) | G94: Interconnessione a 150 kV isola di Ischia | H94: FF55/DE | I94: 10.1 | J94: 10.1 | L94: 694 | M94: 694 | AH94: 62 | AT94: 0 | AU94: 0 | AW94: 0 | AX94: 0 | AY94: 62 | BA94: 0 | BC94: 0 | BD94: 0 | BF94: 0 | BG94: 0 | BI94: 0 | BJ94: 0 | BK94: 0 | BL94: 0 | BM94: 0 | BO94: 0 | BP94: 0 | BQ94: 0 | BS94: 0 | BT94: 0 | BU94: 0 | BV94: 0 | BW94: 0 | BX94: 0 | BY94: 0 | BZ94: 0 | CB94: 1.561 | CC94: 0 | CE94: 0 | CF94: 0 | CH94: 0 | CI94: 0 | CK94: 0 | CL94: 0 | CM94: 0 | CO94: 0 | CP94: 0 | CR94: 1.561 | CS94: 0 | CU94: 0 | CW94: 0 | CX94: 0 | CY94: 0
A95: Area Sud | D95: 1 | E95: Campania | F95: 536-P (EX 516-P) | G95: Interconnessione a 150 kV isola di Ischia | H95: LT/LT | I95: 10.1 | J95: 10.1 | L95: 694 | M95: 694 | AT95: 0 | AU95: 0 | AW95: 0 | AX95: 0 | AY95: 62 | BA95: 0 | BC95: 0 | BD95: 0 | BF95: 0 | BG95: 0 | BI95: 0 | BJ95: 0 | BK95: 0 | BL95: 0 | BM95: 0 | BO95: 0 | BP95: 0 | BQ95: 0 | BS95: 0 | BT95: 0 | BU95: 0 | BV95: 0 | BW95: 0 | BX95: 0 | BY95: 0 | BZ95: 0 | CB95: 1.561 | CC95: 0 | CE95: 0 | CF95: 0 | CH95: 0 | CI95: 0 | CK95: 0 | CL95: 0 | CM95: 0 | CO95: 0 | CP95: 0 | CS95: 0 | CU95: 0 | CW95: 0 | CX95: 0 | CY95: 0
A96: Area Sud | D96: 1 | E96: Campania | F96: 533-P | G96: Interventi sulla rete AT nell’area tra le province di Napoli e Caserta | H96: FF55/DE | I96: 1.3 | J96: 1.3 | L96: 6 | M96: 6 | AH96: 1 | AM96: 14 | AT96: 0 | AU96: 0 | AW96: 0 | AX96: 0 | AY96: 1 | BA96: 0 | BC96: 0 | BD96: 0 | BF96: 0 | BG96: 0 | BI96: 0 | BJ96: 0 | BK96: 0 | BL96: 0 | BM96: 0 | BO96: 0 | BP96: 0 | BQ96: 0 | BS96: 0 | BT96: 0 | BU96: 0 | BV96: 0 | BW96: 0 | BX96: 0 | BY96: 0 | BZ96: 0 | CB96: 0.032 | CC96: 0 | CE96: 0 | CF96: 0 | CH96: 0 | CI96: 0 | CK96: 0 | CL96: 0 | CM96: 0 | CO96: 0 | CP96: 0 | CR96: 0.03 | CS96: 0.03 | CU96: 0 | CW96: 0 | CX96: 0 | CY96: 0
A97: Area Sud | D97: 1 | E97: Campania | F97: 533-P | G97: Interventi sulla rete AT nell’area tra le province di Napoli e Caserta | H97: LT/LT | I97: 1.3 | J97: 1.3 | L97: 6 | M97: 6
A98: Area Sud | D98: 1 | E98: Puglia, Molise | F98: 534-P | G98: Direttrice 150 kV "SE Foggia - SSE Termoli" | H98: FF55/DE | I98: 8.2 | J98: 8.2 | L98: 167 | M98: 167 | AK98: 139.3 | BB98: 16 | CE98: 139.3 | CU98: 123.2
A99: Area Sud | D99: 1 | E99: Puglia, Molise | F99: 534-P | G99: Direttrice 150 kV "SE Foggia - SSE Termoli" | H99: LT/LT | I99: 8.2 | J99: 8.2 | L99: 167 | M99: 167
A100: Area Sud | D100: 1 | E100: Puglia | F100: 535-P | G100: Interventi sulla rete AT per la raccolta di energia rinnovabile nell’area tra le province di Foggia e Barletta | H100: FF55/DE | I100: 4.1 | J100: 4.1 | L100: 114 | M100: 114 | AF100: 1 | AK100: 5 | AT100: 0 | AU100: 0 | AW100: 0 | AX100: 2 | AY100: 0 | BA100: 0 | BB100: 14 | BD100: 0 | BF100: 0 | BG100: 0 | BI100: 0 | BJ100: 0 | BK100: 0 | BL100: 0 | BM100: 0 | BO100: 0 | BP100: 0 | BQ100: 0 | BS100: 0 | BT100: 0 | BU100: 0 | BV100: 0 | BW100: 0 | BX100: 0 | BY100: 0 | BZ100: 0.003 | CB100: 0 | CC100: 0 | CE100: 45 | CF100: 0 | CH100: 0 | CI100: 0 | CK100: 0 | CL100: 0 | CM100: 0 | CO100: 0 | CP100: 0.006 | CR100: 0 | CS100: 0 | CU100: 108.1 | CX100: 0 | CY100: 0
A101: Area Sud | D101: 1 | E101: Puglia | F101: 535-P | G101: Interventi sulla rete AT per la raccolta di energia rinnovabile nell’area tra le province di Foggia e Barletta | H101: LT/LT | I101: 4.1 | J101: 4.1 | L101: 114 | M101: 114 | AF101: 1 | AT101: 0 | AU101: 0 | AW101: 0 | AX101: 2 | AY101: 0 | BA101: 0 | BD101: 0 | BF101: 0 | BG101: 0 | BI101: 0 | BJ101: 0 | BK101: 0 | BL101: 0 | BM101: 0 | BO101: 0 | BP101: 0 | BQ101: 0 | BS101: 0 | BT101: 0 | BU101: 0 | BV101: 0 | BW101: 0 | BX101: 0 | BY101: 0 | BZ101: 0.003 | CB101: 0 | CC101: 0 | CE101: 0 | CF101: 0 | CH101: 0 | CI101: 0 | CK101: 0 | CL101: 0 | CM101: 0 | CO101: 0 | CP101: 0.006 | CR101: 0 | CS101: 0 | CU101: 0 | CW101: 0.047 | CX101: 0 | CY101: 0
A102: Area Sud | D102: 1 | E102: Puglia | F102: 526-P | G102: Elettrodotto 150 kV Noci – Martina Franca | H102: FF55/DE | I102: 2.7 | J102: 2.7 | L102: 59 | M102: 59 | AH102: 6 | AT102: 0 | AU102: 0 | AW102: 0 | AX102: 0 | AY102: 8 | BA102: 0 | BC102: 0 | BD102: 0 | BF102: 0 | BG102: 0 | BI102: 0 | BJ102: 0 | BK102: 0 | BL102: 0 | BM102: 0 | BO102: 0 | BP102: 0 | BQ102: 0 | BS102: 0 | BT102: 0 | BU102: 0 | BV102: 0 | BW102: 0 | BX102: 0 | BY102: 0 | BZ102: 0 | CB102: 0.157 | CC102: 0 | CE102: 0 | CF102: 0 | CH102: 0 | CI102: 0 | CK102: 0 | CL102: 0 | CM102: 0 | CO102: 0 | CP102: 0 | CR102: 0.19625 | CS102: 0 | CU102: 0 | CW102: 0 | CX102: 0 | CY102: 0
A103: Area Sud | D103: 1 | E103: Puglia | F103: 526-P | G103: Elettrodotto 150 kV Noci – Martina Franca | H103: LT/LT | I103: 2.7 | J103: 2.7 | L103: 59 | M103: 59 | AT103: 0 | AU103: 0 | AW103: 0 | AX103: 0 | BA103: 0 | BC103: 0 | BD103: 0 | BF103: 0 | BG103: 0 | BI103: 0 | BJ103: 0 | BK103: 0 | BL103: 0 | BM103: 0 | BO103: 0 | BP103: 0 | BQ103: 0 | BS103: 0 | BT103: 0 | BU103: 0 | BV103: 0 | BW103: 0 | BX103: 0 | BY103: 0 | BZ103: 0 | CC103: 0 | CE103: 0 | CF103: 0 | CH103: 0 | CI103: 0 | CK103: 0 | CL103: 0 | CM103: 0 | CO103: 0 | CP103: 0 | CR103: 0.19625 | CS103: 0 | CU103: 0 | CW103: 0 | CX103: 0 | CY103: 0
A104: Area Sud | D104: 1 | E104: Basilicata/Calabria | F104: 542-P | G104: Sviluppi rete AT Calabria Nord Ionica | H104: FF55/DE | I104: 1.5 | J104: 1.5 | L104: 13 | M104: 13 | AH104: 4 | AY104: 4 | CB104: 0.2 | CR104: 0.2
A105: Area Sud | D105: 1 | E105: Basilicata/Calabria | F105: 542-P | G105: Sviluppi rete AT Calabria Nord Ionica | H105: LT/LT | I105: 1.5 | J105: 1.5 | L105: 13 | M105: 13
A106: Area Sud | D106: 1 | E106: Basilicata/Calabria | F106: 546-P (ex 503-S) | G106: Elettrodotto 380 kV Aliano – Montecorvino | H106: FF55/DE | I106: 2-2,4 | J106: 2 | K106: 2.4 | L106: 206-275 | M106: 206 | N106: 275 | AE106: 36 | AK106: 15 | AN106: =(-3) -> -3 | AQ106: 9 | AT106: 1 | AU106: 2 | AW106: 28 | BA106: 0 | BB106: 1 | BD106: 0 | BE106: =(-5) -> -5 | BF106: 0 | BH106: 13 | BI106: 0 | BJ106: 5 | BK106: 2 | BL106: 0 | BM106: 0 | BO106: 0 | BP106: 0 | BQ106: 0 | BS106: 0 | BT106: 0 | BU106: 0 | BV106: 0 | BW106: 0 | BX106: 0 | BZ106: 0 | CB106: 0 | CC106: 0 | CE106: 131.7 | CF106: 0 | CH106: 93 | CI106: 0.1 | CK106: 300 | CL106: 325600 | CM106: 93 | CN106: 13 | CP106: 0 | CS106: 0 | CU106: 10.2 | CW106: 0 | CX106: 31 | CY106: 0.04 | DA106: 300 | DB106: 218288 | DC106: 31 | DD106: 28
A107: Area Sud | D107: 1 | E107: Basilicata/Calabria | F107: 546-P (ex 503-S) | G107: Elettrodotto 380 kV Aliano – Montecorvino | H107: LT/LT | I107: 1,8-1,8 | J107: 1.8 | K107: 1.8 | L107: 158-158 | M107: 158 | N107: 158 | AE107: 15 | AK107: 13 | AN107: =(-2) -> -2 | AQ107: 3 | AT107: =(-1) -> -1 | AU107: 0 | AW107: 0 | BA107: 0 | BB107: 18 | BD107: 0 | BE107: 4 | BF107: 0 | BH107: 11 | BI107: 0 | BK107: 0 | BL107: 0 | BM107: 0 | BO107: 0 | BP107: 0 | BQ107: 0 | BS107: 0 | BT107: 0 | BU107: 0 | BV107: 0 | BW107: 0 | BX107: 0 | BZ107: 0 | CB107: 0 | CC107: 0 | CE107: 107.3 | CF107: 0 | CH107: =+(-128) -> -128 | CI107: =+(-0.01) -> -0.01 | CK107: 300 | CL107: 203539 | CM107: =+(-123) -> -123 | CN107: 5 | CP107: 0 | CS107: 0 | CU107: 141.3 | CW107: 0 | CY107: 0 | DA107: 300 | DB107: 146181 | DD107: 39
A108: Area Sicilia | D108: 1 | E108: Sicilia | F108: 601-I | G108: Nuova interconnessione Italia-Tunisia | H108: FF55/DE | I108: 4,5-5,1 | J108: 4.5 | K108: 5.1 | L108: 1272-1523 | M108: 1272 | N108: 1523 | AE108: 124 | AK108: 3 | AL108: 0.05 | AO108: -4 | AP108: 0 | AT108: 3 | AU108: =+(-34) -> -34 | AW108: 126 | AX108: 0 | AY108: -0.4 | BA108: 0 | BB108: 3 | BC108: 31 | BD108: 0 | BE108: =+(-1) -> -1 | BI108: 0 | BJ108: 50 | BK108: =+(-3) -> -3 | BL108: 0 | BM108: 0 | BO108: 0 | BP108: 0 | BS108: 0 | BT108: 0 | BU108: 0 | BV108: 0 | BW108: 0 | BX108: 0 | BY108: 0 | BZ108: 0 | CB108: 0 | CC108: 0 | CE108: 25.4 | CF108: 0 | CH108: 604 | CI108: =+(-0.8) -> -0.8 | CK108: 600 | CL108: 605508 | CM108: 604 | CN108: 47 | CO108: 0 | CP108: 0 | CR108: 0 | CS108: 0 | CU108: 25.9 | CW108: 0 | CX108: 300.6 | CY108: -0.1 | DA108: 600 | DB108: 1884674 | DC108: 1523 | DD108: 99
A109: Area Sicilia | D109: 1 | E109: Sicilia | F109: 601-I | G109: Nuova interconnessione Italia-Tunisia | H109: LT/LT | I109: 2,2-2,3 | J109: 2.2 | K109: 2.3 | L109: 432-487 | M109: 432 | N109: 487 | AE109: 73 | AK109: 2 | AL109: 0.05 | AO109: -4 | AP109: 0 | AT109: 0 | AU109: =+(-38) -> -38 | AW109: 60 | AX109: 0 | AY109: -0.4 | BA109: 0 | BB109: 0 | BC109: 31 | BD109: 0 | BE109: =+(-2) -> -2 | BI109: 0 | BJ109: 47 | BK109: =+(-20) -> -20 | BL109: 0 | BM109: 0 | BO109: 0 | BP109: 0 | BQ109: 0 | BS109: 0 | BT109: 0 | BU109: 0 | BV109: 0 | BW109: 0 | BX109: 0 | BY109: 0 | BZ109: 0 | CB109: 0 | CC109: 0 | CE109: 12.6 | CF109: 0 | CH109: 9 | CI109: =+(-0.9) -> -0.9 | CK109: 600 | CL109: 267953 | CM109: 9 | CN109: =+(-120) -> -120 | CO109: 0 | CP109: 0 | CR109: 0 | CS109: 0 | CU109: 3.5 | CW109: 0 | CX109: 1523 | CY109: -0.5 | DA109: 600 | DB109: 396554 | DC109: 323 | DD109: =+(-29) -> -29
A110: Area Sicilia | D110: 1 | E110: Sicilia | F110: 602-P | G110: Elettrodotto 380 kV “Chiaramonte Gulfi – Ciminna” | H110: NT-IT/NT-IT | I110: 4,6-4,7 | J110: 4.6 | K110: 4.7 | L110: 1923-1981 | M110: 1923 | N110: 1981 | AF110: 8 | AH110: 3 | AL110: 8 | AO110: -2 | AP110: 150 | AT110: 1 | AU110: 0 | AW110: 25 | AX110: 10 | AY110: 3 | BA110: 0 | BC110: 15 | BD110: 0 | BF110: 2 | BG110: 157 | BI110: 0 | BJ110: 8 | BK110: 0.2 | BL110: 0 | BM110: 0 | BO110: 0 | BP110: 0 | BQ110: 0 | BS110: 0 | BT110: 0 | BU110: 0 | BV110: 0 | BW110: 0 | BX110: 0 | BY110: 137.035 | BZ110: 0 | CB110: 0.077 | CC110: 0 | CE110: 149.93 | CF110: 0 | CH110: 17.5 | CI110: -0.03 | CK110: 0 | CL110: 149930 | CM110: 18 | CO110: 145.16 | CP110: 0 | CR110: 0.066 | CS110: 0 | CV110: 257.12 | CW110: 0 | CX110: 92.8 | CY110: 0 | DB110: 1743143 | DC110: 93
A111: Area Sicilia | D111: 1 | E111: Sicilia | F111: 602-P | G111: Elettrodotto 380 kV “Chiaramonte Gulfi – Ciminna” | H111: BAU-BAU | I111: 2,3-2,3 | J111: 2.3 | K111: 2.3 | L111: 712-726 | M111: 712 | N111: 726 | AF111: 18 | AH111: 20 | AL111: 0.4 | AO111: 6 | AP111: 21 | AT111: 1 | AU111: =+(-1) -> -1 | AW111: 5 | AX111: 37 | AY111: 25 | BA111: 0 | BC111: 8 | BD111: 0 | BF111: 15 | BG111: 34 | BI111: 0 | BJ111: 29.3 | BK111: 0.03 | BL111: 0 | BM111: 0 | BO111: 0 | BP111: 0 | BQ111: 0 | BS111: 0 | BT111: 0 | BU111: 0 | BV111: 0 | BW111: 0 | BX111: 0 | BY111: 324.59 | BZ111: 0 | CB111: 0.488 | CC111: 0 | CE111: 6.7 | CF111: 0 | CH111: 29.8 | CI111: 0.02 | CK111: 0 | CL111: 6700 | CM111: 30 | CO111: 554.872 | CP111: 0 | CR111: 0.619 | CS111: 0 | CV111: 128.92 | CW111: 0 | CX111: 29.3 | CY111: 0.03 | DB111: 140347 | DC111: 29
A112: Area Sicilia | D112: 1 | E112: Sicilia | F112: 607-P | G112: Elettrodotto 220 kV Partinico- Fulgatore | H112: DE | I112: 2,2-2,2 | J112: 2.2 | K112: 2.2 | L112: 26-26 | M112: 26 | N112: 26 | AY112: 0 | BA112: 0 | BB112: 3 | BD112: 0 | BE112: 1 | CK112: 0 | CL112: 0 | CM112: 0 | CP112: 0 | CR112: 0 | CS112: 0 | CU112: 11.2
A113: Area Sicilia | D113: 1 | E113: Sicilia | F113: 627-P | G113: Elettrodotto 380 kV Caracoli - Ciminna | H113: NT-IT/NT-IT | I113: 4,6-4,7 | J113: 4.6 | K113: 4.7 | L113: 1923-1981 | M113: 1923 | N113: 1981 | AF113: 8 | AH113: 3 | AL113: 8 | AO113: -2 | AP113: 150 | AT113: 1 | AU113: =+(-0.03) -> -0.03 | AW113: 25 | AX113: 10 | AY113: 3 | BA113: 0 | BC113: 15 | BD113: 0 | BF113: 2 | BG113: 157 | BI113: 0 | BJ113: 8 | BK113: 0.2 | BL113: 0 | BM113: 0 | BO113: 0 | BP113: 0 | BQ113: 0 | BS113: 0 | BT113: 0 | BU113: 0 | BV113: 0 | BW113: 0 | BX113: 0 | BY113: 137.035 | BZ113: 0 | CB113: 0.077 | CC113: 0 | CF113: 149.93 | CH113: 17.5 | CK113: 0 | CL113: 149930 | CM113: 18 | CO113: 145.16 | CP113: 0 | CR113: 0.066 | CS113: 0 | CV113: 257.12 | CW113: 0 | CX113: 92.8 | CY113: 0 | DB113: 1743143 | DC113: 93
A114: Area Sicilia | D114: 1 | E114: Sicilia | F114: 627-P | G114: Elettrodotto 380 kV Caracoli - Ciminna | H114: BAU-BAU | I114: 2,3-2,3 | J114: 2.3 | K114: 2.3 | L114: 712-712 | M114: 712 | N114: 712 | AF114: 18 | AH114: 20 | AL114: 0.4 | AO114: 6 | AP114: 21 | AT114: 1 | AU114: =+(-1) -> -1 | AW114: 5 | AX114: 37 | AY114: 25 | BC114: 8 | BF114: 15 | BG114: 34 | BJ114: 3 | BK114: =+(-1) -> -1 | BY114: 324.59 | CB114: 0.488 | CF114: 6.7 | CH114: 29.8 | CI114: 0.02 | CL114: 6700 | CM114: 30 | CO114: 554.872 | CR114: 0.619 | CV114: 128.92 | CX114: 29.3 | CY114: 0.03 | DB114: 140347 | DC114: 29
A115: Area Sud | D115: 1 | E115: Puglia | F115: 554-P | G115: Nuovo HVDC Italia-Grecia (GRITA 2) | H115: FF55/DE | I115: 4,0-4,9 | J115: 4 | K115: 4.9 | L115: 1688-2194 | M115: 1688 | N115: 2194 | AE115: 64 | AK115: 2 | AN115: 6 | AO115: 37 | AP115: 5 | AQ115: 39 | AT115: 3 | AU115: 0 | AW115: 124 | AX115: 0 | AY115: 0 | BA115: 0 | BB115: 12 | BD115: 0 | BE115: 9 | BH115: 51 | BI115: 0 | BJ115: 36 | BK115: 8 | BL115: 0 | BM115: 0 | BO115: 0 | BP115: 0 | BQ115: 0 | BS115: 0 | BT115: 0 | BU115: 0 | BV115: 0 | BW115: 0 | BX115: 0 | BY115: 0 | BZ115: 0 | CB115: 0 | CC115: 0 | CE115: 17.4 | CF115: 0 | CH115: 494 | CI115: 0 | CK115: 500 | CL115: 561874 | CM115: 494 | CN115: 35 | CO115: 0 | CP115: 0 | CR115: 0 | CS115: 0 | CU115: 95.7 | CW115: 0 | CX115: 246 | CY115: 0.2 | DA115: 500 | DB115: 236885 | DC115: 246 | DD115: 36
A116: Area Sud | D116: 1 | E116: Puglia | F116: 554-P | G116: Nuovo HVDC Italia-Grecia (GRITA 2) | H116: LT/LT | I116: 1,6-2,3 | J116: 1.6 | K116: 2.3 | L116: 352-716 | M116: 352 | N116: 716 | AE116: 13 | AN116: 13 | AO116: 37 | AP116: 5 | AQ116: 35 | AT116: 0 | AU116: 6 | AW116: 26 | AX116: 0 | AY116: 0 | BA116: 0 | BB116: 2 | BD116: 0 | BE116: 18 | BH116: 34 | BI116: 0 | BJ116: 22 | BK116: 10 | BL116: 0 | BM116: 0 | BO116: 0 | BP116: 0 | BQ116: 0 | BS116: 0 | BT116: 0 | BU116: 0 | BV116: 0 | BW116: 0 | BX116: 0 | BY116: 0 | BZ116: 0 | CB116: 0 | CC116: 0 | CE116: 3.6 | CF116: 0 | CH116: 28 | CI116: 0.1 | CK116: 500 | CL116: 237254 | CM116: 28 | CN116: =+(-50) -> -50 | CO116: 0 | CP116: 0 | CR116: 0 | CS116: 0 | CU116: 17.1 | CW116: 0 | CX116: 149 | CY116: 0.2 | DA116: 500 | DB116: 375354 | DC116: 149 | DD116: 149
A117: Area Sud | D117: 1 | E117: Sicilia/Calabria | F117: 555-P | G117: Nuovo collegamento 380 kV Bolano Annunziata | H117: FF55/DE | I117: 7,3-7,4 | J117: 7.3 | K117: 7.4 | L117: 1024-1034 | M117: 1024 | N117: 1034 | AK117: 65 | AL117: 1 | AN117: =+(-3) -> -3 | AO117: 0 | AQ117: 101 | AT117: 0 | AU117: 0 | AW117: 2 | AX117: 0 | AY117: 0 | BA117: 0 | BB117: 27 | BD117: 0 | BF117: 0 | BH117: =+(-6) -> -6 | BI117: 0 | BJ117: 1 | BK117: 1 | BL117: 0 | BM117: 0 | BO117: 0 | BP117: 0 | BQ117: 0 | BS117: 0 | BT117: 0 | BU117: 0 | BV117: 0 | BW117: 0 | BX117: 0 | BY117: 0 | BZ117: 0 | CB117: 0 | CC117: 0 | CE117: 558.894 | CF117: 0 | CH117: 0 | CI117: 0 | CK117: 0 | CL117: 0 | CM117: 0 | CO117: 0 | CP117: 0 | CR117: 0 | CS117: 0 | CU117: 210.577 | CW117: 0 | CX117: 3 | CY117: 0.019 | DA117: 500 | DB117: 238268 | DC117: 3 | DD117: 7
A118: Area Sud | D118: 1 | E118: Sicilia/Calabria | F118: 555-P | G118: Nuovo collegamento 380 kV Bolano Annunziata | H118: LT/LT | I118: 2,5-2,5 | J118: 2.5 | K118: 2.5 | L118: 236-236 | M118: 236 | N118: 236 | AK118: 35 | AL118: 1 | AN118: =+(-6) -> -6 | AO118: 0 | AQ118: 16 | AT118: 0 | AU118: 0 | AW118: 0 | AX118: 0 | AY118: 0 | BA118: 0 | BB118: 12 | BD118: 0 | BE118: =+(-1) -> -1 | BF118: 0 | BH118: 5 | BI118: 0 | BL118: 0 | BM118: 0 | BO118: 0 | BP118: 0 | BQ118: 0 | BS118: 0 | BT118: 0 | BU118: 0 | BV118: 0 | BW118: 0 | BX118: 0 | BY118: 0 | BZ118: 0 | CB118: 0 | CC118: 0 | CE118: 302.453 | CF118: 0 | CH118: 0 | CI118: 0 | CK118: 0 | CL118: 0 | CM118: 0 | CO118: 0 | CP118: 0 | CR118: 0 | CS118: 0 | CU118: 92.9816 | CW118: 0 | DA118: 500 | DB118: 93372 | DD118: =+(-3) -> -3
A119: Area Sud | D119: 1 | E119: Campania | F119: 553-P | G119: Elettrodotto 380 kV Area Nord Benevento | H119: FF55/DE | I119: 2,1-3,9 | J119: 2.1 | K119: 3.9 | L119: 44-117 | M119: 44 | N119: 117 | AW119: 5 | AX119: 0 | AY119: 0 | BA119: 0 | BB119: 5 | BD119: 0 | BE119: 4 | BH119: =+(-5) -> -5 | BI119: 0 | BJ119: 5 | BK119: 3 | BL119: 0 | BM119: 0 | BO119: 0 | BP119: 0 | BQ119: 0 | BS119: 0 | BT119: 0 | BU119: 0 | BV119: 0 | BW119: 0 | BX119: 0 | BY119: 0 | BZ119: 0 | CB119: 0 | CC119: 0 | CF119: 0 | CH119: 0 | CI119: 0 | CK119: 0 | CL119: 0 | CM119: 0 | CO119: 0 | CP119: 0 | CR119: 0 | CS119: 0 | CU119: 38.8 | CW119: 0 | CX119: 31 | CY119: 0.1 | DA119: 200 | DB119: 80764 | DC119: 31 | DD119: =+(-45) -> -45
A120: Area Sud | D120: 1 | E120: Campania | F120: 553-P | G120: Elettrodotto 380 kV Area Nord Benevento | H120: LT/LT | I120: 2,2-3,0 | J120: 2.2 | K120: 3 | L120: 48-79 | M120: 48 | N120: 79 | AW120: 3 | AX120: 0 | AY120: 0 | BA120: 0 | BB120: 6 | BD120: 0 | BE120: =+(-1) -> -1 | BH120: 1 | BI120: 0 | BJ120: 3 | BK120: 1 | BL120: 0 | BM120: 0 | BO120: 0 | BP120: 0 | BQ120: 0 | BS120: 0 | BT120: 0 | BU120: 0 | BV120: 0 | BW120: 0 | BX120: 0 | BY120: 0 | BZ120: 0 | CB120: 0 | CC120: 0 | CF120: 0 | CH120: 0 | CI120: 0 | CK120: 0 | CL120: 0 | CM120: 0 | CO120: 0 | CP120: 0 | CR120: 0 | CS120: 0 | CU120: 50.9 | CW120: 0 | CX120: 18 | CY120: 0 | DA120: 200 | DB120: 75741 | DC120: 18 | DD120: 5
A121: Area Centro | D121: 1 | E121: Lazio | F121: 428-P | G121: Riassetto rete AT area Sud di Roma | H121: BAU-BAU | I121: 7.1 | J121: 7.1 | L121: 152 | M121: 152 | AH121: 13 | AO121: 0 | AP121: 0 | AT121: 0 | AU121: 0 | AW121: 0 | AX121: 0 | AY121: 15 | BA121: 0 | BC121: 0 | BD121: 0 | BF121: 0 | BG121: 0 | BI121: 0 | BJ121: 0 | BK121: 0 | BL121: 0 | BM121: 0 | BO121: 0 | BP121: 0 | BQ121: 0 | BS121: 0 | BT121: 0 | BU121: 0 | BV121: 0 | BW121: 0 | BX121: 0 | BY121: 0 | BZ121: 0 | CB121: 0.336 | CC121: 0 | CE121: 0 | CF121: 0 | CH121: 0 | CI121: 0 | CK121: 0 | CL121: 0 | CM121: 0 | CO121: 0 | CP121: 0 | CR121: 0.375 | CS121: 0 | CU121: 0 | CW121: 0 | CX121: 0 | CY121: 0 | DB121: 0 | DC121: 0
A122: Area Sud | D122: 1 | E122: Basilicata/Puglia | F122: 520-P Cluster 2 | G122: Interventi sulla rete AT per la raccolta della produzione rinnovabile in Basilicata | H122: ST | I122: 2,3-2,3 | J122: 2.3 | K122: 2.3 | L122: 29-29 | M122: 29 | N122: 29 | U122: 4
A123: Area Sud | D123: 1 | E123: Basilicata/Puglia | F123: 520-P Cluster 2 | G123: Interventi sulla rete AT per la raccolta della produzione rinnovabile in Basilicata | H123: DG | I123: 2,5-2,5 | J123: 2.5 | K123: 2.5 | L123: 34-34 | M123: 34 | N123: 34 | U123: 4
A124: Area Sud | D124: 1 | E124: Puglia | F124: 518-P | G124: Interventi sulla rete AT per la raccolta della produzione rinnovabile in Campania | H124: ST | I124: 3,6-3,6 | J124: 3.6 | K124: 3.6 | L124: 99-99 | M124: 99 | N124: 99 | U124: 4 | AL124: 12
A125: Area Sud | D125: 1 | E125: Puglia | F125: 519-P Cluster 1 | G125: Interventi sulla rete AT per la raccolta della produzione rinnovabile in Calabria | H125: ST | I125: 3,1-3,1 | J125: 3.1 | K125: 3.1 | L125: 47-47 | M125: 47 | N125: 47 | U125: 5
A126: Area Centro Sud | D126: 1 | E126: Abruzzo | F126: 420-P | G126: Riassetto rete Teramo - Pescara | H126: ST | I126: 1,9-2,9 | J126: 1.9 | K126: 2.9 | L126: 75-148 | M126: 75 | N126: 148 | Q126: 1 | S126: 9 | AA126: 5 | AG126: 1 | AI126: 9 | AR126: 5
A127: Area Centro Sud | D127: 1 | E127: Abruzzo/Molise | F127: 405-P | G127: Elettrodotto 150 kV Portocannone – S. Salvo Z.I. e nuovo smistamento | H127: ST | I127: 1,6-1,6 | J127: 1.6 | K127: 1.6 | L127: 16-16 | M127: 16 | N127: 16 | Q127: 1 | S127: 3 | AA127: 5 | AG127: 1 | AI127: 9 | AR127: 5
A128: Area Sud | D128: 1 | E128: Sicilia | F128: 612-P | G128: Interventi sulla rete AT nell’area a nord di Catania | H128: ST | I128: 3.3 | J128: 3.3 | L128: 113 | M128: 113 | S128: 11 | AI128: 10
A129: Area Sud | D129: 1 | E129: Sicilia | F129: 616-P | G129: Stazione 380 kV Vizzini (ex SE 380 kV Mineo) | H129: ST | I129: 8 | J129: 8 | L129: 93 | M129: 93 | S129: 5 | U129: 4 | AI129: 5 | AL129: <1
A130: Area Sud | D130: 1 | E130: Sicilia | F130: 613-P | G130: Interventi sulla rete AT nell’area di Ragusa | H130: ST | I130: 2.3 | J130: 2.3 | L130: 84 | M130: 84 | S130: 10 | U130: 4 | AI130: 10
A131: Area Sud | D131: 1 | E131: Sicilia | F131: 603-P | G131: Elettrodotto 380 kV Paternò-Pantano-Priolo | H131: V1 | I131: 1.7 | J131: 1.7 | L131: 242 | M131: 242 | X131: 35 | AN131: 36 | BL131: 14.9 | BO131: 17 | BQ131: 900 | BY131: 15 | CB131: 0.016 | CE131: 1.1
A132: Area Sud | D132: 1 | E132: Sicilia | F132: 603-P | G132: Elettrodotto 380 kV Paternò-Pantano-Priolo | H132: V3 | I132: 2.1 | J132: 2.1 | L132: 376 | M132: 376 | X132: 43 | AN132: 45 | BL132: 13.63 | BO132: 16 | BQ132: 1100 | BY132: 13.2 | CB132: 0.015 | CE132: 1.43
A133: Area Centro Sud | D133: 1 | E133: Lazio | F133: 408-P | G133: Sviluppi di rete nell’area di Cassino | H133: ST | I133: 2 | J133: 2 | L133: 17 | M133: 17 | S133: 2 | AI133: 2
A134: Area Centro | D134: 1 | E134: Lazio | F134: 404-P | G134: Riassetto area metropolitana di Roma | H134: V1 | I134: 3.2 | J134: 3.2 | L134: 985 | M134: 985 | BN134: 3 | BP134: 2327 | CA134: 3 | CD134: 2263
A135: Area Sud/Centro Sud | D135: 1 | E135: Campania/Puglia | F135: 505-P | G135: Stazioni 380/150 kV e relativi raccordi alla rete AT per la raccolta di produzione da fonte rinnovabile: rinforzi rete AAT e AT nell’area tra Foggia e Benevento | H135: V1 | I135: 4.3 | J135: 4.3 | L135: 731 | M135: 731 | O135: 5 | X135: 22 | AE135: 3.2 | AN135: 23 | BP135: 60 | BQ135: 464590 | CD135: 61 | CE135: 515.695
A136: Area Sud/Centro Sud | D136: 1 | E136: Campania/Puglia | F136: 505-P | G136: Stazioni 380/150 kV e relativi raccordi alla rete AT per la raccolta di produzione da fonte rinnovabile: rinforzi rete AAT e AT nell’area tra Foggia e Benevento | H136: V3 | I136: 2.4 | J136: 2.4 | L136: 314 | M136: 314 | O136: 8 | X136: 1 | AE136: 19 | AN136: 1 | BL136: 131.8 | BQ136: 122610 | CE136: 159.393
A137: Area Centro Sud | D137: 1 | E137: Campania | F137: 504-P | G137: Riassetto rete AT penisola Sorrentina | H137: V1 | I137: 16.5 | J137: 16.5 | L137: 3838 | M137: 3838 | BN137: 2 | BP137: 13500
A138: Area Centro Sud | D138: 1 | E138: Campania | F138: 511-P | G138: Stazione 380 kV S. Sofia | H138: V3 | I138: 5.3 | J138: 5.3 | L138: 157 | M138: 157 | BP138: 322 | CD138: 307
A139: Area Sud | D139: 1 | E139: Puglia | F139: 512-P | G139: Stazione 380 - 150 kV di Palo del Colle | H139: V1 | I139: 2.6 | J139: 2.6 | L139: 116 | M139: 116 | BN139: 5 | BP139: 506
A140: Area Sud | D140: 1 | E140: Basilicata/Calabria | F140: 509-P | G140: Riassetto rete nord Calabria | H140: V1 | I140: 2.4 | J140: 2.4 | L140: 344 | M140: 344 | X140: 30.9 | AN140: 32 | BP140: 30 | BQ140: 172230 | CD140: 30
A141: Area Sud | D141: 1 | E141: Basilicata/Calabria | F141: 509-P | G141: Riassetto rete nord Calabria | H141: V3 | I141: 2.1 | J141: 2.1 | L141: 269 | M141: 269 | X141: 10.3 | AN141: 11 | CE141: 223.899
A142: Area Sud | D142: 1 | E142: Campania | F142: 514-P | G142: Riassetto rete a 220 kV città di Napoli | H142: V1 | I142: 2.5 | L142: 314 | M142: 314 | BN142: 4 | BP142: 1018 | CA142: 4 | CD142: 943
A143: Area Centro | D143: 1 | E143: Toscana/Umbria/Abruzzo/Marche | F143: 432-P | G143: Rimozione limitazioni sezione Centro Sud – Centro Nord | H143: DEC | I143: 2-2,3 | J143: 2 | K143: 2.3 | L143: 69-90 | M143: 69 | N143: 90 | AE143: 5 | AH143: 0.08 | AL143: 3 | AO143: 0.05 | AP143: 3 | AT143: 4 | AU143: =+(-2) -> -2 | AW143: 13 | AY143: 0.28 | BF143: 0.005 | BG143: =+(-1) -> -1 | BJ143: 1 | BK143: =+(-0.35) -> -0.35 | CB143: 0.004 | CF143: 48.708 | CH143: 96.894 | CI143: =+(-0.105) -> -0.105 | CK143: 150-300 | CL143: 55839 | CM143: 97 | CR143: 0.014 | CX143: 67.735 | CY143: =+(-0.024) -> -0.024 | DA143: 150-300 | DB143: 84458 | DC143: 68
A144: Area Centro | D144: 1 | E144: Toscana/Umbria/Abruzzo/Marche | F144: 432-P | G144: Rimozione limitazioni sezione Centro Sud – Centro Nord | H144: BAU | I144: 3,4-3,5 | J144: 3.4 | K144: 3.5 | L144: 167-175 | M144: 167 | N144: 175 | AE144: 4 | AL144: 4 | AO144: =+(-0.32) -> -0.32 | AP144: 15 | AT144: 1 | AU144: =+(-1) -> -1 | AW144: 11 | BC144: 1 | BG144: 5 | BJ144: 2 | BK144: =+(-1) -> -1 | CF144: 72.358 | CH144: 22.643 | CI144: =+(-0.062) -> -0.062 | CK144: 150-301 | CL144: 75130 | CM144: 28 | CV144: 16.239 | CX144: 60 | CY144: =+(-0.06) -> -0.06 | DA144: 150-300 | DB144: 56299 | DC144: 60
A145: Area Centro | D145: 1 | E145: Abruzzo/Marche | F145: 403-P | G145: Rete AAT/AT medio Adriatico | H145: BAU | I145: 2,3-3,9 | J145: 2.3 | K145: 3.9 | L145: 33-74 | M145: 33 | N145: 74 | AH145: 5 | AM145: 9 | AV145: 23 | AY145: 5 | CB145: 0.157 | CJ145: 1.6 | CR145: 0.173 | CZ145: 1.6
A146: Area Sud | D146: 1 | E146: Abruzzo/Molise/Puglia | F146: 402-P | G146: Elettrodotto 380 kV Foggia – Villanova | H146: V1 | I146: 5.3 | L146: 3570 | O146: 22 | X146: 28.57 | AE146: 24 | AN146: 29.4271 | BL146: 205.24 | BO146: 6680 | BQ146: 176160 | BY146: 207.292 | CB146: 6.747 | CE146: 195.5376
A147: Area Sud | D147: 1 | E147: Abruzzo/Molise/Puglia | F147: 402-P | G147: Elettrodotto 380 kV Foggia – Villanova | H147: V3 | I147: 2.9 | L147: 1587 | O147: 33 | X147: 32 | AE147: 83.98 | AN147: 33.28 | BL147: 206.22 | BO147: 1290 | BY147: 200.033 | CB147: 1.251
A148: Area Sud | D148: 1 | E148: Calabria | F148: 521-P | G148: Interventi sulla rete AT per la raccolta della produzione rinnovabile in Calabria | H148: ST | I148: 2.2 | J148: 2.2 | K148: 2.2 | L148: 53 | M148: 53 | N148: 53 | U148: 4 | AL148: 6
A149: Area Sicilia | D149: 1 | E149: Sicilia | F149: 630-P | G149: Interconnessione Isola di Favignana | H149: NT-IT/NT-IT | I149: 1-1,4 | J149: 1 | K149: 1.4 | L149: 0-32 | M149: 0 | N149: 32 | AH149: 1 | AJ149: 6 | AL149: 0.01 | AT149: 1 | AU149: 2 | AY149: 1 | BC149: 0.06 | BJ149: 2 | BK149: 2 | CB149: 0.013 | CF149: 0.2482 | CR149: 0.0145 | CV149: 1.0547
A150: Area Nord-Ovest | B150: 1 | E150: Piemonte | F150: 6-P | G150: Razionalizzazione rete 220 e 132 kV Provincia di Torino | H150: V1 | I150: 2.1 | L150: 270 | X150: 27.6 | AN150: 27.6 | BL150: 29.91 | BO150: 80 | BY150: 31.28 | CB150: 0.084
A151: Area Sardegna | B151: 1 | E151: Sardegna | F151: 707-P | G151: Elettrodotto 150 kV SE S.Teresa – Buddusò | H151: V1 | I151: 3.4 | L151: 151 | BO151: 438 | CB151: 0.438

Sheet D-Merchant line
A2: Frontiera | B2: Progetto | C2: AC/DC | D2: Tensione [kV] | E2: Potenza [MW] | F2: Società richiedente | G2: Schema di connessione | H2: Regione interessata
A3: Italia-Tunisia | B3: Montalto-Rejim Maatoug | C3: DC | D3: 500 | E3: 2000 | F3: NUR POWER ITALY SRL | G3: In doppia antenna alla stazione "Montalto di Castro" | H3: Lazio
A4: Italia-Svizzera | B4: Mese-Castasegna | C4: AC | D4: 220 | E4: 250 | F4: MERA | G4: In antenna alla stazione di "Mese",previa realizzazione della sezione a 380 kV | H4: Lombardia
A5: Italia-Svizzera | B5: Verderio-Sils | C5: DC | D5: 400 | E5: 1000 | F5: GREENCONNECTOR SRL | G5: In antenna alla stazione di "Verderio" | H5: Lombardia
A6: Italia-Francia | B6: Cesana-Briançon | C6: AC | D6: 132 | E6: 150 | F6: ENEL PRODUZIONE SPA | G6: In antenna alla stazione di "Cesana" | H6: Piemonte
A7: Italia-Svizzera | B7: Mese-Castasegna | C7: AC | D7: 132 | E7: 100 | F7: ENEL PRODUZIONE SPA | G7: In antenna alla stazione di "Mese" | H7: Lombardia
A8: Italia-Slovenia | B8: Redipuglia-Vrtojba | C8: AC | D8: 110 | E8: 150 | F8: ADRIA LINK | G8: In antenna alla stazione di "Redipuglia" | H8: Friuli
A9: Italia-Austria | B9: Somplago-Wurmlach | C9: AC | D9: 220 | E9: 300 | F9: ALPE ADRIA ENERGIA SPA | G9: In antenna alla stazione di "Somplago" | H9: Friuli
A10: Italia Malta | B10: Ragusa Maghtab | C10: AC | D10: 220 | E10: 500 | F10: ENEMALTA PLC | G10: In antenna alla stazione "Ragusa" | H10: Sicilia
A11: Italia-Austria | B11: Prati di vizze -Steinach | C11: AC | D11: 132 | E11: 80 | F11: MEMC SPA | G11: In antenna alla nuova stazione da inserire in entra-esce sulla futura linea "Prati di Vizze- Steinach" | H11: Trentino Aldo Adige

Sheet E- PdS 2023 - opere princip
A2: Tipo Intervento | B2: Distretto Territoriale | C2: Codice PdS | D2: Tipologia | E2: Nome Intervento | F2: Nome intervento /opera | G2: Avvio attività | H2: Avvio realizzazione | I2: Completamento
A3: Intervento Piano precedente | B3: DTCS | C3: 432-P | D3: Intervento | E3: Rimozione limitazioni sezione Centro Sud – Centro Nord | F3: Rimozione limitazioni sezione Centro Sud – Centro Nord | I3: 2023/2026
A4: Intervento Piano precedente | B4: DTCS | C4: 432-P | D4: Opera Principale | E4: Rimozione limitazioni sezione Centro Sud – Centro Nord | F4: Direttrice 220 kV “S. Barbara - Villavalle" | G4: 07/07/2014 (EL-314) | H4: 2020 | I4: 2023
A5: Intervento Piano precedente | B5: DTCS | C5: 432-P | D5: Opera Principale | E5: Rimozione limitazioni sezione Centro Sud – Centro Nord | F5: Direttrice 220 kV “Candia - Villanova" | G5: 2021 | H5: 2021 | I5: 2023
A6: Intervento Piano precedente | B6: DTCS | C6: 432-P | D6: Opera Principale | E6: Rimozione limitazioni sezione Centro Sud – Centro Nord | F6: Stazioni S. Barbara, Villavalle, Villanova e Candia | G6: 2021 | H6: 2021 | I6: 2023
A7: Intervento Piano precedente | B7: DTCS | C7: 432-P | D7: Opera Principale | E7: Rimozione limitazioni sezione Centro Sud – Centro Nord | F7: Rimozioni limitazioni rete 132 kV | G7: 2021 | H7: 2024 | I7: 2026
A8: Intervento Piano precedente | B8: DTCS | C8: 402-P | D8: Intervento | E8: Elettrodotto 380 kV Foggia – Villanova | F8: Elettrodotto 380 kV Foggia – Villanova | I8: 2028/2030
A9: Intervento Piano precedente | B9: DTCS | C9: 402-P | D9: Opera Principale | E9: Elettrodotto 380 kV Foggia – Villanova | F9: Elettrodotto 380 kV “Villanova – Gissi” | G9: 25/01/2010 (EL-195) | H9: 2014-05-01 | I9: 2016-01-01
A10: Intervento Piano precedente | B10: DTCS | C10: 402-P | D10: Opera Principale | E10: Elettrodotto 380 kV Foggia – Villanova | F10: SE 380 kV SE Villanova | G10: 25/01/2010 (EL-195) | H10: 2013-02-01 | I10: 2014-12-01
A11: Intervento Piano precedente | B11: DTCS | C11: 402-P | D11: Opera Principale | E11: Elettrodotto 380 kV Foggia – Villanova | F11: Installazione PST SE Villanova | G11: 16/07/2010 (EL-211) | H11: 2011 | I11: 2012-11-01
A12: Intervento Piano precedente | B12: DTCS | C12: 402-P | D12: Opera Principale | E12: Elettrodotto 380 kV Foggia – Villanova | F12: Elettrodotto 380 kV “Foggia – Larino – Gissi” | G12: 25/07/2012 (EL-285) | H12: 2025 | I12: 2028
A13: Intervento Piano precedente | B13: DTCS | C13: 402-P | D13: Altre Opere | E13: Elettrodotto 380 kV Foggia – Villanova | F13: Razionalizzazioni nell’area di Cepagatti in uscita dalla SE di Villanova lungo l’elettrodotto 380 kV “Villanova-Gissi-Foggia” | G13: 13/10/2021 (EL-490) | H13: 2027 | I13: 2028
A14: Intervento Piano precedente | B14: DTCS | C14: 402-P | D14: Altre Opere | E14: Elettrodotto 380 kV Foggia – Villanova | F14: Ottimizzazione presso SE Gissi dell’elettrodotto 380 kV “Villanova-Gissi” | G14: 2024 | H14: 2027 | I14: 2028
A15: Intervento Piano precedente | B15: DTCS | C15: 402-P | D15: Altre Opere | E15: Elettrodotto 380 kV Foggia – Villanova | F15: Razionalizzazione delle esistenti reti 132 e 150 kV | G15: 2021 | H15: 2026 | I15: 2030
A16: Intervento Piano precedente | B16: DTCS | C16: 404-P | D16: Intervento | E16: Riassetto area metropolitana di Roma | F16: Riassetto area metropolitana di Roma | I16: 2035
A17: Intervento Piano precedente | B17: DTCS | C17: 404-P | D17: Opera Principale | E17: Riassetto area metropolitana di Roma | F17: El. 150 kV “Flaminia – Laurentina” | G17: 11/10/2011 (EL-245) | H17: 2018-10-01 | I17: 2030
A18: Intervento Piano precedente | B18: DTCS | C18: 404-P | D18: Opera Principale | E18: Riassetto area metropolitana di Roma | F18: Riassetto "Quadrante Nord-Ovest" | G18: 10/03/2011 (EL-230) | H18: 2032 | I18: 2035
A19: Intervento Piano precedente | B19: DTCS | C19: 404-P | D19: Opera Principale | E19: Riassetto area metropolitana di Roma | F19: Riassetto "Quadrante Sud-Ovest" | G19: 25/01/2011 (EL-223) | H19: 2026 | I19: 2030
A20: Intervento Piano precedente | B20: DTCS | C20: 404-P | D20: Opera Principale | E20: Riassetto area metropolitana di Roma | F20: El. 220 kV “Piazza Dante – S. Paolo – Castel di Leva” | G20: 25/01/2011 (EL-247) | H20: 2027 | I20: 2035
A21: Intervento Piano precedente | B21: DTCS | C21: 404-P | D21: Opera Principale | E21: Riassetto area metropolitana di Roma | F21: SE 220 kV Castel di Leva e raccordi alla linea 220 kV S. Paolo - Roma Sud | G21: 12/12/2012 (EL-295) | H21: 2026 | I21: 2029
A22: Intervento Piano precedente | B22: DTCS | C22: 404-P | D22: Opera Principale | E22: Riassetto area metropolitana di Roma | F22: Ampliamento SE Magliana RT ed El. 150 kV Magliana RT – CP A. Magliana 1 | G22: 12/02/2012 (EL-464) | H22: 2023 | I22: 2026
A23: Intervento Piano precedente | B23: DTCS | C23: 404-P | D23: Opera Principale | E23: Riassetto area metropolitana di Roma | F23: Bypass “Magliana RT – Palidoro RT” e “Aurelia RT – Magliana RT” | G23: 12/02/2012 (EL-464) | H23: 2023 | I23: 2025
A24: Intervento Piano precedente | B24: DTCS | C24: 404-P | D24: Altre Opere | E24: Riassetto area metropolitana di Roma | F24: Razionalizzazione delle esistenti reti 132 e 150 kV | G24: 10/03/2011 (EL-230) | H24: 2032 | I24: 2035
A25: Intervento Piano precedente | B25: DTCS | C25: 404-P | D25: Altre Opere | E25: Riassetto area metropolitana di Roma | F25: Riassetto tra CP Crocicchie e CP Cesano | G25: 10/03/2011 (EL-230) | H25: 2032 | I25: 2035
A26: Intervento Piano precedente | B26: DTCS | C26: 420-P | D26: Intervento | E26: Riassetto rete Teramo - Pescara | F26: Riassetto rete Teramo - Pescara | I26: 2035
A27: Intervento Piano precedente | B27: DTCS | C27: 420-P | D27: Opera Principale | E27: Riassetto rete Teramo - Pescara | F27: Ampliamento SE Teramo e raccordi 380/132 kV | G27: 07/11/2018 (EL-405) | H27: 2025 | I27: 2028
A28: Intervento Piano precedente | B28: DTCS | C28: 420-P | D28: Opera Principale | E28: Riassetto rete Teramo - Pescara | F28: Risoluzione der. Rigida “Montesilvano – Pineto der. Villanova” | G28: 30/03/2020 (EL-444) | H28: 2025 | I28: 2035
A29: Intervento Piano precedente | B29: DTCS | C29: 420-P | D29: Opera Principale | E29: Riassetto rete Teramo - Pescara | F29: Risoluzione der. Rigida “Montesilvano – Montesilvano all. der. Villanova” | G29: 2021 | H29: 2024 | I29: 2026
A30: Intervento Piano precedente | B30: DTCS | C30: 420-P | D30: Altre Opere | E30: Riassetto rete Teramo - Pescara | F30: Rimozione limitazioni CP S. Giovanni Teatino | G30: - | H30: - | I30: 2028
A31: Intervento Piano precedente | B31: DTCS | C31: 414-P | D31: Intervento | E31: Stazione 380 kV Rotello | F31: Stazione 380 kV Rotello | I31: 2023
A32: Intervento Piano precedente | B32: DTCS | C32: 414-P | D32: Opera Principale | E32: Stazione 380 kV Rotello | F32: SE 380/150 kV Rotello e raccordi 380 kV | G32: 2010 | H32: 2011-01-01 | I32: 2014-12-01
A33: Intervento Piano precedente | B33: DTCS | C33: 414-P | D33: Opera Principale | E33: Stazione 380 kV Rotello | F33: Nuovo el. 150 kV "SE Rotello - Rotello smistamento" | G33: 20/12/2013 (EL-321) | H33: 2021 | I33: 2023
A34: Intervento Piano precedente | B34: DTCS | C34: 416-P | D34: Intervento | E34: Stazione 380 kV Tuscania | F34: Stazione 380 kV Tuscania | I34: 2024
A35: Intervento Piano precedente | B35: DTCS | C35: 416-P | D35: Opera Principale | E35: Stazione 380 kV Tuscania | F35: SE 380/150 kV Tuscania e raccordi 380 kV. | G35: 2010-04-19 | H35: 2011-05-01 | I35: 2014-01-01
A36: Intervento Piano precedente | B36: DTCS | C36: 416-P | D36: Opera Principale | E36: Stazione 380 kV Tuscania | F36: Raccordo 150 kV in doppia terna della linea Canino - Arlena | G36: 30/07/2013 (EL-310) | H36: 2023 | I36: 2024
A37: Intervento Piano precedente | B37: DTCS | C37: 405-P | D37: Intervento | E37: Elettrodotto 150 kV Portocannone – S. Salvo Z.I. e nuovo smistamento | F37: Elettrodotto 150 kV Portocannone – S. Salvo Z.I. e nuovo smistamento | I37: 2024
A38: Intervento Piano precedente | B38: DTCS | C38: 405-P | D38: Opera Principale | E38: Elettrodotto 150 kV Portocannone – S. Salvo Z.I. e nuovo smistamento | F38: Nuova SE S. Salvo smistamento e raccordi | G38: 16/11/2011 (EL-252) | H38: 2016-11-01 | I38: 2018-07-30
A39: Intervento Piano precedente | B39: DTCS | C39: 405-P | D39: Opera Principale | E39: Elettrodotto 150 kV Portocannone – S. Salvo Z.I. e nuovo smistamento | F39: Ricostruzione direttrice tra le CP di Portocannone e S. Salvo Z.I. | G39: 16/11/2011 (EL-252) | H39: 2016 | I39: 2018-07-09
A40: Intervento Piano precedente | B40: DTCS | C40: 405-P | D40: Opera Principale | E40: Elettrodotto 150 kV Portocannone – S. Salvo Z.I. e nuovo smistamento | F40: Variante all'el. 150 kV "Termoli Sinarca - Termoli Z.I.” | G40: 20/09/2018 (EL-402) | H40: 2023 | I40: 2024
A41: Intervento Piano precedente | B41: DTCS | C41: 409-P | D41: Intervento | E41: Potenziamento della rete AT tra Terni e Roma | F41: Potenziamento della rete AT tra Terni e Roma | H41: 2019 | I41: 2035
A42: Intervento Piano precedente | B42: DTCS | C42: 409-P | D42: Opera Principale | E42: Potenziamento della rete AT tra Terni e Roma | F42: SE 150/132 e raccordi tra Villavalle e Orte | G42: 2023 | H42: 2033 | I42: 2035
A43: Intervento Piano precedente | B43: DTCS | C43: 409-P | D43: Opera Principale | E43: Potenziamento della rete AT tra Terni e Roma | F43: Risoluzione der. rigide area S. Lucia di Mentana | G43: 28/11/2018 (EL-408) | H43: 2023 | I43: 2025
A44: Intervento Piano precedente | B44: DTCS | C44: 409-P | D44: Opera Principale | E44: Potenziamento della rete AT tra Terni e Roma | F44: El. 150 kV Fiano - Nazzano | G44: 11/07/2012 (EL-286) | H44: 2021 | I44: 2023
A45: Intervento Piano precedente | B45: DTCS | C45: 410-P | D45: Intervento | E45: Interventi sulla rete AT per la raccolta della produzione rinnovabile tra Abruzzo e Molise | F45: Interventi sulla rete AT per la raccolta della produzione rinnovabile tra Abruzzo e Molise | G45: 2022 | H45: 2025 | I45: 2033
A46: Intervento Piano precedente | B46: DTCS | C46: 410-P | D46: Opera Principale | E46: Interventi sulla rete AT per la raccolta della produzione rinnovabile tra Abruzzo e Molise | F46: Rimozione limitazioni el. 150 kV “Alanno – Villa S. Maria” e “Scafa – Guardiagrele – Casoli” | G46: 2022 | H46: 2025 | I46: 2028
A47: Intervento Piano precedente | B47: DTCS | C47: 410-P | D47: Opera Principale | E47: Interventi sulla rete AT per la raccolta della produzione rinnovabile tra Abruzzo e Molise | F47: Rimozione limitazioni el. 150 kV “Villa S. Maria – Castel del Giudice derivazione Agnone” | G47: 2031 | H47: 2032 | I47: 2033
A48: Intervento Piano precedente | B48: DTCS | C48: 411-P | D48: Intervento | E48: Interventi sulla rete AT per la raccolta della produzione rinnovabile in Abruzzo e Lazio | F48: Interventi sulla rete AT per la raccolta della produzione rinnovabile in Abruzzo e Lazio | H48: 2033 | I48: 2035
A49: Intervento Piano precedente | B49: DTCS | C49: 411-P | D49: Opera Principale | E49: Interventi sulla rete AT per la raccolta della produzione rinnovabile in Abruzzo e Lazio | F49: El.150kV “Pettino-Torrione” | G49: 12/11/2018 (EL-407) | H49: 2022 | I49: 2023
A50: Intervento Piano precedente | B50: DTCS | C50: 411-P | D50: Opera Principale | E50: Interventi sulla rete AT per la raccolta della produzione rinnovabile in Abruzzo e Lazio | F50: El.150kV “Torrione-Bazzano” | G50: 2021-12-01 | H50: 2030 | I50: 2035
A51: Intervento Piano precedente | B51: DTCS | C51: 411-P | D51: Opera Principale | E51: Interventi sulla rete AT per la raccolta della produzione rinnovabile in Abruzzo e Lazio | F51: Rimozione limitazioni sugli el. 150 kV “Popoli – S.Pio – Bazzano” | G51: 2018 | H51: 2020 | I51: 2024
A52: Intervento Piano precedente | B52: DTCS | C52: 411-P | D52: Opera Principale | E52: Interventi sulla rete AT per la raccolta della produzione rinnovabile in Abruzzo e Lazio | F52: Risoluz. Der rigida “Collarmele – Sulmona NI – der. S.Angelo” | G52: 2025 | H52: 2030 | I52: 2035
A53: Intervento Piano precedente | B53: DTCS | C53: 412-P | D53: Intervento | E53: Interventi sulla rete AT per la raccolta della produzione rinnovabile tra Campania e Molise | F53: Interventi sulla rete AT per la raccolta della produzione rinnovabile tra Campania e Molise | G53: 2021 | H53: 2026 | I53: 2028
A54: Intervento Piano precedente | B54: DTCS | C54: 412-P | D54: Opera Principale | E54: Interventi sulla rete AT per la raccolta della produzione rinnovabile tra Campania e Molise | F54: Rimozione limitazioni el. 150 kV “Campobasso – Cercemaggiore - Castelpagano” | G54: 2021 | H54: 2022 | I54: 2024
A55: Intervento Piano precedente | B55: DTCS | C55: 437-P (ex 407-S) | D55: Intervento | E55: Elettrodotto 150 kV “Villavalle – Leonessa” | F55: Richiusura CP Leonessa | G55: 2024 | H55: 2027 | I55: 2035
A56: Intervento Piano precedente | B56: DTCS | C56: 437-P (ex 407-S) | D56: Opera Principale | E56: Elettrodotto 150 kV “Villavalle – Leonessa” | F56: Nuova SE 220/150 kV e raccordi alla CP Leonessa | G56: 2024 | H56: 2027 | I56: 2035
A57: Intervento Piano precedente | B57: DTCS | C57: 437-P (ex 407-S) | D57: Opera Principale | E57: Elettrodotto 150 kV “Villavalle – Leonessa” | F57: Nuovo raccordo 220 kV in derivazione all'el. Villavalle – S.Giacomo der. Provvidenza | G57: 2024 | H57: 2027 | I57: 2035
A58: Intervento Piano precedente | B58: DTCS | C58: 434-P | D58: Intervento | E58: Nuovo collegamento AT “SSE Carrito FS – CP Collarmele” | F58: Nuovo collegamento AT “SSE Carrito FS – CP Collarmele” | G58: 2023 | H58: 2025 | I58: 2035
A59: Intervento Piano precedente | B59: DTCS | C59: 434-P | D59: Opera Principale | E59: Nuovo collegamento AT “SSE Carrito FS – CP Collarmele” | F59: El. 60 kV “Carrito FS – CP Collarmele” | G59: 2023 | H59: 2025 | I59: 2035
A60: Intervento Piano precedente | B60: DTCS | C60: 434-P | D60: Opera Principale | E60: Nuovo collegamento AT “SSE Carrito FS – CP Collarmele” | F60: TR 150/60 kV | G60: 2023 | H60: 2025 | I60: 2035
A61: Intervento Piano precedente | B61: DTCS | C61: 435-P | D61: Intervento | E61: Nuovo collegamento AT “SSE Carsoli FS - CP Carsoli” | F61: Nuovo collegamento AT “SSE Carsoli FS - CP Carsoli” | G61: 2023 | H61: 2025 | I61: 2035
A62: Intervento Piano precedente | B62: DTCS | C62: 435-P | D62: Opera Principale | E62: Nuovo collegamento AT “SSE Carsoli FS - CP Carsoli” | F62: El. 60 kV “Carsoli FS – CP Carsoli” | G62: 2023 | H62: 2025 | I62: 2035
A63: Intervento Piano precedente | B63: DTCS | C63: 435-P | D63: Opera Principale | E63: Nuovo collegamento AT “SSE Carsoli FS - CP Carsoli” | F63: TR 150/60 kV | G63: 2023 | H63: 2025 | I63: 2035
A64: Intervento Piano precedente | B64: DTCS | C64: 435-P | D64: Opera Principale | E64: Nuovo collegamento AT “SSE Carsoli FS - CP Carsoli” | F64: Adeguamento SSE Carsoli FS | G64: 2023 | H64: 2025 | I64: 2035
A65: Intervento Piano precedente | B65: DTCS | C65: 433-P | D65: Intervento | E65: Rimozione derivazione rigida S. Angelo | F65: Rimozione derivazione rigida S. Angelo | G65: 2022 | H65: 2027 | I65: 2035
A66: Intervento Piano precedente | B66: DTCS | C66: 433-P | D66: Opera Principale | E66: Rimozione derivazione rigida S. Angelo | F66: Nuovo raccordo a 150 kV | G66: 2022 | H66: 2027 | I66: 2035
A67: Intervento Piano precedente | B67: DTCS | C67: 403-P | D67: Intervento | E67: Rete AAT/AT medio Adriatico | F67: Rete AAT/AT medio Adriatico | I67: 2034
A68: Intervento Piano precedente | B68: DTCS | C68: 403-P | D68: Opera Principale | E68: Rete AAT/AT medio Adriatico | F68: Riasetto tra la SE di Candia e la CP di Fossombrone | G68: 18/04/2019 (EL-421) | H68: 2032 | I68: 2034
A69: Intervento Piano precedente | B69: DTCS | C69: 403-P | D69: Opera Principale | E69: Rete AAT/AT medio Adriatico | F69: Nuovo el. 132 kV “Acquara – Porta Potenza Picena” | G69: 2019 | H69: 2025 | I69: 2027
A70: Intervento Piano precedente | B70: DTCS | C70: 403-P | D70: Opera Principale | E70: Rete AAT/AT medio Adriatico | F70: Risoluzione der. Rigida CP Osimo | G70: 2019 | H70: 2022 | I70: 2023
A71: Intervento Piano precedente | B71: DTCS | C71: 403-P | D71: Opera Principale | E71: Rete AAT/AT medio Adriatico | F71: Rimozione limitazioni el. 132 kV “Visso – Belforte” | G71: 2014 | H71: 2015 | I71: 2016
A72: Intervento Piano precedente | B72: DTCS | C72: 408-P | D72: Intervento | E72: Sviluppi di rete nell’area di Cassino | F72: Sviluppi di rete nell’area di Cassino | I72: 2035
A73: Intervento Piano precedente | B73: DTCS | C73: 408-P | D73: Opera Principale | E73: Sviluppi di rete nell’area di Cassino | F73: Nuova SE 150 kV Pontecorvo e raccordi | G73: 26/02/2019 (EL-418) | H73: 2024 | I73: 2027
A74: Intervento Piano precedente | B74: DTCS | C74: 408-P | D74: Opera Principale | E74: Sviluppi di rete nell’area di Cassino | F74: Rimozione limitazioni el. 150 kV “Ceprano - Cassino – Montelungo” | G74: 2013 | H74: 2014 | I74: 2015-12-01
A75: Intervento Piano precedente | B75: DTCS | C75: 408-P | D75: Opera Principale | E75: Sviluppi di rete nell’area di Cassino | F75: Nuovo raccordo 150 kV alla SE S. Vittore | G75: 2025 | H75: 2033 | I75: 2035
A76: Intervento Piano precedente | B76: DTCS | C76: 408-P | D76: Opera Principale | E76: Sviluppi di rete nell’area di Cassino | F76: Nuova SE 150 kV Wepa Lucca e raccordi | G76: 2025 | H76: 2033 | I76: 2035
A77: Intervento Piano precedente | B77: DTCS | C77: 408-P | D77: Opera Principale | E77: Sviluppi di rete nell’area di Cassino | F77: El. 150 kV “Cassino CP – Nuova SE 150 kV Wepa Lucca” | G77: 2025 | H77: 2033 | I77: 2035
A78: Intervento Piano precedente | B78: DTCS | C78: 408-P | D78: Opera Principale | E78: Sviluppi di rete nell’area di Cassino | F78: El. 150 kV “Nuova SE Wepa Lucca – Ut. Wepa Lucca” | G78: 2025 | H78: 2033 | I78: 2035
A79: Intervento Piano precedente | B79: DTCS | C79: 418-P | D79: Intervento | E79: Riassetto rete AT Roma Sud – Latina - Garigliano | F79: Riassetto rete AT Roma Sud – Latina - Garigliano | I79: 2030
A80: Intervento Piano precedente | B80: DTCS | C80: 418-P | D80: Opera Principale | E80: Riassetto rete AT Roma Sud – Latina - Garigliano | F80: Ampliamento SE 380 kV Aprilia e nuovi collegamenti in cavo 150 kV alla SE Aprilia 150 kV | G80: 02/09/2014 (EL-337) | H80: 2020 | I80: 2022
A81: Intervento Piano precedente | B81: DTCS | C81: 418-P | D81: Opera Principale | E81: Riassetto rete AT Roma Sud – Latina - Garigliano | F81: Nuovo raccordo 150 kV Fondi CP – Fondi RT | G81: 2021 | H81: 2024 | I81: 2027
A82: Intervento Piano precedente | B82: DTCS | C82: 418-P | D82: Opera Principale | E82: Riassetto rete AT Roma Sud – Latina - Garigliano | F82: Soluz. der. Rigida el. 150 kV “Cisterna – Latina Nuc. Der. Latina TLF | G82: 2022 | H82: 2027 | I82: 2030
A83: Intervento Piano precedente | B83: DTCS | C83: 418-P | D83: Opera Principale | E83: Riassetto rete AT Roma Sud – Latina - Garigliano | F83: Nuovo el. 150 kV SE Aprilia – CP Aprilia | G83: 2024 | H83: 2028 | I83: 2031
A84: Intervento Piano precedente | B84: DTCS | C84: 418-P | D84: Altre Opere | E84: Riassetto rete AT Roma Sud – Latina - Garigliano | F84: Rimozione limitazioni CP Pontinia | G84: - | H84: - | I84: 2021
A85: Intervento Piano precedente | B85: DTCS | C85: 419-P | D85: Intervento | E85: Riassetto rete Roma Ovest - Roma Sud Ovest | F85: Riassetto rete Roma Ovest - Roma Sud Ovest | H85: 2023 | I85: 2035
A86: Intervento Piano precedente | B86: DTCS | C86: 419-P | D86: Opera Principale | E86: Riassetto rete Roma Ovest - Roma Sud Ovest | F86: El. 150 kV esistente “CP Fiumicino – CP Porto” | G86: 2021 | H86: 2024 | I86: 2035
A87: Intervento Piano precedente | B87: DTCS | C87: 419-P | D87: Opera Principale | E87: Riassetto rete Roma Ovest - Roma Sud Ovest | F87: El. 150 kV “Roma Ovest – Raffinerie Smistamento”, “Raffinerie Smistamento – Interporto”, “Interporto – Porto” e “Porto – Ponte Galeria” | G87: 2024 | H87: 2028 | I87: 2035
A88: Intervento Piano precedente | B88: DTCS | C88: 419-P | D88: Opera Principale | E88: Riassetto rete Roma Ovest - Roma Sud Ovest | F88: Nuovo el. 150 kV “Porto - Fiumicino” | G88: 13.04.2015 (EL-346) | H88: 2023 | I88: 2025
A89: Intervento Piano precedente | B89: DTCS | C89: 421-P | D89: Intervento | E89: Razionalizzazione rete AT in Umbria | F89: Razionalizzazione rete AT in Umbria | H89: 2023 | I89: 2035
A90: Intervento Piano precedente | B90: DTCS | C90: 421-P | D90: Opera Principale | E90: Razionalizzazione rete AT in Umbria | F90: El. 132 kV “Cappuccini – Camerino” e variante el. “Cappuccini – Preci” | G90: 27/11/2012 (EL-306) | H90: 2033 | I90: 2035
A91: Intervento Piano precedente | B91: DTCS | C91: 421-P | D91: Opera Principale | E91: Razionalizzazione rete AT in Umbria | F91: El. 132 kV “Villavalle – Spoleto” e nuova SE 132 e raccordi | G91: 11/02/2015 (EL-344) | H91: 2027 | I91: 2030
A92: Intervento Piano precedente | B92: DTCS | C92: 421-P | D92: Opera Principale | E92: Razionalizzazione rete AT in Umbria | F92: El. 132 kV “Magione – Ponte Rio” | G92: 2025 | H92: 2033 | I92: 2035
A93: Intervento Piano precedente | B93: DTCS | C93: 421-P | D93: Opera Principale | E93: Razionalizzazione rete AT in Umbria | F93: Passaggio di tensione di esercizio da 120 kV a 132 kV. | G93: 06/06/2016 (EL-357) | H93: 2023 | I93: 2024
A94: Intervento Piano precedente | B94: DTCS | C94: 428-P | D94: Intervento | E94: Riassetto rete AT area Sud di Roma | F94: Riassetto rete AT area Sud di Roma | I94: 2034
A95: Intervento Piano precedente | B95: DTCS | C95: 428-P | D95: Opera Principale | E95: Riassetto rete AT area Sud di Roma | F95: Rimozione limitazioni direttrice 150 kV “SE Valmontone - CP Cinecittà” | G95: 2017 | H95: 2019 | I95: 2024
A96: Intervento Piano precedente | B96: DTCS | C96: 428-P | D96: Opera Principale | E96: Riassetto rete AT area Sud di Roma | F96: Nuovo el. 150 kV tra SE Roma Sud e la direttrice “SE Valmontone - CP Cinecittà” | G96: 12/11/2021 (EL-492) | H96: 2024 | I96: 2028
A97: Intervento Piano precedente | B97: DTCS | C97: 428-P | D97: Opera Principale | E97: Riassetto rete AT area Sud di Roma | F97: Nuovo el. 150 kV per rimozione der. rigida Ciampino | G97: 12/11/2021 (EL-492) | H97: 2032 | I97: 2034
A98: Intervento Piano precedente | B98: DTCS | C98: 407-P | D98: Intervento | E98: Sviluppi di rete sulla direttrice Villavalle – Popoli | F98: Sviluppi di rete sulla direttrice Villavalle – Popoli | G98: 2021 | H98: 2024 | I98: 2035
A99: Intervento Piano precedente | B99: DTCS | C99: 407-P | D99: Opera Principale | E99: Sviluppi di rete sulla direttrice Villavalle – Popoli | F99: Adeguamento SE 150 kV Pettino | G99: 2021 | H99: 2024 | I99: 2035
A100: Intervento Piano precedente | B100: DTCS | C100: 438-P | D100: Intervento | E100: Risoluzione derivazione rigida Trelleborg | F100: Risoluzione derivazione rigida Trelleborg | G100: 2026 | H100: 2033 | I100: 2035
A101: Intervento Piano precedente | B101: DTCS | C101: 438-P | D101: Opera Principale | E101: Risoluzione derivazione rigida Trelleborg | F101: El. 150 kV “Pirelli All – Trelleborg” | G101: 2026 | H101: 2033 | I101: 2035
A102: Intervento Piano precedente | B102: DTCS | C102: 438-P | D102: Opera Principale | E102: SE smistamento in e-e sulla “Acquoria – Arci” 150 kV | F102: SE smistamento in e-e sulla “Acquoria – Arci” 150 kV | G102: 2026 | H102: 2033 | I102: 2035
A103: Intervento Piano precedente | B103: DTCS | C103: 441-P | D103: Intervento | E103: Razionalizzazione rete AT Costa Marchigiana | F103: Razionalizzazione rete AT Costa Marchigiana | G103: 2025 | H103: 2033 | I103: 2035
A104: Intervento Piano precedente | B104: DTCS | C104: 441-P | D104: Opera Principale | E104: Razionalizzazione rete AT Costa Marchigiana | F104: Nuovi raccordi di Loreto RT in e-e all'el. 132 kV "CP Sirolo-CP Loreto" | G104: 2025 | H104: 2033 | I104: 2035
A105: Intervento Piano precedente | B105: DTCS | C105: 441-P | D105: Opera Principale | E105: Razionalizzazione rete AT Costa Marchigiana | F105: Nuovi raccordi di "P.S. Elpidio-CP Colmarino" | G105: 2025 | H105: 2033 | I105: 2035
A106: Intervento Piano precedente | B106: DTCS | C106: 441-P | D106: Altre Opere | E106: Razionalizzazione rete AT Costa Marchigiana | F106: Razionalizzazione associata | G106: 2025 | H106: 2033 | I106: 2035
A107: Intervento Piano precedente | B107: DTCS | C107: 442-P | D107: Intervento | E107: Razionalizzazione rete AT S. Benedetto del Tronto | F107: Razionalizzazione rete AT S. Benedetto del Tronto | G107: 2023 | H107: 2033 | I107: 2035
A108: Intervento Piano precedente | B108: DTCS | C108: 442-P | D108: Opera Principale | E108: Razionalizzazione rete AT S. Benedetto del Tronto | F108: Nuova SE di smistamento 132 kV in doppia sbarra e raccordi | G108: 2023 | H108: 2033 | I108: 2035
A109: Intervento Piano precedente | B109: DTCS | C109: 442-P | D109: Opera Principale | E109: Razionalizzazione rete AT S. Benedetto del Tronto | F109: Nuovi raccordi della Nuova SE 132 kV in e-e all’el.132kV “M. Prandone RT. - Roseto RT” | G109: 2023 | H109: 2033 | I109: 2035
A110: Intervento Piano precedente | B110: DTCS | C110: 442-P | D110: Opera Principale | E110: Razionalizzazione rete AT S. Benedetto del Tronto | F110: Bypass SE Porto S.Giorgio RT e SE M.Prandone RT | G110: 2023 | H110: 2033 | I110: 2035
A111: Intervento Piano precedente | B111: DTCS | C111: 442-P | D111: Altre Opere | E111: Razionalizzazione rete AT S. Benedetto del Tronto | F111: Razionalizzazione associata | G111: 2023 | H111: 2033 | I111: 2035
A112: Intervento Piano precedente | B112: DTCS | C112: 443-P | D112: Intervento | E112: Razionalizzazione rete AT Appennino Umbro-Marchigiano | F112: Razionalizzazione rete AT Appennino Umbro-Marchigiano | G112: 2026 | H112: 2033 | I112: 2035
A113: Intervento Piano precedente | B113: DTCS | C113: 443-P | D113: Opera Principale | E113: Razionalizzazione rete AT Appennino Umbro-Marchigiano | F113: Nuovi raccordi di Genga RT in e-e all’el. 132 Kv “CP Fabriano -CP S.Elena” | G113: 2026 | H113: 2033 | I113: 2035
A114: Intervento Piano precedente | B114: DTCS | C114: 443-P | D114: Opera Principale | E114: Razionalizzazione rete AT Appennino Umbro-Marchigiano | F114: Nuovo elettrodotto 132 kV “CP Iesi–Iesi RT” | G114: 2026 | H114: 2033 | I114: 2035
A115: Intervento Piano precedente | B115: DTCS | C115: 443-P | D115: Altre Opere | E115: Razionalizzazione rete AT Appennino Umbro-Marchigiano | F115: Razionalizzazione associata | G115: 2026 | H115: 2033 | I115: 2035
A116: Intervento Piano precedente | B116: DTCS | C116: 444-P | D116: Intervento | E116: Stazione 220/132 kV Capannelle | F116: Stazione 220/132 kV Capannelle | G116: 2024 | H116: 2033 | I116: 2035
A117: Intervento Piano precedente | B117: DTCS | C117: 444-P | D117: Opera Principale | E117: Stazione 220/132 kV Capannelle | F117: Nuova SE 220/132 kV Capannelle e raccordi | G117: 2024 | H117: 2033 | I117: 2035
A118: Intervento Piano precedente | B118: DTCS | C118: 444-P | D118: Opera Principale | E118: Stazione 220/132 kV Capannelle | F118: El. 132 kV “Capannelle -Cagnano” | G118: 2024 | H118: 2033 | I118: 2035
A119: Intervento Piano precedente | B119: DTCS | C119: 444-P | D119: Altre Opere | E119: Stazione 220/132 kV Capannelle | F119: Razionalizzazione rete AT | G119: 2024 | H119: 2033 | I119: 2035
A120: Intervento Piano precedente | B120: DTCS | C120: 501-P | D120: Intervento | E120: Elettrodotto 380 kV Sorgente-Rizziconi | F120: Elettrodotto 380 kV Sorgente-Rizziconi | I120: 2027
A121: Intervento Piano precedente | B121: DTCS | C121: 501-P | D121: Altre Opere | E121: Elettrodotto 380 kV Sorgente-Rizziconi | F121: Riassetto rete AT Messina: “Contesse - Contesse FS”, “S. Cosimo - Messina R.”, “Villafranca FS/Villafranca CP - Pace del Mela” e dismissioni associate | G121: 13/05/2016 (RS-004) | H121: 2024 | I121: 2027
A122: Intervento Piano precedente | B122: DTCS | C122: 501-P | D122: Altre Opere | E122: Elettrodotto 380 kV Sorgente-Rizziconi | F122: Raccordo 150 kV “S. Procopio – Palmi Sud” | G122: 17/05/2017 (EL-369) | H122: 2024 | I122: 2026
A123: Intervento Piano precedente | B123: DTCS | C123: 501-P | D123: Altre Opere | E123: Elettrodotto 380 kV Sorgente-Rizziconi | F123: Riassetto rete 150 kV Reggio Calabria | G123: 2023 | H123: 2025 | I123: 2027
A124: Intervento Piano precedente | B124: DTCS | C124: 506-P | D124: Intervento | E124: Elettrodotto 380 kV Montecorvino – Avellino Nord – Benevento II | F124: Elettrodotto 380 kV Montecorvino – Avellino Nord – Benevento II | I124: 2028/2029
A125: Intervento Piano precedente | B125: DTCS | C125: 506-P | D125: Opera Principale | E125: Elettrodotto 380 kV Montecorvino – Avellino Nord – Benevento II | F125: Nuovo el. 380 kV Montecorvino – Avellino N. 380 kV | G125: 09/06/2010 (EL-209) | H125: 2026 | I125: 2028/2029
A126: Intervento Piano precedente | B126: DTCS | C126: 506-P | D126: Opera Principale | E126: Elettrodotto 380 kV Montecorvino – Avellino Nord – Benevento II | F126: Nuovo el. 380 kV Avellino N.– Benevento III | G126: 2021 | H126: 2026 | I126: 2028/2029
A127: Intervento Piano precedente | B127: DTCS | C127: 506-P | D127: Opera Principale | E127: Elettrodotto 380 kV Montecorvino – Avellino Nord – Benevento II | F127: Rimozione limitazioni el. 380 kV “Bisaccia - Avellino – S.Sofia” | G127: 2022 | H127: 2023 | I127: 2024
A128: Intervento Piano precedente | B128: DTCS | C128: 506-P | D128: Opera Principale | E128: Elettrodotto 380 kV Montecorvino – Avellino Nord – Benevento II | F128: Rimozione limitazioni el. 380 kV “Montecorvino – S.Sofia” | G128: 2022 | H128: 2023 | I128: 2025
A129: Intervento Piano precedente | B129: DTCS | C129: 506-P | D129: Opera Principale | E129: Elettrodotto 380 kV Montecorvino – Avellino Nord – Benevento II | F129: SE 380/150 kV di Avellino N. e raccordi | G129: 26/06/2008 (EL-129) | H129: 12/2010 | I129: 12/2014
A130: Intervento Piano precedente | B130: DTCS | C130: 506-P | D130: Altre Opere | E130: Elettrodotto 380 kV Montecorvino – Avellino Nord – Benevento II | F130: Razionalizzazione rete AT tra le SE Montecorvino e Benevento II. | G130: 2024/2025 | H130: 2028 | I130: 2035
A131: Intervento Piano precedente | B131: DTCS | C131: 505-P | D131: Intervento | E131: Stazioni 380/150 kV e relativi raccordi alla rete AT per la raccolta di produzione da fonte rinnovabile: rinforzi rete AAT e AT nell’area tra Foggia e Benevento | F131: Stazioni 380/150 kV e relativi raccordi alla rete AT per la raccolta di produzione da fonte rinnovabile: rinforzi rete AAT e AT nell’area tra Foggia e Benevento | I131: 2030
A132: Intervento Piano precedente | B132: DTCS | C132: 505-P | D132: Opera Principale | E132: Stazioni 380/150 kV e relativi raccordi alla rete AT per la raccolta di produzione da fonte rinnovabile: rinforzi rete AAT e AT nell’area tra Foggia e Benevento | F132: Nuova SE 380/150 kV Bisaccia in e-e alla linea 380 kV “Matera – S. Sofia”. | G132: 2006-07-24 | H132: 2009 | I132: 2010-12-01
A133: Intervento Piano precedente | B133: DTCS | C133: 505-P | D133: Opera Principale | E133: Stazioni 380/150 kV e relativi raccordi alla rete AT per la raccolta di produzione da fonte rinnovabile: rinforzi rete AAT e AT nell’area tra Foggia e Benevento | F133: Nuova SE 380/150 kV Deliceto in e-e alla linea a 380 kV “Foggia – Candela”. | G133: 2005-02-19 | H133: 2009 | I133: 2011-02-01
A134: Intervento Piano precedente | B134: DTCS | C134: 505-P | D134: Opera Principale | E134: Stazioni 380/150 kV e relativi raccordi alla rete AT per la raccolta di produzione da fonte rinnovabile: rinforzi rete AAT e AT nell’area tra Foggia e Benevento | F134: Nuova SE 380/150 kV Troia in e-e alla linea a 380 kV “Foggia – Benevento II”. | G134: 2007 | H134: 2010 | I134: 2011-05-01
A135: Intervento Piano precedente | B135: DTCS | C135: 505-P | D135: Opera Principale | E135: Stazioni 380/150 kV e relativi raccordi alla rete AT per la raccolta di produzione da fonte rinnovabile: rinforzi rete AAT e AT nell’area tra Foggia e Benevento | F135: Nuovo el. 380 kV “Deliceto - Bisaccia” | G135: 18/01/2012 (EL-267) | H135: 2020 | I135: 2022
A136: Intervento Piano precedente | B136: DTCS | C136: 505-P | D136: Opera Principale | E136: Stazioni 380/150 kV e relativi raccordi alla rete AT per la raccolta di produzione da fonte rinnovabile: rinforzi rete AAT e AT nell’area tra Foggia e Benevento | F136: PST SE Bisaccia | G136: 2019 | H136: 2019-03-01 | I136: 2023
A137: Intervento Piano precedente | B137: DTCS | C137: 505-P | D137: Opera Principale | E137: Stazioni 380/150 kV e relativi raccordi alla rete AT per la raccolta di produzione da fonte rinnovabile: rinforzi rete AAT e AT nell’area tra Foggia e Benevento | F137: ATR 380/150 kV SE Bisaccia | G137: 2019 | H137: 2020 | I137: 2023
A138: Intervento Piano precedente | B138: DTCS | C138: 505-P | D138: Opera Principale | E138: Stazioni 380/150 kV e relativi raccordi alla rete AT per la raccolta di produzione da fonte rinnovabile: rinforzi rete AAT e AT nell’area tra Foggia e Benevento | F138: Nuovo el. 150 kV “SE Troia-Celle San Vito | G138: 03/12/2010 (EL-224) | H138: 2025 | I138: 2028
A139: Intervento Piano precedente | B139: DTCS | C139: 505-P | D139: Opera Principale | E139: Stazioni 380/150 kV e relativi raccordi alla rete AT per la raccolta di produzione da fonte rinnovabile: rinforzi rete AAT e AT nell’area tra Foggia e Benevento | F139: Nuovo el. 150 kV “Troia – Alberona” | G139: 07/06/2019 (EL-426) | H139: 2026 | I139: 2030
A140: Intervento Piano precedente | B140: DTCS | C140: 505-P | D140: Opera Principale | E140: Stazioni 380/150 kV e relativi raccordi alla rete AT per la raccolta di produzione da fonte rinnovabile: rinforzi rete AAT e AT nell’area tra Foggia e Benevento | F140: Nuovo el. 150 kV “SE Troia - SE Troia/Eos1 – Troia CP” | G140: 09/10/2012 (EL-291) | H140: 2025 | I140: 2028
A141: Intervento Piano precedente | B141: DTCS | C141: 509-P | D141: Intervento | E141: Riassetto rete nord Calabria | F141: Riassetto rete nord Calabria | I141: 2030
A142: Intervento Piano precedente | B142: DTCS | C142: 509-P | D142: Opera Principale | E142: Riassetto rete nord Calabria | F142: Nuova SE 380 kV di Aliano e relativi raccordi | G142: 2007 | H142: 2011 | I142: 2012-09-01
A143: Intervento Piano precedente | B143: DTCS | C143: 509-P | D143: Opera Principale | E143: Riassetto rete nord Calabria | F143: Elettrodotto 380 kV Feroleto-Maida | G143: 23/04/2009 (EL-156) | H143: 2012 | I143: 2013-11-01
A144: Intervento Piano precedente | B144: DTCS | C144: 509-P | D144: Opera Principale | E144: Riassetto rete nord Calabria | F144: Declassamento a 150 kV della direttrice “Rotonda – Pisticci – Taranto N. – Villa Castelli – Brindisi Pignicelle” | G144: 2012 | H144: 2013 | I144: 2014-07-01
A145: Intervento Piano precedente | B145: DTCS | C145: 509-P | D145: Opera Principale | E145: Riassetto rete nord Calabria | F145: Nuovo el. In cavo 150 kV “Laino – Rotonda” | G145: 08/09/2011 (EL-256) | H145: 2014 | I145: 2015-08-07
A146: Intervento Piano precedente | B146: DTCS | C146: 509-P | D146: Opera Principale | E146: Riassetto rete nord Calabria | F146: Adeguamento 150 kV SE Rotonda | G146: 2012 | H146: 2013-07-01 | I146: 2021
A147: Intervento Piano precedente | B147: DTCS | C147: 509-P | D147: Opera Principale | E147: Riassetto rete nord Calabria | F147: Ottemperanza prescrizione 2 DEC VIA n. 3062 del 19/06/1998 relativo a elettrodotto in DT a 380 kV Laino - Rizziconi | G147: 13/06/2017 (EL-379) | H147: 2021 | I147: 2023
A148: Intervento Piano precedente | B148: DTCS | C148: 509-P | D148: Opera Principale | E148: Riassetto rete nord Calabria | F148: Revisione prescrizione 1 del DEC VIA n. 3062 del 19/06/1998 relativo a elettrodotto in DT a 380 kV Laino - Rizziconi | G148: 2009 23/02/2017 | H148: 2024 | I148: 2030
A149: Intervento Piano precedente | B149: DTCS | C149: 509-P | D149: Opera Principale | E149: Riassetto rete nord Calabria | F149: Razionalizzazione area di Castrovillari | G149: 15/09/2011 (EL-260) | H149: 2027 | I149: 2030
A150: Intervento Piano precedente | B150: DTCS | C150: 509-P | D150: Opera Principale | E150: Riassetto rete nord Calabria | F150: Variante in cavo 150 kV “CP Feroleto – Soveria Mannelli”. | G150: 02/09/2014 (EL-338) | H150: 2024 | I150: 2026
A151: Intervento Piano precedente | B151: DTCS | C151: 509-P | D151: Opera Principale | E151: Riassetto rete nord Calabria | F151: Elettrodotto 380 kV “Laino – Altomonte” | G151: 19/01/2010 (EL-190) | H151: 2026 | I151: 2029
A152: Intervento Piano precedente | B152: DTCS | C152: 509-P | D152: Opera Principale | E152: Riassetto rete nord Calabria | F152: Riassetto 150 kV area Pisticci | G152: 2021 | H152: 2022 | I152: 2022
A153: Intervento Piano precedente | B153: DTCS | C153: 509-P | D153: Altre Opere | E153: Riassetto rete nord Calabria | F153: Razionalizzazione delle esistenti reti AT ricadenti nell’area nel territorio del Parco del Pollino | G153: 13/06/2017 (EL-379) 23/02/2017 | H153: 2020 | I153: 2027
A154: Intervento Piano precedente | B154: DTCS | C154: 537-P | D154: Intervento | E154: Elettrodotto 220 kV Arenella – Colli Aminei | F154: Elettrodotto 220 kV Arenella – Colli Aminei | H154: 2026 | I154: 2030
A155: Intervento Piano precedente | B155: DTCS | C155: 537-P | D155: Opera Principale | E155: Elettrodotto 220 kV Arenella – Colli Aminei | F155: Potenziamento el- 220 kV Arenella – Colli A. | G155: 2022 EL-519 | H155: 2026 | I155: 2030
A156: Intervento Piano precedente | B156: DTCS | C156: 514-P | D156: Intervento | E156: Riassetto rete a 220 kV città di Napoli | F156: Riassetto rete a 220 kV città di Napoli | I156: 2028
A157: Intervento Piano precedente | B157: DTCS | C157: 514-P | D157: Opera Principale | E157: Riassetto rete a 220 kV città di Napoli | F157: Nuovo el. 220 kV “Napoli Dir. – Castelluccia” | G157: 12/05/2010 (EL-197) | H157: 2019-04-01 | I157: 2021
A158: Intervento Piano precedente | B158: DTCS | C158: 514-P | D158: Opera Principale | E158: Riassetto rete a 220 kV città di Napoli | F158: Nuovo el. 220 kV “Napoli Dir. - Napoli Levante” | G158: 12/05/2010 (EL-197) | H158: 2017 | I158: 2018-12-13
A159: Intervento Piano precedente | B159: DTCS | C159: 514-P | D159: Opera Principale | E159: Riassetto rete a 220 kV città di Napoli | F159: Raccordi 220 kV CP Fuorigrotta | G159: 23/11/2012 (EL-288) | H159: 2024 | I159: 2025
A160: Intervento Piano precedente | B160: DTCS | C160: 514-P | D160: Opera Principale | E160: Riassetto rete a 220 kV città di Napoli | F160: El. 220 kV “Castelluccia – S. Sebastiano” | G160: 30/03/2017 (EL-371) | H160: 2019-07-01 | I160: 2021
A161: Intervento Piano precedente | B161: DTCS | C161: 514-P | D161: Opera Principale | E161: Riassetto rete a 220 kV città di Napoli | F161: El. 220 kV “Napoli Lev – Ercolano | G161: 2022 | H161: 2028 | I161: 2032
A162: Intervento Piano precedente | B162: DTCS | C162: 504-P | D162: Intervento | E162: Riassetto rete AT penisola Sorrentina | F162: Riassetto rete AT penisola Sorrentina | I162: 2032
A163: Intervento Piano precedente | B163: DTCS | C163: 504-P | D163: Opera Principale | E163: Riassetto rete AT penisola Sorrentina | F163: Collegamento in e – e della CP Sorrento | G163: 10/11/2010 (EL-222) | H163: 2013 | I163: 2015-11-01
A164: Intervento Piano precedente | B164: DTCS | C164: 504-P | D164: Opera Principale | E164: Riassetto rete AT penisola Sorrentina | F164: Nuova SE 220/150 kV di Scafati e raccordi | G164: 07/05/2012 (EL-280) | H164: 2019-08-01 | I164: 2021
A165: Intervento Piano precedente | B165: DTCS | C165: 504-P | D165: Opera Principale | E165: Riassetto rete AT penisola Sorrentina | F165: Nuova SE 150 kV Sorrento | G165: 12/01/2012 (EL-269) | H165: 2019-01-01 | I165: 2020-10-01
A166: Intervento Piano precedente | B166: DTCS | C166: 504-P | D166: Opera Principale | E166: Riassetto rete AT penisola Sorrentina | F166: Nuovo collegamento 150 kV “Sorrento – Vico Equense – Agerola – Lettere” | G166: 23/04/2013 (EL-307) | H166: 2022 | I166: 2025
A167: Intervento Piano precedente | B167: DTCS | C167: 504-P | D167: Opera Principale | E167: Riassetto rete AT penisola Sorrentina | F167: Connessione CP Mercatello a esistente el. 150 kV “Lettere – Montecorvino” | G167: 22/03/2017 (EL-363) | H167: 2018-10-15 | I167: 2019-12-01
A168: Intervento Piano precedente | B168: DTCS | C168: 504-P | D168: Opera Principale | E168: Riassetto rete AT penisola Sorrentina | F168: Interconnessione 150 kV CP Solofra-CP Mercato S. Severino-CP Baronissi | G168: 2022 (EL-512) | H168: 2024 | I168: 2028
A169: Intervento Piano precedente | B169: DTCS | C169: 504-P | D169: Opera Principale | E169: Riassetto rete AT penisola Sorrentina | F169: Rimozione limitazioni el. 150 kV “Lettere – Scafati” | G169: 2012 | H169: 2013 | I169: 2013
A170: Intervento Piano precedente | B170: DTCS | C170: 504-P | D170: Opera Principale | E170: Riassetto rete AT penisola Sorrentina | F170: Rimozione limitazioni el. 220 kV “Nocera – Salerno N.” e “Nocera – S. Valentino”. | G170: 2013 | H170: 2014 | I170: 2014
A171: Intervento Piano precedente | B171: DTCS | C171: 504-P | D171: Opera Principale | E171: Riassetto rete AT penisola Sorrentina | F171: SE 150 kV Torre C.le e riassetto el. 150 kV | G171: 08/05/2019 (EL-422) | H171: 2021 | I171: 2024
A172: Intervento Piano precedente | B172: DTCS | C172: 504-P | D172: Opera Principale | E172: Riassetto rete AT penisola Sorrentina | F172: Nuovo el. 150 kV tra area Castellammare e Sorrento | G172: 2025 | H172: 2029 | I172: 2032
A173: Intervento Piano precedente | B173: DTCS | C173: 504-P | D173: Opera Principale | E173: Riassetto rete AT penisola Sorrentina | F173: Nuovo el. 150 kV tra CP Castellammare – Fincantieri | G173: 04/09/2017 (EL-387) | H173: 2019-05-01 | I173: 2020-09-01
A174: Intervento Piano precedente | B174: DTCS | C174: 504-P | D174: Opera Principale | E174: Riassetto rete AT penisola Sorrentina | F174: Raccordi 150 kV alla CP Torre Sud e utenze connesse | G174: 2022 | H174: 2024 | I174: 2025
A175: Intervento Piano precedente | B175: DTCS | C175: 504-P | D175: Opera Principale | E175: Riassetto rete AT penisola Sorrentina | F175: Nuova SE 150/60 Kv area Fuorni/Salerno Industriale | G175: 2022 | H175: 2023 | I175: 2025
A176: Intervento Piano precedente | B176: DTCS | C176: 504-P | D176: Altre Opere | E176: Riassetto rete AT penisola Sorrentina | F176: Razionalizzazione della locale rete AT | G176: 2019 | H176: 2023 | I176: 2030
A177: Intervento Piano precedente | B177: DTCS | C177: 504-P | D177: Altre Opere | E177: Riassetto rete AT penisola Sorrentina | F177: Adeguamento a 150 kV delle CP Agerola, Vico Eq., Lettere e Castellamare | G177: - | H177: - | I177: 2023
A178: Intervento Piano precedente | B178: DTCS | C178: 504-P | D178: Altre Opere | E178: Riassetto rete AT penisola Sorrentina | F178: Rimozione limitazioni nelle CP 220 kV Salerno e S. Valentino | G178: - | H178: - | I178: 2018
A179: Intervento Piano precedente | B179: DTCS | C179: 510-P | D179: Intervento | E179: Stazioni 380/150 kV e relativi raccordi alla rete AT per la raccolta di produzione da fonte rinnovabile nel Sud | F179: Stazioni 380/150 kV e relativi raccordi alla rete AT per la raccolta di produzione da fonte rinnovabile nel Sud | I179: 2032
A180: Intervento Piano precedente | B180: DTCS | C180: 510-P | D180: Opera Principale | E180: Stazioni 380/150 kV e relativi raccordi alla rete AT per la raccolta di produzione da fonte rinnovabile nel Sud | F180: Nuova SE 380/150 kV Montesano | G180: 20/10/2015 (EL-351) | H180: 2031 | I180: 2035
A181: Intervento Piano precedente | B181: DTCS | C181: 510-P | D181: Opera Principale | E181: Stazioni 380/150 kV e relativi raccordi alla rete AT per la raccolta di produzione da fonte rinnovabile nel Sud | F181: Nuova SE 380/150 kV Castellaneta | G181: 2006-12-29 | H181: 2011 | I181: 2012-06-01
A182: Intervento Piano precedente | B182: DTCS | C182: 510-P | D182: Opera Principale | E182: Stazioni 380/150 kV e relativi raccordi alla rete AT per la raccolta di produzione da fonte rinnovabile nel Sud | F182: Raccordi a 150 kV in doppia terna dall’el. “CP Palagiano – CP Gioia del Colle” alla SE Castellaneta | G182: 08/09/2014 (EL-335) | H182: 2026 | I182: 2029
A183: Intervento Piano precedente | B183: DTCS | C183: 510-P | D183: Opera Principale | E183: Stazioni 380/150 kV e relativi raccordi alla rete AT per la raccolta di produzione da fonte rinnovabile nel Sud | F183: Nuova SE 380/150 kV Erchie | G183: 2006-11-29 | H183: 2012 | I183: 2013-06-01
A184: Intervento Piano precedente | B184: DTCS | C184: 510-P | D184: Opera Principale | E184: Stazioni 380/150 kV e relativi raccordi alla rete AT per la raccolta di produzione da fonte rinnovabile nel Sud | F184: Nuova SE 380/150 kV Manfredonia | G184: 2007-05-30 | H184: 2012 | I184: 2014-02-01
A185: Intervento Piano precedente | B185: DTCS | C185: 510-P | D185: Opera Principale | E185: Stazioni 380/150 kV e relativi raccordi alla rete AT per la raccolta di produzione da fonte rinnovabile nel Sud | F185: Reattore Erchie | G185: 2016 | H185: 2016 | I185: 2018-08-07
A186: Intervento Piano precedente | B186: DTCS | C186: 510-P | D186: Opera Principale | E186: Stazioni 380/150 kV e relativi raccordi alla rete AT per la raccolta di produzione da fonte rinnovabile nel Sud | F186: Ampliamento della SE 380 kV di Brindisi Sud | G186: 2007-02-08 | H186: 2010 | I186: 2012-09-01
A187: Intervento Piano precedente | B187: DTCS | C187: 510-P | D187: Opera Principale | E187: Stazioni 380/150 kV e relativi raccordi alla rete AT per la raccolta di produzione da fonte rinnovabile nel Sud | F187: Ampliamento della SE 380 kV di Galatina | G187: 2008-12-19 | H187: 2011 | I187: 2014-07-01
A188: Intervento Piano precedente | B188: DTCS | C188: 510-P | D188: Opera Principale | E188: Stazioni 380/150 kV e relativi raccordi alla rete AT per la raccolta di produzione da fonte rinnovabile nel Sud | F188: Ampliamento della SE 380 kV di Foggia | G188: 2009-05-07 | H188: 2011 | I188: 2014-02-01
A189: Intervento Piano precedente | B189: DTCS | C189: 510-P | D189: Opera Principale | E189: Stazioni 380/150 kV e relativi raccordi alla rete AT per la raccolta di produzione da fonte rinnovabile nel Sud | F189: Raccordi a 150 kV alla nuova SE 380/150 kV Belcastro | G189: 2020 (EL-436) | H189: 2026 | I189: 2030
A190: Intervento Piano precedente | B190: DTCS | C190: 510-P | D190: Opera Principale | E190: Stazioni 380/150 kV e relativi raccordi alla rete AT per la raccolta di produzione da fonte rinnovabile nel Sud | F190: Raccordi a 150 kV alla SE Garaguso | G190: 2025 | H190: 2029 | I190: 2032
A191: Intervento Piano precedente | B191: DTCS | C191: 510-P | D191: Opera Principale | E191: Stazioni 380/150 kV e relativi raccordi alla rete AT per la raccolta di produzione da fonte rinnovabile nel Sud | F191: Raccordi a 150 kV alla SE Melfi e relativo ampliamento a 150 kV con ATR 380/150 kV | G191: 06/12/2017 (EL-383) | H191: 2023 | I191: 2025
A192: Intervento Piano precedente | B192: DTCS | C192: 512-P | D192: Intervento | E192: Stazione 380 - 150 kV di Palo del Colle | F192: Stazione 380 - 150 kV di Palo del Colle | I192: 2033
A193: Intervento Piano precedente | B193: DTCS | C193: 512-P | D193: Opera Principale | E193: Stazione 380 - 150 kV di Palo del Colle | F193: Nuova sezione a 150 kV SE Palo del Colle, ATR 380/150 kV e raccordi 150 kV Modugno – Bitonto | G193: 13/05/2009 (EL-133) 21/03/2018 (EL-133 VL) | H193: 2014 | I193: 2017-04-11
A194: Intervento Piano precedente | B194: DTCS | C194: 512-P | D194: Opera Principale | E194: Stazione 380 - 150 kV di Palo del Colle | F194: El. 150 kV in cavo “Palo del Colle - Bari Termica” | G194: 13/05/2009 (EL-133) 21/03/2018 (EL-133 VL) | H194: 2014 | I194: 2019-10-01
A195: Intervento Piano precedente | B195: DTCS | C195: 512-P | D195: Opera Principale | E195: Stazione 380 - 150 kV di Palo del Colle | F195: Ricostruzione SE 150 kV Bari Termica e relativi raccordi | G195: 20/12/2022 (EL-434) | H195: 2025 | I195: 2033
A196: Intervento Piano precedente | B196: DTCS | C196: 512-P | D196: Opera Principale | E196: Stazione 380 - 150 kV di Palo del Colle | F196: Ricostruzione elettrodotto 150 kV “Corato - Bari Termica” | G196: 22/04/2009 (EL-151) | H196: 2029 | I196: 2033
A197: Intervento Piano precedente | B197: DTCS | C197: 512-P | D197: Opera Principale | E197: Stazione 380 - 150 kV di Palo del Colle | F197: Raccordi 150 kV della SE Palo del Colle alle linee “Bari Industriale 2 – Corato” | G197: 2027 | H197: 2031 | I197: 2034
A198: Intervento Piano precedente | B198: DTCS | C198: 511-P | D198: Intervento | E198: Stazione 380 kV S. Sofia | F198: Stazione 380 kV S. Sofia | I198: 2035
A199: Intervento Piano precedente | B199: DTCS | C199: 511-P | D199: Opera Principale | E199: Stazione 380 kV S. Sofia | F199: Reattore SE 380 kV S. Sofia | G199: 2011 | H199: 2012 | I199: 2012-10-01
A200: Intervento Piano precedente | B200: DTCS | C200: 511-P | D200: Opera Principale | E200: Stazione 380 kV S. Sofia | F200: Nuovo el. 150 kV “CP Saint Gobain – CP Caserta Sud” | G200: 2004-03-05 | H200: 2012 | I200: 2016-12-30
A201: Intervento Piano precedente | B201: DTCS | C201: 511-P | D201: Opera Principale | E201: Stazione 380 kV S. Sofia | F201: Nuovo el. 150 kV “CP Saint Gobain - SE S. Sofia” | G201: 25/10/2019 (EL- 431) | H201: 2023 | I201: 2035
... 966 more rows

Sheet Altri interventi
A2: Codice | B2: Intervento | C2: Motivazione | D2: Data effettiva/prevista di completamento | E2: Anno Inserimento Piano Sicurezza | F2: Note
A3: PS | B3: Collegamento 400 kV SE Brindisi C.le Enipower e SE Brindisi Pignicelle | C3: Rimuovere i vincoli di rete e garantire la sicurezza del sistema dell'area di riferimento | D3: 2027 | E3: 2017 | F3: Collegamento in assetto provvisorio in esercizio a dicembre 2020.
A4: PS | B4: Compensatori sincroni presso la stazione di Selargius | C4: Installazione di 2 macchine compensatrici da 250 MVAr al fine di incrementare la sicurezza e la qualità del servizio della zona interessata, contribuendo anche all’inerzia del sistema in particolari condizioni di esercizio, all’aumento dell’efficacia dei sistemi di difesa e della gestione delle direttrici di riaccensione . | D4: 2020 | E4: 2017
A5: PS | B5: Compensatori sincroni presso la stazione di Maida | C5: Installazione di 2 macchine compensatrici da 250 MVAr al fine di incrementare la sicurezza e la qualità del servizio della zona interessata, contribuendo anche all’inerzia del sistema in particolari condizioni di esercizio, all’aumento dell’efficacia dei sistemi di difesa e della gestione delle direttrici di riaccensione . | D5: 2022 | E5: 2017
A6: PS | B6: Compensatori sincroni presso la stazione di Matera | C6: Installazione di 2 macchine compensatrici da 250 MVAr al fine di incrementare la sicurezza e la qualità del servizio della zona interessata, contribuendo anche all’inerzia del sistema in particolari condizioni di esercizio, all’aumento dell’efficacia dei sistemi di difesa e della gestione delle direttrici di riaccensione . | D6: 2020 | E6: 2017
A7: PS | B7: Compensatore sincrono presso la stazione di Foggia | C7: Installazione di una macchina compensatrice da 250 MVAr al fine di incrementare la sicurezza e la qualità del servizio nell'area del foggiano-brindisino, contribuendo anche all’inerzia del sistema in particolari condizioni di esercizio, all’aumento dell’efficacia dei sistemi di difesa e della gestione delle direttrici di riaccensione . | D7: 2021 | E7: 2017
A8: PS | B8: Compensatore sincrono presso la stazione di Garigliano | C8: Installazione di una macchina compensatrice da 250 MVAr al fine di incrementare la sicurezza e la qualità del servizio nell'area del foggiano-brindisino, contribuendo anche all’inerzia del sistema in particolari condizioni di esercizio, all’aumento dell’efficacia dei sistemi di difesa e della gestione delle direttrici di riaccensione . | D8: 2021 | E8: 2017
A9: PS | B9: Compensatori sincroni presso la stazione di Brindisi Pignicelle | C9: Installazione di 2 macchine compensatrici da 250 MVAr al fine di incrementare la sicurezza e la qualità del servizio della zona interessata, contribuendo anche all’inerzia del sistema in particolari condizioni di esercizio, all’aumento dell’efficacia dei sistemi di difesa e della gestione delle direttrici di riaccensione . | D9: 2021 | E9: 2019
A10: PS | B10: Compensatore sincrono presso la stazione di Villanova | C10: Installazione di una macchina compensatrice da 250 MVAr al fine di incrementare la sicurezza e la qualità del servizio della zona interessata, contribuendo anche all’inerzia del sistema in particolari condizioni di esercizio, all’aumento dell’efficacia dei sistemi di difesa e della gestione delle direttrici di riaccensione . | D10: 2022 | E10: 2019
A11: PS | B11: Compensatore sincrono presso la stazione di Rosara | C11: Installazione di 1 macchina compensatrice da 250 MVAr per ciascun sito al fine di incrementare la sicurezza e la qualità del servizio della zona interessata, contribuendo anche all’inerzia del sistema in particolari condizioni di esercizio, all’aumento dell’efficacia dei sistemi di difesa e della gestione delle direttrici di riaccensione . | D11: 2023 | E11: 2019/2021
A12: PS | B12: Compensatore sincrono presso la stazione di Candia | C12: Installazione di una macchina compensatrice da 250 MVAr al fine di incrementare la sicurezza e la qualità del servizio nell'area del foggiano-brindisino, contribuendo anche all’inerzia del sistema in particolari condizioni di esercizio, all’aumento dell’efficacia dei sistemi di difesa e della gestione delle direttrici di riaccensione . | D12: 2021 | E12: 2019
A13: PS | B13: Compensatore sincrono presso la stazione di Fano | C13: Installazione di una macchina compensatrice da 250 MVAr al fine di incrementare la sicurezza e la qualità del servizio nell'area del foggiano-brindisino, contribuendo anche all’inerzia del sistema in particolari condizioni di esercizio, all’aumento dell’efficacia dei sistemi di difesa e della gestione delle direttrici di riaccensione . | D13: 2021 | E13: 2019
A14: PS | B14: Compensatore sincrono presso la stazione di Suvereto | C14: Installazione di una macchina compensatrice da 250 MVAr al fine di incrementare la sicurezza e la qualità del servizio nell'area del foggiano-brindisino, contribuendo anche all’inerzia del sistema in particolari condizioni di esercizio, all’aumento dell’efficacia dei sistemi di difesa e della gestione delle direttrici di riaccensione . | D14: 2023 | E14: 2019
A15: PS | B15: Compensatore sincrono presso la stazione di Codrongianos | C15: Installazione di una macchina compensatrice da 250 MVAr al fine di incrementare la sicurezza e la qualità del servizio nell'area del foggiano-brindisino, contribuendo anche all’inerzia del sistema in particolari condizioni di esercizio, all’aumento dell’efficacia dei sistemi di difesa e della gestione delle direttrici di riaccensione . | D15: 2023 | E15: 2019
A16: PS | B16: Compensatori sincroni presso la stazione di Caracoli | C16: Installazione di 2 macchine compensatrici da 250 MVAr al fine di incrementare la sicurezza e la qualità del servizio della zona interessata, contribuendo anche all’inerzia del sistema in particolari condizioni di esercizio, all’aumento dell’efficacia dei sistemi di difesa e della gestione delle direttrici di riaccensione . | D16: 2026 | E16: 2021
A17: PS | B17: Compensatori sincroni presso la stazione di Ittiri | C17: Installazione di 2 macchine compensatrici da 250 MVAr al fine di incrementare la sicurezza e la qualità del servizio della zona interessata, contribuendo anche all’inerzia del sistema in particolari condizioni di esercizio, all’aumento dell’efficacia dei sistemi di difesa e della gestione delle direttrici di riaccensione . | D17: 2026 | E17: 2021
A18: PS | B18: Compensatore sincrono presso la stazione di Forlì | C18: Installazione di una macchina compensatrice da 250 MVAr al fine di incrementare la sicurezza e la qualità del servizio nell'area del foggiano-brindisino, contribuendo anche all’inerzia del sistema in particolari condizioni di esercizio, all’aumento dell’efficacia dei sistemi di difesa e della gestione delle direttrici di riaccensione . | D18: 2025 | E18: 2021
A19: PS | B19: Compensatore sincrono presso la stazione di Ravenna | C19: Installazione di una macchina compensatrice da 250 MVAr al fine di incrementare la sicurezza e la qualità del servizio nell'area del foggiano-brindisino, contribuendo anche all’inerzia del sistema in particolari condizioni di esercizio, all’aumento dell’efficacia dei sistemi di difesa e della gestione delle direttrici di riaccensione . | D19: 2025 | E19: 2021
A20: PS | B20: Compensatore sincrono presso la stazione di Aurelia | C20: Installazione di una macchina compensatrice da 250 MVAr al fine di incrementare la sicurezza e la qualità del servizio nell'area del foggiano-brindisino, contribuendo anche all’inerzia del sistema in particolari condizioni di esercizio, all’aumento dell’efficacia dei sistemi di difesa e della gestione delle direttrici di riaccensione . | D20: 2025 | E20: 2021-2022
A21: PS | B21: Compensatore sincrono presso la stazione di Rotello | C21: Installazione di una macchina compensatrice da 250 MVAr al fine di incrementare la sicurezza e la qualità del servizio nell'area del foggiano-brindisino, contribuendo anche all’inerzia del sistema in particolari condizioni di esercizio, all’aumento dell’efficacia dei sistemi di difesa e della gestione delle direttrici di riaccensione . | D21: 2027 | E21: 2021
A22: PS | B22: Compensatore sincrono presso la stazione di Troia | C22: Installazione di una macchina compensatrice da 250 MVAr al fine di incrementare la sicurezza e la qualità del servizio nell'area del foggiano-brindisino, contribuendo anche all’inerzia del sistema in particolari condizioni di esercizio, all’aumento dell’efficacia dei sistemi di difesa e della gestione delle direttrici di riaccensione . | D22: 2025 | E22: 2021
A23: PS | B23: STATCOM presso la stazione di Latina | C23: Installazione di dispositivi elettronici di potenza (STATCOM) sulla RTN al fine di controllare la stabilità di sistema in presenza di forte penetrazione di generazione tipo inverter-based (fonti rinnovabili e HVDC), migliorare la sicurezza di esercizio della rete, incrementare la qualità del servizio ed ottimizzare il controllo coordinato con la regolazione dei compensatori sincroni. | D23: 2022 | E23: 2019
A24: PS | B24: STATCOM presso la stazione di Villanova | C24: Installazione di dispositivi elettronici di potenza (STATCOM) sulla RTN al fine di controllare la stabilità di sistema in presenza di forte penetrazione di generazione tipo inverter-based (fonti rinnovabili e HVDC), migliorare la sicurezza di esercizio della rete, incrementare la qualità del servizio ed ottimizzare il controllo coordinato con la regolazione dei compensatori sincroni. | D24: 2022 | E24: 2019
A25: PS | B25: STATCOM presso la stazione di Galatina | C25: Installazione di dispositivi elettronici di potenza (STATCOM) sulla RTN al fine di controllare la stabilità di sistema in presenza di forte penetrazione di generazione tipo inverter-based (fonti rinnovabili e HVDC), migliorare la sicurezza di esercizio della rete, incrementare la qualità del servizio ed ottimizzare il controllo coordinato con la regolazione dei compensatori sincroni. | D25: 2022 | E25: 2019
A26: PS | B26: STATCOM presso la stazione di Aurelia | C26: Installazione di dispositivi elettronici di potenza (STATCOM) sulla RTN al fine di controllare la stabilità di sistema in presenza di forte penetrazione di generazione tipo inverter-based (fonti rinnovabili e HVDC), migliorare la sicurezza di esercizio della rete, incrementare la qualità del servizio ed ottimizzare il controllo coordinato con la regolazione dei compensatori sincroni. | D26: 2023 | E26: 2021-2022
A27: PS | B27: STATCOM presso la stazione di Montalto | C27: Installazione di dispositivi elettronici di potenza (STATCOM) sulla RTN al fine di controllare la stabilità di sistema in presenza di forte penetrazione di generazione tipo inverter-based (fonti rinnovabili e HVDC), migliorare la sicurezza di esercizio della rete, incrementare la qualità del servizio ed ottimizzare il controllo coordinato con la regolazione dei compensatori sincroni. | D27: 2023 | E27: 2021-2022
A28: PS | B28: Reattore presso la stazione Rotello | C28: Installazione di un reattore da 258 MvAr per la gestione in sicurezza della rete in condizioni di basso carico ed elevate tensioni. | D28: 2022 | E28: 2021
A29: PS | B29: Reattore presso la stazione Casuzze | C29: Installazione di un reattore da 80 MvAr per la gestione in sicurezza della rete in condizioni di basso carico ed elevate tensioni. | D29: 2023 | E29: 2021
A30: PS | B30: Reattore presso la stazione Bari Ovest | C30: Installazione di un reattore da 80 MvAr per la gestione in sicurezza della rete in condizioni di basso carico ed elevate tensioni. | D30: 2023 | E30: 2021
A31: PS | B31: Reattore presso la stazione Bellolampo | C31: Installazione di un reattore da 80 MvAr per la gestione in sicurezza della rete in condizioni di basso carico ed elevate tensioni. | D31: 2022 | E31: 2021
A32: PS | B32: Reattore presso la stazione S. M. Capua Vetere | C32: Installazione di un reattore da 258 MvAr per la gestione in sicurezza della rete in condizioni di basso carico ed elevate tensioni. | D32: 2022 | E32: 2021
A33: PS | B33: Reattore presso la stazione Roma Est | C33: Installazione di un reattore da 258 MvAr per la gestione in sicurezza della rete in condizioni di basso carico ed elevate tensioni. | D33: 2023 | E33: 2021
A34: PS | B34: Reattore presso la stazione Deliceto | C34: Installazione di un reattore da 258 MvAr per la gestione in sicurezza della rete in condizioni di basso carico ed elevate tensioni. | D34: 2022 | E34: 2021
A35: PS | B35: Reattore presso la stazione Montecorvino | C35: Installazione di un reattore da 258 MvAr per la gestione in sicurezza della rete in condizioni di basso carico ed elevate tensioni. | D35: 2023 | E35: 2021
A36: PS | B36: Reattore presso la CP Secondigliano | C36: Installazione di un reattore da 180 MvAr per la gestione in sicurezza della rete in condizioni di basso carico ed elevate tensioni. | D36: 2023 | E36: 2021 | F36: In corso di valutazione siti alternativi
A37: PS | B37: Reattore presso la CP Casoria | C37: Installazione di un reattore da 180 MvAr per la gestione in sicurezza della rete in condizioni di basso carico ed elevate tensioni. | D37: 2023 | E37: 2021 | F37: In corso di valutazione siti alternativi
A38: PS | B38: Reattore presso la CP Tiburtina | C38: Installazione di un reattore da 80 MvAr per la gestione in sicurezza della rete in condizioni di basso carico ed elevate tensioni. | D38: 2024 | E38: 2022 | F38: Realizzazione in capo al distributore
A39: PS | B39: Reattore presso la stazione Cerignola | C39: Installazione di un reattore da 258 MvAr per la gestione in sicurezza della rete in condizioni di basso carico ed elevate tensioni. | D39: 2024 | E39: 2021
A40: PS | B40: Reattore presso la stazione Torremaggiore | C40: Installazione di un reattore da 258 MvAr per la gestione in sicurezza della rete in condizioni di basso carico ed elevate tensioni. | D40: 2024 | E40: 2021
A41: PS | B41: Reattore presso la stazione Fulgatore | C41: Installazione di un reattore da 180 MvAr per la gestione in sicurezza della rete in condizioni di basso carico ed elevate tensioni. | D41: 2023 | E41: 2021
A42: PS | B42: Reattore presso la stazione Partinico | C42: Installazione di un reattore da 180 MvAr per la gestione in sicurezza della rete in condizioni di basso carico ed elevate tensioni. | D42: 2023 | E42: 2021
A43: PS | B43: Reattore presso la stazione Patria | C43: Installazione di un reattore da 258 MvAr per la gestione in sicurezza della rete in condizioni di basso carico ed elevate tensioni. | D43: 2023 | E43: 2021 | F43: In corso di valutazione siti alternativi

Sheet L-Legenda
A1: OBIETTIVI INTERVENTO | B1: DESCRIZIONE
A2: Interconnessioni | B2: Incremento capacità interconnessione
A3: Congestioni INTER / INTRA | B3: Riduzione congestioni tra zone di mercato (congestioni interzonali) e congestioni intrazonali e vincoli alla produzione efficiente (congestioni intrazonali)
A4: Integrazione FER | B4: Riduzione delle limitazioni alla produzione della capacità rinnovabile
A5: Qualità del servizio | B5: Qualità, continuità e sicurezza del servizio elettrico
A6: Resilienza 2.0 | B6: Resilienza del servizio elettrico
A7: Integrazione RFI | B7: Attività di integrazione in Terna degli impianti/linee della Rete Ferroviaria Italiana
A8: Connessione RTN | B8: Attività per la connessione alla Rete
A9: Transizione ecologica | B9: Intervento finalizzato al raggiungimento degli obiettivi delinati nell'ambito della Transizione Ecologica
A11: AVANZAMENTO | B11: DESCRIZIONE
A12: Fase 1 | B12: Fase di Pianificazione
A13: Fase 2 | B13: Fase di Concertazione e/o progettazione
A14: Fase 3 | B14: Fase di Autorizzazione (i.e., completamento iter autorizzativo)
A15: Fase 4 | B15: Fase di Progettazione esecutiva
A16: Fase 5 | B16: Fase di Realizzazione dell'opera
A17: Compl. | B17: Opera completata
A20: INDICATORI Analisi Costi Benefici 2.0 | B20: DESCRIZIONE
A21: B1 | B21: Variazione (incremento) del socio-economic welfare (SEW) correlato al funzionamento del mercato dell'energia e all'incremento di limiti di transito tra zone della rete rilevante o ai confini
A22: B2a/B2b | B22: Variazione (riduzione) delle perdite di rete calcolata mediante utilizzo di simulazioni di tipo probabilistico (B2a) o mediante utilizzo di calcoli di load flow (B2b)
A23: B3a/B3b | B23: Variazione (riduzione) del rischio di energia non fornita mediante utilizzo di simulazioni di tipo probabilistico B3a o mediante utilizzo di simulazioni statistiche di load flow (B3b)
A24: B4 | B24: Costi evitati o differiti relativi a capacità di generazione soggetta a regimi di remunerazione che integrano o sostituiscono i proventi dei mercati dell’energia e del mercato per il servizio di dispacciamento
A25: B5 | B25: Maggiore integrazione di produzione da fonti di energia rinnovabili (FER) calcolata mediante simulazioni di rete (congestioni a livello locale)
A26: B5a/B5b | B26: Maggiore integrazione di produzione da fonti di energia rinnovabili (FER) calcolata mediante simulazioni di rete di tipo probabilistico (B5a) o mediante utilizzo di simulazioni statistiche di load flow (B5b)
A27: B6 | B27: Investimenti evitati in infrastrutture di trasmissione dell’energia elettrica che sarebbero state altrimenti necessarie in risposta a esigenze inderogabili (es. rispetto di vincoli di legge)
A28: B7 | B28: Variazione (riduzione) dei costi per servizi di rete e per approvvigionamento di risorse sul mercato per il servizio di dispacciamento calcolata tramite simulazioni di rete probabilistiche
A29: B7n | B29: Variazione (riduzione o incremento) dei costi per servizi di rete e per approvvigionamento di risorse sul mercato per il servizio di dispacciamento calcolato tramite strumento di simulazione di rete
A30: B7z | B30: Variazione (riduzione o incremento) dei costi per servizi di rete e per approvvigionamento di risorse sul mercato per il servizio di dispacciamento calcolato tramite tool di simulazione di mercato
A31: B8 | B31: Variazione (riduzione) dei costi per servizi di rete e per approvvigionamento di risorse sul mercato per il servizio di dispacciamento calcolata tramite simulazioni di mercato dei servizi
A32: B13 | B32: Riduzione dell'energia non fornita legata ad accadimento di eventi estremi
A33: B16 | B33: Costi operativi evitati in infrastrutture di trasmissione dell’energia elettrica che sarebbero state altrimenti necessarie in risposta a esigenze inderogabili
A34: B18 | B34: Variazione (riduzione) delle esternalità negative associate all'aumento delle emissioni di CO2, ulteriori rispetto agli impatti già monetizzati nel benificio B1 mediante il prezzo della CO2
A35: B19 | B35: Variazione (riduzione) degli impatti negativi associati all'aumento di altre emissioni non CO2 né gas effetto serra
A36: B20 | B36: Anticipo Fruizione Benefici per il riscorso a soluzioni migliorative in grado di ridurre le tempistiche di completamento
A37: B21 | B37: Visual Amenity preservata/restituita o VAPR derivante dall’adozione di soluzioni a maggior sostenibilità ambientale
A38: I21 | B38: TTC/Zone di mercato [MW]
A39: I5 | B39: Overgeneration [MWh]
A40: I8 | B40: Variazione di emissioni di CO2 [kton]
A41: I13 | B41: Variazione resilienza [valore assoluto]
